Workbook

Sheet Welcome

Sheet 1.2.2
A8: Data sourced from sheet SA9
A10: Description of economic indicator | B10: Basis of calculation | C10: 1996 Census | D10: 2001 Census | E10: 2007 Survey | F10: 2005/06 | G10: 2006/07 | H10: 2007/08 | I10: 2008/09
A11: Demographics
A12: Population | C12: 526555 | D12: 684554 | E12: 802222 | F12: 754254 | G12: 785478 | H12: 865455 | I12: 901254
A13: Females aged 5 - 14 | C13: 86541 | D13: =C13*1.1 -> 95195.1 | E13: 104714.61 | F13: 98254 | G13: =F13*(1+RANDBETWEEN(1,10)/100) -> 101201.62 | H13: =G13*(1+RANDBETWEEN(1,10)/100) -> 109297.7496 | I13: 119134.5471
A14: Males aged 5 - 14 | C14: 102115 | D14: 112326.5 | E14: 123559.15 | F14: 118524 | G14: =F14*(1+RANDBETWEEN(1,10)/100) -> 125635.44 | H14: 134429.9208 | I14: 143840.0153
A15: Females aged 15 - 34 | C15: 153200 | D15: 168520 | E15: 185372 | F15: 178545 | G15: =F15*(1+RANDBETWEEN(1,10)/100) -> 191043.15 | H15: 204416.1705 | I15: 224857.7876
A16: Males aged 15 - 34 | C16: 185412 | D16: 203953.2 | E16: 224348.52 | F16: 216215 | G16: =F16*(1+RANDBETWEEN(1,10)/100) -> 235674.35 | H16: 254528.298 | I16: 279981.1278
A17: Unemployment
A19: Number of households in municipal area | F19: 123545 | G19: 125453 | H19: 135484 | I19: 245125
A20: Number of poor households in municipal area | F20: 21541 | G20: 22451 | H20: 22586 | I20: 35415
A28: Population Details
I29: Population '000
A30: Age | B30: Year -2 | E30: Year -1 | H30: Year 0
B31: Male | C31: Female | D31: Total | E31: Male | F31: Female | G31: Total | H31: Male | I31: Female | J31: Total
A32: Age: 0 - 4 | D32: =SUM(B32:C32) -> 0 | G32: =SUM(E32:F32) -> 0 | J32: =SUM(H32:I32) -> 0
A33: Age: 5 - 9 | D33: =SUM(B33:C33) -> 0 | G33: =SUM(E33:F33) -> 0 | J33: =SUM(H33:I33) -> 0
A34: Age: 10 - 19 | D34: 0 | G34: 0 | J34: 0
A35: Age: 20 - 29 | D35: 0 | G35: 0 | J35: 0
A36: Age: 30 - 39 | D36: 0 | G36: 0 | J36: 0
A37: Age: 40 - 49 | D37: 0 | G37: 0 | J37: 0
A38: Age: 50 - 59 | D38: 0 | G38: 0 | J38: 0
A39: Age: 60 - 69 | D39: 0 | G39: 0 | J39: 0
A40: Age: 70+ | D40: 0 | G40: 0 | J40: 0
A41: Source: Statistics SA T 1.2.2

Sheet 1.2.3
A1: Data sourced from sheet SA9
A3: Description of economic indicator | B3: Basis of calculation | C3: 1996 Census | D3: 2001 Census | E3: 2007 Survey | F3: 2005/06 | G3: Year -2 | H3: Year -1 | I3: Year 0
A4: Demographics
A5: Population | C5: 526555 | D5: 684554 | E5: 802222 | F5: 754254 | G5: 785478 | H5: 865455 | I5: 901254
A6: Females aged 5 - 14 | C6: 86541 | D6: =C6*1.1 -> 95195.1 | E6: 104714.61 | F6: 98254 | G6: =F6*(1+RANDBETWEEN(1,10)/100) -> 100219.08 | H6: =G6*(1+RANDBETWEEN(1,10)/100) -> 109238.7972 | I6: 120162.6769
A7: Males aged 5 - 14 | C7: 102115 | D7: 112326.5 | E7: 123559.15 | F7: 118524 | G7: =F7*(1+RANDBETWEEN(1,10)/100) -> 125635.44 | H7: 130660.8576 | I7: 135887.2919
A8: Females aged 15 - 34 | C8: 153200 | D8: 168520 | E8: 185372 | F8: 178545 | G8: =F8*(1+RANDBETWEEN(1,10)/100) -> 189257.7 | H8: 191150.277 | I8: 202619.2936
A9: Males aged 15 - 34 | C9: 185412 | D9: 203953.2 | E9: 224348.52 | F9: 216215 | G9: =F9*(1+RANDBETWEEN(1,10)/100) -> 227025.75 | H9: 238377.0375 | I9: 240760.8079
A10: Unemployment
A12: Number of households in municipal area | F12: 123545 | G12: 125453 | H12: 135484 | I12: 245125
A13: Number of poor households in municipal area | F13: 21541 | G13: 22451 | H13: 22586 | I13: 35415

Sheet 1.2.4
A1: Socio Economic Status
A2: Year | B2: Housing Backlog as proportion of current demand | C2: Unemployment Rate | D2: Proportion of Households with no Income | E2: Proportion of Population in Low-skilled Employment | F2: HIV/AIDS Prevalence | G2: Illiterate people older than 14 years
A3: Year -2 | B3: 0.19 | C3: 0.22 | D3: 0.26 | E3: 0.44 | F3: 0.1 | G3: 0.27
A4: Year -1 | B4: 0.2 | C4: 0.23 | D4: 0.26 | E4: 0.48 | F4: 0.15 | G4: 0.37
A5: Year 0 | B5: 0.21 | C5: 0.24 | D5: 0.26 | E5: 0.52 | F5: 0.2 | G5: 0.44
F6: T 1.2.4

Sheet 1.2.6
A1: Overview of Neighbourhoods within 'Name of Municipality'
A2: Settlement Type | B2: Households | C2: Population
A3: Towns
A8: Sub-Total | B8: =SUM(B4:B7) -> 0 | C8: =SUM(C4:C7) -> 0
A9: Townships
A14: Sub-Total | B14: =SUM(B10:B13) -> 0 | C14: =SUM(C10:C13) -> 0
A15: Rural settlements
A19: Sub-Total | B19: =SUM(B16:B18) -> 0 | C19: =SUM(C16:C18) -> 0
A20: Informal settlements
A24: Sub-Total | B24: =SUM(B21:B23) -> 0 | C24: =SUM(C21:C23) -> 0
A25: Total | B25: =SUM(+B19+B14+B8) -> 0 | C25: =SUM(+C19+C14+C8) -> 0
B26: T 1.2.6

Sheet 1.2.7
A1: Natural Resources
A2: Major Natural Resource | B2: Relevance to Community
B8: T 1.2.7

Sheet 1.3.2
A1: Proportion of Households with minimum level of Basic services
B2: Year -3 | C2: Year -2 | D2: Year -1 | E2: Year 0
A3: Electricity service connections | B3: 0.6 | C3: 0.7 | D3: 0.8 | E3: 0.9
A4: Water - available within 200 m from dwelling | B4: 0.55 | C4: 0.6 | D4: 0.65 | E4: 0.75
A5: Sanitation - Households with at leats VIP service | B5: 0.48 | C5: 0.53 | D5: 0.58 | E5: 0.63
A6: Waste collection - kerbside collection once a week | B6: 0.25 | C6: 0.3 | D6: 0.35 | E6: 0.4
E33: T1.3.2

Sheet 1.4.2
A1: Financial Overview: Year 0
D2: R' 000
A3: Details | B3: Original budget | C3: Adjustment Budget | D3: Actual
A4: Income:
A5: Grants | B5: 200 | C5: 205 | D5: 203
A6: Taxes, Levies and tariffs | B6: 345 | C6: 355 | D6: 365
A7: Other | B7: 100 | C7: 80 | D7: 78
A8: Sub Total | B8: =SUM(B5:B7) -> 645 | C8: =SUM(C5:C7) -> 640 | D8: =SUM(D5:D7) -> 646
A9: Less: Expenditure | B9: 644 | C9: 640 | D9: 645
A10: Net Total* | B10: =B8-B9 -> 1 | C10: =C8-C9 -> 0 | D10: =D8-D9 -> 1
A11: * Note: surplus/(defecit) | D11: T 1.4.2

Sheet 1.4.3
A1: Operating Ratios
A2: Detail | B2: %
A3: Employee Cost
A4: Repairs & Maintenance
A5: Finance Charges & Impairment
B6: T 1.4.3

Sheet 1.4.4
A1: Total Capital Expenditure: Year -2 to Year 0
D2: R'000
A3: Detail | B3: Year -2 | C3: Year -1 | D3: Year 0
A4: Original Budget | B4: 400 | C4: 480 | D4: 508
A5: Adjustment Budget | B5: 450 | C5: 475 | D5: 520
A6: Actual | B6: 420 | C6: 468 | D6: 530
C7: T 1.4.4

Sheet 2.4.3
A1: Public Meetings
A2: Nature and purpose of meeting | B2: Date of events | C2: Number of Participating Municipal Councillors | D2: Number of Participating Municipal Administrators | E2: Number of Community members attending | F2: Issue addressed (Yes/No) | G2: Dates and manner of feedback given to community
A19: T 2.4.3

Sheet 2.5.1
A1: IDP Participation and Alignment Criteria* | B1: Yes/No
A2: Does the municipality have impact, outcome, input, output indicators?
A3: Does the IDP have priorities, objectives, KPIs, development strategies?
A4: Does the IDP have multi-year targets?
A5: Are the above aligned and can they calculate into a score?
A6: Does the budget align directly to the KPIs in the strategic plan?
A7: Do the IDP KPIs align to the section 57 Managers
A8: Do the IDP KPIs lead to functional area KPIs as per the SDBIP?
A9: Were the indicators communicated to the public?
A10: Were the four quarter aligned reports submitted within stipulated time frames?
A11: * Section 26 of Municipal Systems Act 2000 | B11: T 2.5.1

Sheet 2.9.1
A1: By-laws Introduced during Year 0
A2: Newly Developed | B2: Revised | C2: Public Participation Conducted Prior to Adoption of By-Laws (Yes/No) | D2: Dates of Public Participation | E2: By-Laws Gazetted* (Yes/No) | F2: Date of Publication
A10: *Note: See MSA section 13. | E10: T 2.9.1

Sheet 2.10.1
A1: Municipal Website: Content and Currency of Material
A2: Documents published on the Municipality's / Entity's Website | B2: Yes / No | C2: Publishing Date
A3: Current annual and adjustments budgets and all budget-related documents
A4: All current budget-related policies
A5: The previous annual report (Year -1)
A6: The annual report (Year 0) published/to be published
A7: All current performance agreements required in terms of section 57(1)(b) of the Municipal Systems Act (Year 0) and resulting scorecards
A8: All service delivery agreements (Year 0)
A9: All long-term borrowing contracts (Year 0)
A10: All supply chain management contracts above a prescribed value (give value) for Year 0
A11: An information statement containing a list of assets over a prescribed value that have been disposed of in terms of section 14 (2) or (4) during Year 1
A12: Contracts agreed in Year 0 to which subsection (1) of section 33 apply, subject to subsection (3) of that section
A13: Public-private partnership agreements referred to in section 120 made in Year 0
A14: All quarterly reports tabled in the council in terms of section 52 (d) during Year 0
A15: Note: MFMA s75 sets out the information that a municipality must include in its website as detailed above. Municipalities are, of course encouraged to use their websites more extensively than this to keep their community and stakeholders abreast of service delivery arrangements and municipal developments. | C15: T 2.10.1

Sheet 2.11.2
A1: Satisfaction Surveys Undertaken during: Year -1 and Year 0
A2: Subject matter of survey | B2: Survey method | C2: Survey date | D2: No. of people included in survey | E2: Survey results indicating satisfaction or better (%)*
A3: Overall satisfaction with:
A4: (a) Municipality
A5: (b) Municipal Service Delivery
A6: (c) Mayor
A7: Satisfaction with:
A8: (a) Refuse Collection
A9: (b) Road Maintenance
A10: (c) Electricity Supply
A11: (d) Water Supply
A12: (e) Information supplied by municipality to the public
A13: (f) Opportunities for consultation on municipal affairs
A14: * The percentage indicates the proportion of those surveyed that believed that relevant performance was at least satisfactory | E14: T 2.11.2

Sheet 3.1.2
A1: Total Use of Water by Sector (cubic meters)
B2: Agriculture | C2: Forestry | D2: Industrial | E2: Domestic | F2: Unaccountable water losses
A3: Year -1 | B3: 50 | C3: 40 | D3: 35 | E3: 150 | F3: 10
A4: Year 0 | B4: 50 | C4: 44 | D4: 46 | E4: 9 | F4: 11
E5: T 3.1.2
B11: Data for household service targets is sourced from table A10

Sheet 3.1.3
A1: Water Service Delivery Levels
A2: Households
A3: Description | B3: Ref | C3: Year -3 | D3: Year -2 | E3: Year -1 | F3: Year 0 | I3: 2009/10 Medium Term Revenue & Expenditure Framework
C4: Actual | D4: Actual | E4: Actual | F4: Actual | G4: Actual | H4: Actual | I4: Budget Year 2009/10 | J4: Budget Year +1 2010/11 | K4: Budget Year +2 2011/12
C5: No. | D5: No. | E5: No. | F5: No. | G5: No. | H5: No.
A6: Water: (above min level)
A7: Piped water inside dwelling | C7: 856567 | D7: 545664 | E7: 654684 | H7: 845644
A8: Piped water inside yard (but not in dwelling) | C8: 646856 | D8: 865456 | E8: 456486 | H8: 486454
A9: Using public tap (within 200m from dwelling ) | B9: 2 | C9: 486456 | D9: 486468 | E9: 464864 | H9: 546486
A10: Other water supply (within 200m) | B10: 4
A11: Minimum Service Level and Above sub-total | C11: =SUM(C7:C10) -> 1989879 | D11: 1897588 | E11: 1576034 | F11: 0 | G11: 0 | H11: 1878584 | I11: 0 | J11: 0 | K11: 0
A12: Minimum Service Level and Above Percentage | C12: =C11/C19 -> 0.8035580808 | D12: 0.7959534304 | E12: 0.7641414019 | H12: 0.7943138382
A13: Water: (below min level)
A14: Using public tap (more than 200m from dwelling) | B14: 3
A15: Other water supply (more than 200m from dwelling | B15: =B10 -> 4 | C15: 486456 | D15: 486456 | E15: 486456 | H15: 486456
A16: No water supply
A17: Below Minimum Service Level sub-total | C17: =SUM(C14:C16) -> 486456 | D17: =SUM(D14:D16) -> 486456 | E17: 486456 | F17: 0 | G17: 0 | H17: 486456 | I17: =SUM(I14:I16) -> 0 | J17: 0 | K17: 0
A18: Below Minimum Service Level Percentage | C18: =C17/C19 -> 0.1964419192 | D18: 0.2040465696 | E18: 0.2358585981 | H18: 0.2056861618
A19: Total number of households* | B19: 5 | C19: =C11+C17 -> 2476335 | D19: 2384044 | E19: 2062490 | F19: 0 | G19: 0 | H19: 2365040 | I19: 0 | J19: 0 | K19: 0
A20: * - To include informal settlements | E20: T 3.1.3

Sheet 3.1.4
A1: Households - Water Service Delivery Levels below the minimum
A2: Households
A3: Description | B3: Year -3 | C3: Year -2 | D3: Year -1 | E3: Year 0
B4: Actual | C4: Actual | D4: Actual | E4: Original Budget | F4: Adjusted Budget | G4: Actual
B5: No. | C5: No. | D5: No. | E5: No. | F5: No. | G5: No.
A6: Formal Settlements
A7: Total households | B7: 100000000 | C7: 100000000 | D7: 100000000 | E7: 100000000 | F7: 100000000 | G7: 100000000
A8: Households below minimum service level | B8: 25000000 | C8: 25000000 | D8: 25000000 | E8: 25000000 | F8: 25000000 | G8: 25000000
A9: Proportion of households below minimum service level | B9: =B8/B7 -> 0.25 | C9: 0.25 | D9: 0.25 | E9: 0.25 | F9: 0.25 | G9: 0.25
A10: Informal Settlements
A11: Total households | B11: 100000000 | C11: 100000000 | D11: 100000000 | E11: 100000000 | F11: 100000000 | G11: 100000000
A12: Households ts below minimum service level | B12: 25000000 | C12: 25000000 | D12: 25000000 | E12: 25000000 | F12: 25000000 | G12: 25000000
A13: Proportion of households ts below minimum service level | B13: =B12/B11 -> 0.25 | C13: 0.25 | D13: 0.25 | E13: 0.25 | F13: 0.25 | G13: 0.25
F14: T 3.1.4

Sheet 3.1.5
A17: Use data below to populate graph
A18: Access To Water
A19: Access to Water
B20: Proportion of households with access to water points* | C20: Proportion of households with access to piped water | D20: Proportion of households receiving 6 kl free#
A21: Year -2 | B21: 22 | C21: 70 | D21: 62
A22: Year -1 | B22: 22 | C22: 70 | D22: 62
A23: Year 0 | B23: 25 | C23: 72 | D23: 65
D24: T 3.1.5
A25: * Means access to 25 litres of potable water per day supplied within 200m of a household and with a minimum flow of 10 litres per minute
A26: # 6,000 litres of potable water supplied per formal connection per month

Sheet 3.1.6
A1: Water Service Policy Objectives Taken From IDP
A2: Service Objectives | B2: Outline Service Targets | C2: Year -1 | E2: Year 0 | H2: Year 1 | I2: Year 3
C3: Target | D3: Actual | E3: Target | G3: Actual | H3: Target
A4: Service Indicators | C4: *Previous Year | E4: *Previous Year | F4: *Current Year | H4: *Current Year | I4: *Current Year | J4: *Following Year
A5: (i) | B5: (ii) | C5: (iii) | D5: (iv) | E5: (v) | F5: (vi) | G5: (vii) | H5: (viii) | I5: (ix) | J5: (x)
A6: Service Objective xxx
A7: Households without minimum water supply | B7: Additional Households provided with minimum water supply during the year (Number of households (HHs) without supply at year end) | C7: xxxxxxxxx additional HHs (xxxxxx HHs outstanding) | D7: xxxxxxxxx additional HHs (xxxxxx HHs outstanding) | E7: xxxxxxxxx additional HHs (xxxxxx HHs outstanding) | F7: xxxxxxxxx additional HHs (xxxxxx HHs outstanding) | G7: xxxxxxxxx additional HHs (xxxxxx HHs outstanding) | H7: xxxxxxxxx additional HHs (xxxxxx HHs outstanding) | I7: xxxxxxxxx additional HHs (xxxxxx HHs outstanding) | J7: xxxxxxxxx additional HHs (xxxxxx HHs outstanding)
A8: Improve reliability of water supply | B8: Reduce the number of interruptions (Ints) in supply of one hour or more compared to the baseline of Year -1 (xxx interuptions of one hour or more during the yr) | C8: T0% (xxxxxx Ints) | D8: A0% (xxxxxx Ints) | E8: T1% (xxxxxx Ints) | F8: T1% (xxxxxx Ints) | G8: A1% (xxxxxx Ints) | H8: T2% (xxxxxx Ints) | I8: T5% (xxxxxx Ints) | J8: T5% (xxxxxx Ints)
A9: Improve water conservation | B9: Reduce unaccountable water levels compared to the baseline of Year -1 (xxx kilolitres (KLs) unaccounted for during the yr) | C9: T0% (xxxxxx KLs) | D9: A0% (xxxxxx KLs) | E9: T1% (xxxxxx KLs) | F9: T1% (xxxxxx KLs) | G9: A1% (xxxxxx KLs) | H9: T2% (xxxxxx KLs) | I9: T5% (xxxxxx KLs) | J9: T5% (xxxxxx KLs)
A18: Note: This statement should include no more than the top four priority service objectives, including milestones that relate to the blue water drop status as set out by the Water Affairs department. The indicators and targets specified above (columns (i) and (ii)) must be incoporated in the indicator set for each municipality to which they apply. These are 'universal municipal indicators'. * 'Previous Year' refers to the targets that were set in the Year -1 Budget/IDP round; *'Current Year' refers to the targets set in the Year 0 Budget/IDP round. *'Following Year' refers to the targets set in the Year 1 Budget/IDP round. Note that all targets in the IDP must be fundable within approved budget provision. MSA 2000 chapter 5 sets out the purpose and character of Intergrated Development Plans (IDPs) and chapter 6 sets out the requirements for the reduction of performance management arrangement by municipalities in which IDPs play a key role. | J18: T 3.1.6

Sheet 3.1.7
A1: Employees: Water Services
A2: Job Level | B2: Year -1 | C2: Year 0
B3: Employees | C3: Posts | D3: Employees | E3: Vacancies (fulltime equivalents) | F3: Vacancies (as a % of total posts)
B4: No. | C4: No. | D4: No. | E4: No. | F4: %
A5: 0 - 3 | B5: 1 | C5: 1 | D5: 1 | E5: 0 | F5: =E5/C5 -> 0
A6: 4 - 6 | B6: 3 | C6: 3 | D6: 3 | E6: 0 | F6: =E6/C6 -> 0
A7: 7 - 9 | B7: 6 | C7: 8 | D7: 6 | E7: 2 | F7: =E7/C7 -> 0.25
A8: 10 - 12 | B8: 7 | C8: 15 | D8: 7 | E8: 8 | F8: 0.5333333333
A9: 13 - 15 | B9: 9 | C9: 15 | D9: 9 | E9: 6 | F9: 0.4
A10: 16 - 18 | B10: 11 | C10: 21 | D10: 11 | E10: 10 | F10: 0.4761904762
A11: 19 - 20 | B11: 18 | C11: 30 | D11: 18 | E11: 12 | F11: 0.4
A12: Total | B12: =SUM(B5:B11) -> 55 | C12: =SUM(C5:C11) -> 93 | D12: =SUM(D5:D11) -> 55 | E12: =SUM(E5:E11) -> 38 | F12: 0.4086021505
A13: Totals should equate to those included in the Chapter 4 total employee schedule. Employees and Posts numbers are as at 30 June. *Posts must be established and funded in the approved budget or adjustments budget. Full-time equivalents are calculated by taking the total number of working days lost (excluding weekends and public holidays) while a post remains vacant and adding together all such days lost by all posts within the same set (e.g. ‘senior management’) then dividing that total by 250 to give the number of posts equivalent to the accumulated days. T3.1.7

Sheet 3.1.8
A1: Financial Performance Year 0: Water Services
A2: R'000
A3: Details | B3: Year -1 | C3: Year 0
B4: Actual | C4: Original Budget | D4: Adjustment Budget | E4: Actual | F4: Variance to Budget
A5: Total Operational Revenue | B5: 120 | C5: 125 | D5: 100 | E5: 95 | F5: =(E5-C5)/E5 -> -0.3157894737
A6: Expenditure:
A7: Employees | B7: 125 | C7: 244 | D7: 250 | E7: 248 | F7: =(E7-C7)/E7 -> 0.01612903226
A8: Repairs and Maintenance | B8: 25 | C8: 244 | D8: 250 | E8: 248 | F8: 0.01612903226
A9: Other | B9: 45 | C9: 244 | D9: 250 | E9: 248 | F9: 0.01612903226
A10: Total Operational Expenditure | B10: =SUM(B7:B9) -> 195 | C10: =SUM(C7:C9) -> 732 | D10: 750 | E10: 744 | F10: 0.01612903226
A11: Net Operational Expenditure | B11: =B10-B5 -> 75 | C11: =C10-C5 -> 607 | D11: 650 | E11: 649 | F11: 0.06471494607
A12: Net expenditure to be consistent with summary T 5.1.2 in Chapter 5. Variances are calculated by dividing the difference between the Actual and Original Budget by the Actual. | F12: T 3.1.8

Sheet 3.1.9
A1: Capital Expenditure Year 0: Water Services
A2: R' 000
A3: Capital Projects | B3: Year 0
B4: Budget | C4: Adjustment Budget | D4: Actual Expenditure | E4: Variance from original budget | F4: Total Project Value
A5: Total All | B5: =SUM(B7:B10) -> 260 | C5: =SUM(C7:C10) -> 326 | D5: 378 | E5: =(D5-B5)/D5 -> 0.3121693122
A7: Project A | B7: 100 | C7: 130 | D7: 128 | E7: =(D7-B7)/D7 -> 0.21875 | F7: 280
A8: Project B | B8: 80 | C8: 91 | D8: 90 | E8: =(D8-B8)/D8 -> 0.1111111111 | F8: 150
A9: Project C | B9: 45 | C9: 50 | D9: 80 | E9: =(D9-B9)/D9 -> 0.4375 | F9: 320
A10: Project D | B10: 35 | C10: 55 | D10: 80 | E10: 0.5625 | F10: 90
A11: Total project value represents the estimated cost of the project on approval by council (including past and future expenditure as appropriate. | F11: T 3.1.9

Sheet 3.2.3
A1: Sanitation Service Delivery Levels
A2: *Households
A3: Description | B3: Ref | C3: Year -3 | D3: Year -2 | E3: Year -1 | F3: Year 0
C4: Outcome | D4: Outcome | E4: Outcome | F4: Original Budget | G4: Adjusted Budget | H4: Actual
C5: No. | D5: No. | E5: No. | F5: No. | G5: No. | H5: No.
A6: Sanitation/sewerage: (above minimum level)
A7: Flush toilet (connected to sewerage) | C7: 942223.7 | D7: 600230.4 | E7: 720152.4 | H7: 930208.4
A8: Flush toilet (with septic tank) | C8: 711541.6 | D8: 952001.6 | E8: 502134.6 | H8: 535099.4
A9: Chemical toilet | C9: 535101.6 | D9: 535114.8 | E9: 511350.4 | H9: 601134.6
A10: Pit toilet (ventilated) | C10: 123545 | D10: 135125 | E10: 102545 | H10: 100125
A11: Other toilet provisions (above min.service level) | C11: 12545 | D11: 13453 | E11: 14521 | H11: 11245
A12: Minimum Service Level and Above sub-total | C12: =SUM(C7:C11) -> 2324956.9 | D12: 2235924.8 | E12: 1850703.4 | F12: 0 | G12: 0 | H12: 2177812.4 | I12: 0 | J12: 0 | K12: 0
A13: Minimum Service Level and Above Percentage | C13: =C12/C20 -> 0.6893996537 | D13: 0.5987388198 | E13: 0.5547396854 | H13: 0.6314876483
A14: Sanitation/sewerage: (below minimum level)
A15: Bucket toilet | C15: 502133.5 | D15: 952110.5 | E15: 937909.5 | H15: 720329.5
A16: Other toilet provisions (below min.service level) | C16: 535101.6 | D16: 535101.6 | E16: 535101.6 | H16: 535101.6
A17: No toilet provisions | C17: 10245 | D17: 11254 | E17: 12451 | H17: 15458
A18: Below Minimum Service Level sub-total | C18: =SUM(C15:C17) -> 1047480.1 | D18: 1498466.1 | E18: 1485462.1 | F18: 0 | G18: 0 | H18: 1270889.1 | I18: 0 | J18: 0 | K18: 0
A19: Below Minimum Service Level Percentage | C19: =C18/C20 -> 0.3106003463 | D19: 0.4012611802 | E19: 0.4452603146 | H19: 0.3685123517
A20: Total households | B20: =#REF! ->  | C20: =C12+C18 -> 3372437 | D20: 3734390.9 | E20: 3336165.5 | F20: 0 | G20: 0 | H20: 3448701.5 | I20: 0 | J20: 0 | K20: 0
A21: *Total number of households including informal settlements | H21: T 3.2.3

Sheet 3.2.4
A1: Households - Sanitation Service Delivery Levels below the minimum
A2: Households
A3: Description | B3: Year -3 | C3: Year -2 | D3: Year -1 | E3: Year 0
B4: Actual | C4: Actual | D4: Actual | E4: Original Budget | F4: Adjusted Budget | G4: Actual
B5: No. | C5: No. | D5: No. | E5: No. | F5: No. | G5: No.
A6: Formal Settlements
A7: Total households | B7: 100000000 | C7: 100000000 | D7: 100000000 | E7: 100000000 | F7: 100000000 | G7: 100000000
A8: Households below minimum service level | B8: 25000000 | C8: 25000000 | D8: 25000000 | E8: 25000000 | F8: 25000000 | G8: 25000000
A9: Proportion of households below minimum service level | B9: =B8/B7 -> 0.25 | C9: 0.25 | D9: 0.25 | E9: 0.25 | F9: 0.25 | G9: 0.25
A10: Informal Settlements
A11: Total households | B11: 100000000 | C11: 100000000 | D11: 100000000 | E11: 100000000 | F11: 100000000 | G11: 100000000
A12: Households ts below minimum service level | B12: 25000000 | C12: 25000000 | D12: 25000000 | E12: 25000000 | F12: 25000000 | G12: 25000000
A13: Proportion of households ts below minimum service level | B13: =B12/B11 -> 0.25 | C13: 0.25 | D13: 0.25 | E13: 0.25 | F13: 0.25 | G13: 0.25
F14: T 3.2.4

Sheet 3.2.5
A21: Use data below to populate graph
A22: Access To Sanitation
A23: Access to Sanitation
B24: Proportion of households with access to sanitation
A25: Year -2 | B25: 70
A26: Year -1 | B26: 70
A27: Year 0 | B27: 72

Sheet 3.2.6
A1: Waste Water (Sanitation) Service Policy Objectives Taken From IDP
A2: Service Objectives | B2: Outline Service Targets | C2: Year -1 | E2: Year 0 | H2: Year 1 | I2: Year 3
C3: Target | D3: Actual | E3: Target | G3: Actual | H3: Target
A4: Service Indicators | C4: *Previous Year | E4: *Previous Year | F4: *Current Year | H4: *Current Year | I4: *Current Year | J4: *Following Year
A5: (i) | B5: (ii) | C5: (iii) | D5: (iv) | E5: (v) | F5: (vi) | G5: (vii) | H5: (viii) | I5: (ix) | J5: (x)
A6: Service Objective xxx
A7: Provision of toilets within standard | B7: Additional Households (HHs) provided with minimum sanitation during the year (Number of HHs remaining without minimum sanitation at year end) | C7: xxxxx additional HHs (xxx HHs remaining) | D7: xxxxx additional HHs (xxx HHs remaining) | E7: xxxxx additional HHs (xxx HHs remaining) | F7: xxxxx additional HHs (xxx HHs remaining) | G7: xxxxx additional HHs (xxx HHs remaining) | H7: xxxxx additional HHs (xxx HHs remaining) | I7: xxxxx additional HHs (xxx HHs remaining) | J7: xxxxx additional HHs (xxx HHs remaining)
A23: Note: This statement should include no more than the top four priority service objectives, including milestones that relate to the green drop status as set out by the Water Affairs department. The indicators and targets specified above (columns (i) and (ii)) must be incoporated in the indicator set for each municipality to which they apply. These are 'universal municipal indicators'. * 'Previous Year' refers to the targets that were set in the Year -1 Budget/IDP round; *'Current Year' refers to the targets set in the Year 0 Budget/IDP round. *'Following Year' refers to the targets set in the Year 1 Budget/IDP round. Note that all targets in the IDP must be fundable within approved budget provision. MSA 2000 chapter 5 sets out the purpose and character of Intergrated Development Plans (IDPs) and chapter 6 sets out the requirements for the reduction of performance management arrangement by municipalities in which IDPs play a key role. | J23: T 3.2.6

Sheet 3.2.7
A1: Employees: Sanitation Services
A2: Job Level | B2: Year -1 | C2: Year 0
B3: Employees | C3: Posts | D3: Employees | E3: Vacancies (fulltime equivalents) | F3: Vacancies (as a % of total posts)
B4: No. | C4: No. | D4: No. | E4: No. | F4: %
A5: 0 - 3 | B5: 1 | C5: 1 | D5: 1 | E5: 0 | F5: =E5/C5 -> 0
A6: 4 - 6 | B6: 3 | C6: 3 | D6: 3 | E6: 0 | F6: =E6/C6 -> 0
A7: 7 - 9 | B7: 6 | C7: 8 | D7: 6 | E7: 2 | F7: =E7/C7 -> 0.25
A8: 10 - 12 | B8: 7 | C8: 15 | D8: 7 | E8: 8 | F8: 0.5333333333
A9: 13 - 15 | B9: 9 | C9: 15 | D9: 9 | E9: 6 | F9: 0.4
A10: 16 - 18 | B10: 11 | C10: 21 | D10: 11 | E10: 10 | F10: 0.4761904762
A11: 19 - 20 | B11: 18 | C11: 30 | D11: 18 | E11: 12 | F11: 0.4
A12: Total | B12: =SUM(B5:B11) -> 55 | C12: =SUM(C5:C11) -> 93 | D12: =SUM(D5:D11) -> 55 | E12: =SUM(E5:E11) -> 38 | F12: 0.4086021505
A13: Totals should equate to those included in the Chapter 4 total employee schedule. Employees and Posts numbers are as at 30 June. *Posts must be established and funded in the approved budget or adjustments budget. Full-time equivalents are calculated by taking the total number of working days lost (excluding weekends and public holidays) while a post remains vacant and adding together all such days lost by all posts within the same set (e.g. ‘senior management’) then dividing that total by 250 to give the number of posts equivalent to the accumulated days. T 3.2.7

Sheet 3.2.8
A1: Financial Performance Year 0: Sanitation Services
A2: R'000
A3: Details | B3: Year -1 | C3: Year 0
B4: Actual | C4: Original Budget | D4: Adjustment Budget | E4: Actual | F4: Variance to Budget
A5: Total Operational Revenue | B5: 120 | C5: 125 | D5: 100 | E5: 95 | F5: =(E5-C5)/E5 -> -0.3157894737
A6: Expenditure:
A7: Employees | B7: 125 | C7: 244 | D7: 250 | E7: 248 | F7: =(E7-C7)/E7 -> 0.01612903226
A8: Repairs and Maintenance | B8: 25 | C8: 244 | D8: 250 | E8: 248 | F8: 0.01612903226
A9: Other | B9: 45 | C9: 244 | D9: 250 | E9: 248 | F9: 0.01612903226
A10: Total Operational Expenditure | B10: =SUM(B7:B9) -> 195 | C10: =SUM(C7:C9) -> 732 | D10: 750 | E10: 744 | F10: 0.01612903226
A11: Net Operational Expenditure | B11: =B10-B5 -> 75 | C11: =C10-C5 -> 607 | D11: 650 | E11: 649 | F11: 0.06471494607
A12: Net expenditure to be consistent with summary T 5.1.2 in Chapter 5. Variances are calculated by dividing the difference between the Actual and Original Budget by the Actual. | F12: T 3.2.8

Sheet 3.2.9
A1: Capital Expenditure Year 0: Sanitation Services
A2: R' 000
A3: Capital Projects | B3: Year 0
B4: Budget | C4: Adjustment Budget | D4: Actual Expenditure | E4: Variance from original budget | F4: Total Project Value
A5: Total All | B5: =SUM(B7:B10) -> 260 | C5: =SUM(C7:C10) -> 326 | D5: 378 | E5: =(D5-B5)/D5 -> 0.3121693122
A7: Project A | B7: 100 | C7: 130 | D7: 128 | E7: =(D7-B7)/D7 -> 0.21875 | F7: 280
A8: Project B | B8: 80 | C8: 91 | D8: 90 | E8: =(D8-B8)/D8 -> 0.1111111111 | F8: 150
A9: Project C | B9: 45 | C9: 50 | D9: 80 | E9: =(D9-B9)/D9 -> 0.4375 | F9: 320
A10: Project D | B10: 35 | C10: 55 | D10: 80 | E10: 0.5625 | F10: 90
A11: Total project value represents the estimated cost of the project on approval by council (including past and future expenditure as appropriate. | F11: T 3.2.9

Sheet 3.3.3
A1: Electricity Service Delivery Levels
A2: Households
A3: Description | B3: Ref | C3: Year -3 | D3: Year -2 | E3: Year -1 | F3: Year 0
C4: Actual | D4: Actual | E4: Actual | F4: Actual
C5: No. | D5: No. | E5: No. | F5: No.
A6: Energy: (above minimum level)
A7: Electricity (at least min.service level) | C7: 654845 | D7: 546845 | E7: 564825 | F7: 523455
A8: Electricity - prepaid (min.service level) | C8: 564864 | D8: 586886 | E8: 845686 | F8: 564865
A9: Minimum Service Level and Above sub-total | C9: =SUM(C7:C8) -> 1219709 | D9: 1133731 | E9: 1410511 | F9: 1088320 | G9: 0 | H9: 0 | I9: 0
A10: Minimum Service Level and Above Percentage | C10: =C9/C17 -> 0.5279234242 | D10: =D9/D17 -> 0.5279591354 | E10: =E9/E17 -> 0.6631042817 | F10: =F9/F17 -> 0.6209578997
A11: Energy: (below minimum level)
A12: Electricity (< min.service level) | C12: 112453 | D12: 123451 | E12: 123544 | F12: 123544
A13: Electricity - prepaid (< min. service level) | C13: 954684 | D13: 864568 | E13: 564865 | F13: 486568
A14: Other energy sources | C14: 23544 | D14: 25634 | E14: 28213 | F14: 54215
A15: Below Minimum Service Level sub-total | C15: =SUM(C12:C14) -> 1090681 | D15: 1013653 | E15: 716622 | F15: 664327 | G15: 0 | H15: 0 | I15: 0
A16: Below Minimum Service Level Percentage | C16: =C15/C17 -> 0.4720765758 | D16: =D15/D17 -> 0.4720408646 | E16: =E15/E17 -> 0.3368957183 | F16: =F15/F17 -> 0.3790421003
A17: Total number of households | B17: =#REF! ->  | C17: =C9+C15 -> 2310390 | D17: 2147384 | E17: 2127133 | F17: 1752647 | G17: 0 | H17: 0 | I17: 0
E18: T 3.3.3

Sheet 3.3.4
A1: Households - Electricity Service Delivery Levels below the minimum
F2: Households
A3: Description | B3: Year -3 | C3: Year -2 | D3: Year -1 | E3: Year 0
B4: Actual | C4: Actual | D4: Actual | E4: Original Budget | F4: Adjusted Budget | G4: Actual
B5: No. | C5: No. | D5: No. | E5: No. | F5: No. | G5: No.
A6: Formal Settlements
A7: Total households | B7: 100000000 | C7: 100000000 | D7: 100000000 | E7: 100000000 | F7: 100000000 | G7: 100000000
A8: Households below minimum service level | B8: 25000000 | C8: 25000000 | D8: 25000000 | E8: 25000000 | F8: 25000000 | G8: 25000000
A9: Proportion of households below minimum service level | B9: =B8/B7 -> 0.25 | C9: 0.25 | D9: 0.25 | E9: 0.25 | F9: 0.25 | G9: 0.25
A10: Informal Settlements
A11: Total households | B11: 100000000 | C11: 100000000 | D11: 100000000 | E11: 100000000 | F11: 100000000 | G11: 100000000
A12: Households ts below minimum service level | B12: 25000000 | C12: 25000000 | D12: 25000000 | E12: 25000000 | F12: 25000000 | G12: 25000000
A13: Proportion of households ts below minimum service level | B13: =B12/B11 -> 0.25 | C13: 0.25 | D13: 0.25 | E13: 0.25 | F13: 0.25 | G13: 0.25
F14: T 3.3.4

Sheet 3.3.5
A1: Electricity Service Policy Objectives Taken From IDP
A2: Service Objectives | B2: Outline Service Targets | C2: Year -1 | E2: Year 0 | H2: Year 1 | I2: Year 3
C3: Target | D3: Actual | E3: Target | G3: Actual | H3: Target
A4: Service Indicators | C4: *Previous Year | E4: *Previous Year | F4: *Current Year | H4: *Current Year | I4: *Current Year | J4: *Following Year
A5: (i) | B5: (ii) | C5: (iii) | D5: (iv) | E5: (v) | F5: (vi) | G5: (vii) | H5: (viii) | I5: (ix) | J5: (x)
A6: Service Objective xxx
A7: Provision of minimum supply of electricity | B7: Additional households (HHs) provided with minimum supply during the year (Number of HHs below minimum supply level) | C7: xxxxxx additional HHs (xxxxxx HHs below minimum) | D7: xxxxxx additional HHs (xxxxxx HHs below minimum) | E7: xxxxxx additional HHs (xxxxxx HHs below minimum) | F7: xxxxxx additional HHs (xxxxxx HHs below minimum) | G7: xxxxxx additional HHs (xxxxxx HHs below minimum) | H7: xxxxxx additional HHs (xxxxxx HHs below minimum) | I7: xxxxxx additional HHs (xxxxxx HHs below minimum) | J7: xxxxxx additional HHs (xxxxxx HHs below minimum)
A17: Note: This statement should include no more than the top four priority service objectives. The indicators and targets specified above (columns (i) and (ii)) must be incoporated in the indicator set for each municipality to which they apply. These are 'universal municipal indicators'. * 'Previous Year' refers to the targets that were set in the Year -1 Budget/IDP round; *'Current Year' refers to the targets set in the Year 0 Budget/IDP round. *'Following Year' refers to the targets set in the Year 1 Budget/IDP round. Note that all targets in the IDP must be fundable within approved budget provision. MSA 2000 chapter 5 sets out the purpose and character of Intergrated Development Plans (IDPs) and chapter 6 sets out the requirements for the reduction of performance management arrangement by municipalities in which IDPs play a key role. | J17: T 3.3.5

Sheet 3.3.6
A1: Employees: Electricity Services
A2: Job Level | B2: Year -1 | C2: Year 0
B3: Employees | C3: Posts | D3: Employees | E3: Vacancies (fulltime equivalents) | F3: Vacancies (as a % of total posts)
B4: No. | C4: No. | D4: No. | E4: No. | F4: %
A5: 0 - 3 | B5: 1 | C5: 1 | D5: 1 | E5: 0 | F5: =E5/C5 -> 0
A6: 4 - 6 | B6: 3 | C6: 3 | D6: 3 | E6: 0 | F6: =E6/C6 -> 0
A7: 7 - 9 | B7: 6 | C7: 8 | D7: 6 | E7: 2 | F7: =E7/C7 -> 0.25
A8: 10 - 12 | B8: 7 | C8: 15 | D8: 7 | E8: 8 | F8: 0.5333333333
A9: 13 - 15 | B9: 9 | C9: 15 | D9: 9 | E9: 6 | F9: 0.4
A10: 16 - 18 | B10: 11 | C10: 21 | D10: 11 | E10: 10 | F10: 0.4761904762
A11: 19 - 20 | B11: 18 | C11: 30 | D11: 18 | E11: 12 | F11: 0.4
A12: Total | B12: =SUM(B5:B11) -> 55 | C12: =SUM(C5:C11) -> 93 | D12: =SUM(D5:D11) -> 55 | E12: =SUM(E5:E11) -> 38 | F12: 0.4086021505
A13: Totals should equate to those included in the Chapter 4 total employee schedule. Employees and Posts numbers are as at 30 June. *Posts must be established and funded in the approved budget or adjustments budget. Full-time equivalents are calculated by taking the total number of working days lost (excluding weekends and public holidays) while a post remains vacant and adding together all such days lost by all posts within the same set (e.g. ‘senior management’) then dividing that total by 250 to give the number of posts equivalent to the accumulated days. T 3.3.6

Sheet 3.3.7
A1: Financial Performance Year 0: Electricity Services
A2: R'000
A3: Details | B3: Year -1 | C3: Year 0
B4: Actual | C4: Original Budget | D4: Adjustment Budget | E4: Actual | F4: Variance to Budget
A5: Total Operational Revenue | B5: 120 | C5: 125 | D5: 100 | E5: 95 | F5: =(E5-C5)/E5 -> -0.3157894737
A6: Expenditure:
A7: Employees | B7: 125 | C7: 244 | D7: 250 | E7: 248 | F7: =(E7-C7)/E7 -> 0.01612903226
A8: Repairs and Maintenance | B8: 25 | C8: 244 | D8: 250 | E8: 248 | F8: 0.01612903226
A9: Other | B9: 45 | C9: 244 | D9: 250 | E9: 248 | F9: 0.01612903226
A10: Total Operational Expenditure | B10: =SUM(B7:B9) -> 195 | C10: =SUM(C7:C9) -> 732 | D10: 750 | E10: 744 | F10: 0.01612903226
A11: Net Operational Expenditure | B11: =B10-B5 -> 75 | C11: =C10-C5 -> 607 | D11: 650 | E11: 649 | F11: 0.06471494607
A12: Net expenditure to be consistent with summary T 5.1.2 in Chapter 5. Variances are calculated by dividing the difference between the Actual and Original Budget by the Actual. | F12: T 3.3.7

Sheet 3.3.8
A1: Capital Expenditure Year 0: Electricity Services
A2: R' 000
A3: Capital Projects | B3: Year 0
B4: Budget | C4: Adjustment Budget | D4: Actual Expenditure | E4: Variance from original budget | F4: Total Project Value
A5: Total All | B5: =SUM(B7:B10) -> 260 | C5: =SUM(C7:C10) -> 326 | D5: 378 | E5: =(D5-B5)/D5 -> 0.3121693122
A7: Project A | B7: 100 | C7: 130 | D7: 128 | E7: =(D7-B7)/D7 -> 0.21875 | F7: 280
A8: Project B | B8: 80 | C8: 91 | D8: 90 | E8: =(D8-B8)/D8 -> 0.1111111111 | F8: 150
A9: Project C | B9: 45 | C9: 50 | D9: 80 | E9: =(D9-B9)/D9 -> 0.4375 | F9: 320
A10: Project D | B10: 35 | C10: 55 | D10: 80 | E10: 0.5625 | F10: 90
A11: Total project value represents the estimated cost of the project on approval by council (including past and future expenditure as appropriate. | F11: T 3.3.8

Sheet 3.4.2
A1: Solid Waste Service Delivery Levels
E2: Households
A3: Description | B3: Ref | C3: Year -3 | D3: Year -2 | E3: Year -1 | F3: Year 0
C4: Actual | D4: Actual | E4: Actual | F4: Actual
C5: No. | D5: No. | E5: No. | F5: No.
A6: Solid Waste Removal: (Minimum level)
A7: Removed at least once a week | C7: 2895485 | D7: 2684568 | E7: 2845684 | F7: 2235452
A8: Minimum Service Level and Above sub-total | C8: =SUM(C7) -> 2895485 | D8: 2684568 | E8: 2845684 | F8: 2235452 | G8: 0 | H8: 0 | I8: 0
A9: Minimum Service Level and Above percentage | C9: =C8/C18 -> 0.5092979681 | D9: =D8/D18 -> 0.4710208454 | E9: =E8/E18 -> 0.5152114235 | F9: =F8/F18 -> 0.447912723
A10: Solid Waste Removal: (Below minimum level)
A11: Removed less frequently than once a week | C11: 654845 | D11: 546845 | E11: 564825 | F11: 523455
A12: Using communal refuse dump | C12: 865486 | D12: 845648 | E12: 486545 | F12: 864585
A13: Using own refuse dump | C13: 654845 | D13: 546845 | E13: 564825 | F13: 523455
A14: Other rubbish disposal | C14: 502133.5 | D14: 952110.5 | E14: 937909.5 | F14: 720329.5
A15: No rubbish disposal | C15: 112453 | D15: 123451 | E15: 123544 | F15: 123544
A16: Below Minimum Service Level sub-total | C16: =SUM(C11:C15) -> 2789762.5 | D16: 3014899.5 | E16: 2677648.5 | F16: 2755368.5 | G16: 0 | H16: 0 | I16: 0
A17: Below Minimum Service Level percentage | C17: =C16/C18 -> 0.4907020319 | D17: =D16/D18 -> 0.5289791546 | E17: =E16/E18 -> 0.4847885765 | F17: =F16/F18 -> 0.552087277
A18: Total number of households | B18: =#REF! ->  | C18: =C8+C16 -> 5685247.5 | D18: 5699467.5 | E18: 5523332.5 | F18: 4990820.5 | G18: 0 | H18: 0 | I18: 0
E19: T 3.4.2

Sheet 3.4.3
A1: Households - Solid Waste Service Delivery Levels below the minimum
F2: Households
A3: Description | B3: Year -3 | C3: Year -2 | D3: Year -1 | E3: Year 0
B4: Actual | C4: Actual | D4: Actual | E4: Original Budget | F4: Adjusted Budget | G4: Actual
B5: No. | C5: No. | D5: No. | E5: No. | F5: No. | G5: No.
A6: Formal Settlements
A7: Total households | B7: 100000000 | C7: 100000000 | D7: 100000000 | E7: 100000000 | F7: 100000000 | G7: 100000000
A8: Households below minimum service level | B8: 25000000 | C8: 25000000 | D8: 25000000 | E8: 25000000 | F8: 25000000 | G8: 25000000
A9: Proportion of households below minimum service level | B9: =B8/B7 -> 0.25 | C9: 0.25 | D9: 0.25 | E9: 0.25 | F9: 0.25 | G9: 0.25
A10: Informal Settlements
A11: Total households | B11: 100000000 | C11: 100000000 | D11: 100000000 | E11: 100000000 | F11: 100000000 | G11: 100000000
A12: Households ts below minimum service level | B12: 25000000 | C12: 25000000 | D12: 25000000 | E12: 25000000 | F12: 25000000 | G12: 25000000
A13: Proportion of households ts below minimum service level | B13: =B12/B11 -> 0.25 | C13: 0.25 | D13: 0.25 | E13: 0.25 | F13: 0.25 | G13: 0.25
F14: T 3.4.3

Sheet 3.4.4
A1: Waste Management Service Policy Objectives Taken From IDP
A2: Service Objectives | B2: Outline Service Targets | C2: Year -1 | E2: Year 0 | H2: Year 1 | I2: Year 3
C3: Target | D3: Actual | E3: Target | G3: Actual | H3: Target
A4: Service Indicators | C4: *Previous Year | E4: *Previous Year | F4: *Current Year | H4: *Current Year | I4: *Current Year | J4: *Following Year
A5: (i) | B5: (ii) | C5: (iii) | D5: (iv) | E5: (v) | F5: (vi) | G5: (vii) | H5: (viii) | I5: (ix) | J5: (x)
A6: Service Objective xxx
A7: Provision of weekly collection service per household (HH) | B7: Propotionate reduction in average weekly collection failures year on year (average number of collection failures each week) | C7: xxx weekly collection failures | D7: % reduction from year -1 (xxx weekly collection failures) | E7: % reduction from year -1 (xxx weekly collection failures) | F7: % reduction from year -1 (xxx weekly collection failures) | G7: % reduction from year -1 (xxx weekly collection failures) | H7: % reduction from year -1 (xxx weekly collection failures) | I7: % reduction from year -1 (xxx weekly collection failures) | J7: % reduction from year -1 (xxx weekly collection failures)
A8: Future capacity of existing and earmarked (approved use and in council possession) waste disposal sites | B8: The amount of spare capacity available in terms of the number of years capacity available at the current rate of landfill usage | C8: T0 years of unused landfill capacity available | D8: A0 years of unused landfill capacity available | E8: T1 years of unused landfill capacity available | F8: T1 years of unused landfill capacity available | G8: A1 years of unused landfill capacity available | H8: T2 years of unused landfill capacity available | I8: T5 years of unused landfill capacity available | J8: T5 years of unused landfill capacity available
A9: Proportion of waste that is recycled | B9: Volumes of waste recycled as a percentage of total volume of waste disposed of at landfill sites. | C9: T0% of year 0 waste recycled | D9: A0% of year 0 waste recycled | E9: T1% of year 0 waste recycled | F9: T1% of year 0 waste recycled | G9: A1% of year 0 waste recycled | H9: T2% of year 0 waste recycled | I9: T5% of year 0 waste recycled | J9: T5% of year 0 waste recycled
A10: Proportion of landfill sites in compliance with the Enviromental Conservation Act 1989. | B10: x% of landfill sites by volume that are being managed in compliance with the Enviromental Conservation Act 1989. | C10: T0% of sites compliant | D10: A0% of sites compliant | E10: T1% of sites compliant | F10: T1% of sites compliant | G10: A1% of sites compliant | H10: T2% of sites compliant | I10: of sites compliant | J10: T5% of sites compliant
A23: Note: This statement should include no more than the top four priority service objectives. The indicators and targets specified above (columns (i) and (ii)) must be incoporated in the indicator set for each municipality to which they apply. These are 'universal municipal indicators'. * 'Previous Year' refers to the targets that were set in the Year -1 Budget/IDP round; *'Current Year' refers to the targets set in the Year 0 Budget/IDP round. *'Following Year' refers to the targets set in the Year 1 Budget/IDP round. Note that all targets in the IDP must be fundable within approved budget provision. MSA 2000 chapter 5 sets out the purpose and character of Intergrated Development Plans (IDPs) and chapter 6 sets out the requirements for the reduction of performance management arrangement by municipalities in which IDPs play a key role. | J23: T 3.4.4

Sheet 3.4.5
A1: Employees: Solid Waste Magement Services
A2: Job Level | B2: Year -1 | C2: Year 0
B3: Employees | C3: Posts | D3: Employees | E3: Vacancies (fulltime equivalents) | F3: Vacancies (as a % of total posts)
B4: No. | C4: No. | D4: No. | E4: No. | F4: %
A5: 0 - 3 | B5: 1 | C5: 1 | D5: 1 | E5: 0 | F5: =E5/C5 -> 0
A6: 4 - 6 | B6: 3 | C6: 3 | D6: 3 | E6: 0 | F6: =E6/C6 -> 0
A7: 7 - 9 | B7: 6 | C7: 8 | D7: 6 | E7: 2 | F7: =E7/C7 -> 0.25
A8: 10 - 12 | B8: 7 | C8: 15 | D8: 7 | E8: 8 | F8: 0.5333333333
A9: 13 - 15 | B9: 9 | C9: 15 | D9: 9 | E9: 6 | F9: 0.4
A10: 16 - 18 | B10: 11 | C10: 21 | D10: 11 | E10: 10 | F10: 0.4761904762
A11: 19 - 20 | B11: 18 | C11: 30 | D11: 18 | E11: 12 | F11: 0.4
A12: Total | B12: =SUM(B5:B11) -> 55 | C12: =SUM(C5:C11) -> 93 | D12: =SUM(D5:D11) -> 55 | E12: =SUM(E5:E11) -> 38 | F12: 0.4086021505
A13: Totals should equate to those included in the Chapter 4 total employee schedule. Employees and Posts numbers are as at 30 June. *Posts must be established and funded in the approved budget or adjustments budget. Full-time equivalents are calculated by taking the total number of working days lost (excluding weekends and public holidays) while a post remains vacant and adding together all such days lost by all posts within the same set (e.g. ‘senior management’) then dividing that total by 250 to give the number of posts equivalent to the accumulated days. T3.4.5

Sheet 3.4.6
A1: Employees: Waste Disposal and Other Services
A2: Job Level | B2: Year -1 | C2: Year 0
B3: Employees | C3: Posts | D3: Employees | E3: Vacancies (fulltime equivalents) | F3: Vacancies (as a % of total posts)
B4: No. | C4: No. | D4: No. | E4: No. | F4: %
A5: 0 - 3 | B5: 1 | C5: 1 | D5: 1 | E5: 0 | F5: =E5/C5 -> 0
A6: 4 - 6 | B6: 3 | C6: 3 | D6: 3 | E6: 0 | F6: =E6/C6 -> 0
A7: 7 - 9 | B7: 6 | C7: 8 | D7: 6 | E7: 2 | F7: =E7/C7 -> 0.25
A8: 10 - 12 | B8: 7 | C8: 15 | D8: 7 | E8: 8 | F8: 0.5333333333
A9: 13 - 15 | B9: 9 | C9: 15 | D9: 9 | E9: 6 | F9: 0.4
A10: 16 - 18 | B10: 11 | C10: 21 | D10: 11 | E10: 10 | F10: 0.4761904762
A11: 19 - 20 | B11: 18 | C11: 30 | D11: 18 | E11: 12 | F11: 0.4
A12: Total | B12: =SUM(B5:B11) -> 55 | C12: =SUM(C5:C11) -> 93 | D12: =SUM(D5:D11) -> 55 | E12: =SUM(E5:E11) -> 38 | F12: 0.4086021505
A13: Totals should equate to those included in the Chapter 4 total employee schedule. Employees and Posts numbers are as at 30 June. *Posts must be established and funded in the approved budget or adjustments budget. Full-time equivalents are calculated by taking the total number of working days lost (excluding weekends and public holidays) while a post remains vacant and adding together all such days lost by all posts within the same set (e.g. ‘senior management’) then dividing that total by 250 to give the number of posts equivalent to the accumulated days. T3.4.6

Sheet 3.4.7
A1: Financial Performance Year 0: Solid Waste Management Services
A2: R'000
A3: Details | B3: Year -1 | C3: Year 0
B4: Actual | C4: Original Budget | D4: Adjustment Budget | E4: Actual | F4: Variance to Budget
A5: Total Operational Revenue | B5: 120 | C5: 125 | D5: 100 | E5: 95 | F5: =(E5-C5)/E5 -> -0.3157894737
A6: Expenditure:
A7: Employees | B7: 125 | C7: 244 | D7: 250 | E7: 248 | F7: =(E7-C7)/E7 -> 0.01612903226
A8: Repairs and Maintenance | B8: 25 | C8: 244 | D8: 250 | E8: 248 | F8: 0.01612903226
A9: Other | B9: 45 | C9: 244 | D9: 250 | E9: 248 | F9: 0.01612903226
A10: Total Operational Expenditure | B10: =SUM(B7:B9) -> 195 | C10: =SUM(C7:C9) -> 732 | D10: 750 | E10: 744 | F10: 0.01612903226
A11: Net Operational Expenditure | B11: =B10-B5 -> 75 | C11: =C10-C5 -> 607 | D11: 650 | E11: 649 | F11: 0.06471494607
A12: Net expenditure to be consistent with summary T 5.1.2 in Chapter 5. Variances are calculated by dividing the difference between the Actual and Original Budget by the Actual. | F12: T 3.4.7

Sheet 3.4.8
A1: Financial Performance Year 0: Waste Disposal and Other Services
A2: R'000
A3: Details | B3: Year -1 | C3: Year 0
B4: Actual | C4: Original Budget | D4: Adjustment Budget | E4: Actual | F4: Variance to Budget
A5: Total Operational Revenue | B5: 120 | C5: 125 | D5: 100 | E5: 95 | F5: =(E5-C5)/E5 -> -0.3157894737
A6: Expenditure:
A7: Employees | B7: 125 | C7: 244 | D7: 250 | E7: 248 | F7: =(E7-C7)/E7 -> 0.01612903226
A8: Repairs and Maintenance | B8: 25 | C8: 244 | D8: 250 | E8: 248 | F8: 0.01612903226
A9: Other | B9: 45 | C9: 244 | D9: 250 | E9: 248 | F9: 0.01612903226
A10: Total Operational Expenditure | B10: =SUM(B7:B9) -> 195 | C10: =SUM(C7:C9) -> 732 | D10: 750 | E10: 744 | F10: 0.01612903226
A11: Net Operational Expenditure | B11: =B10-B5 -> 75 | C11: =C10-C5 -> 607 | D11: 650 | E11: 649 | F11: 0.06471494607
A12: Net expenditure to be consistent with summary T 5.1.2 in Chapter 5. Variances are calculated by dividing the difference between the Actual and Original Budget by the Actual. | F12: T 3.4.8

Sheet 3.4.9
A1: Capital Expenditure Year 0: Waste Management Services
A2: R' 000
A3: Capital Projects | B3: Year 0
B4: Budget | C4: Adjustment Budget | D4: Actual Expenditure | E4: Variance from original budget | F4: Total Project Value
A5: Total All | B5: =SUM(B7:B10) -> 260 | C5: =SUM(C7:C10) -> 326 | D5: 378 | E5: =(D5-B5)/D5 -> 0.3121693122
A7: Project A | B7: 100 | C7: 130 | D7: 128 | E7: =(D7-B7)/D7 -> 0.21875 | F7: 280
A8: Project B | B8: 80 | C8: 91 | D8: 90 | E8: =(D8-B8)/D8 -> 0.1111111111 | F8: 150
A9: Project C | B9: 45 | C9: 50 | D9: 80 | E9: =(D9-B9)/D9 -> 0.4375 | F9: 320
A10: Project D | B10: 35 | C10: 55 | D10: 80 | E10: 0.5625 | F10: 90
A11: Total project value represents the estimated cost of the project on approval by council (including past and future expenditure as appropriate. | F11: T 3.4.9

Sheet 3.5.2
A1: Percentage of households with access to basic housing
A2: Year end | B2: Total households (including in formal and informal settlements) | C2: Households in formal settlements | D2: Percentage of HHs in formal settlements
A3: Year -3 | B3: 560000 | C3: 350000 | D3: =C3/B3 -> 0.625
A4: Year -2 | B4: 654000 | C4: 450000 | D4: =C4/B4 -> 0.6880733945
A5: Year -1 | B5: 654000 | C5: 500000 | D5: =C5/B5 -> 0.7645259939
A6: Year 0 | B6: 684000 | C6: 540000 | D6: =C6/B6 -> 0.7894736842
D7: T 3.5.2

Sheet 3.5.3
A1: Housing Service Policy Objectives Taken From IDP
A2: Service Objectives | B2: Outline Service Targets | C2: Year 0 | E2: Year 1 | H2: Year 2 | I2: Year 3
C3: Target | D3: Actual | E3: Target | G3: Actual | H3: Target
A4: Service Indicators | C4: *Previous Year | E4: *Previous Year | F4: *Current Year | H4: *Current Year | I4: *Current Year | J4: *Following Year
A5: (i) | B5: (ii) | C5: (iii) | D5: (iv) | E5: (v) | F5: (vi) | G5: (vii) | H5: (viii) | I5: (ix) | J5: (x)
A6: Service Objective xxx
A7: Provision for housing for all households | B7: Additional houses provided during the year (Houses required at year end) | C7: xxxxxx additional houses (xxxxxx houses required) | D7: xxxxxx additional houses (xxxxxx houses required) | E7: xxxxxx additional houses (xxxxxx houses required) | F7: xxxxxx additional houses (xxxxxx houses required) | G7: xxxxxx additional houses (xxxxxx houses required) | H7: xxxxxx additional houses (xxxxxx houses required) | I7: xxxxxx additional houses (xxxxxx houses required) | J7: xxxxxx additional houses (xxxxxx houses required)
A23: Note: This statement should include no more than the top four priority service objectives. The indicators and targets specified above (columns (i) and (ii)) must be incoporated in the indicator set for each municipality to which they apply. These are 'universal municipal indicators'. * 'Previous Year' refers to the targets that were set in the Year -1 Budget/IDP round; *'Current Year' refers to the targets set in the Year 0 Budget/IDP round. *'Following Year' refers to the targets set in the Year 1 Budget/IDP round. Note that all targets in the IDP must be fundable within approved budget provision. MSA 2000 chapter 5 sets out the purpose and character of Intergrated Development Plans (IDPs) and chapter 6 sets out the requirements for the reduction of performance management arrangement by municipalities in which IDPs play a key role. | J23: T3.5.3

Sheet 3.5.4
A1: Employees: Housing Services
A2: Job Level | B2: Year -1 | C2: Year 0
B3: Employees | C3: Posts | D3: Employees | E3: Vacancies (fulltime equivalents) | F3: Vacancies (as a % of total posts)
B4: No. | C4: No. | D4: No. | E4: No. | F4: %
A5: 0 - 3 | B5: 1 | C5: 1 | D5: 1 | E5: 0 | F5: =E5/C5 -> 0
A6: 4 - 6 | B6: 3 | C6: 3 | D6: 3 | E6: 0 | F6: =E6/C6 -> 0
A7: 7 - 9 | B7: 6 | C7: 8 | D7: 6 | E7: 2 | F7: =E7/C7 -> 0.25
A8: 10 - 12 | B8: 7 | C8: 15 | D8: 7 | E8: 8 | F8: 0.5333333333
A9: 13 - 15 | B9: 9 | C9: 15 | D9: 9 | E9: 6 | F9: 0.4
A10: 16 - 18 | B10: 11 | C10: 21 | D10: 11 | E10: 10 | F10: 0.4761904762
A11: 19 - 20 | B11: 18 | C11: 30 | D11: 18 | E11: 12 | F11: 0.4
A12: Total | B12: =SUM(B5:B11) -> 55 | C12: =SUM(C5:C11) -> 93 | D12: =SUM(D5:D11) -> 55 | E12: =SUM(E5:E11) -> 38 | F12: 0.4086021505
A13: Totals should equate to those included in the Chapter 4 total employee schedule. Employees and Posts numbers are as at 30 June. *Posts must be established and funded in the approved budget or adjustments budget. Full-time equivalents are calculated by taking the total number of working days lost (excluding weekends and public holidays) while a post remains vacant and adding together all such days lost by all posts within the same set (e.g. ‘senior management’) then dividing that total by 250 to give the number of posts equivalent to the accumulated days. T 3.5.4

Sheet 3.5.5
A1: Financial Performance Year 0: Housing Services
A2: R'000
A3: Details | B3: Year -1 | C3: Year 0
B4: Actual | C4: Original Budget | D4: Adjustment Budget | E4: Actual | F4: Variance to Budget
A5: Total Operational Revenue | B5: 120 | C5: 125 | D5: 100 | E5: 95 | F5: =(E5-C5)/E5 -> -0.3157894737
A6: Expenditure:
A7: Employees | B7: 125 | C7: 244 | D7: 250 | E7: 248 | F7: =(E7-C7)/E7 -> 0.01612903226
A8: Repairs and Maintenance | B8: 25 | C8: 244 | D8: 250 | E8: 248 | F8: 0.01612903226
A9: Other | B9: 45 | C9: 244 | D9: 250 | E9: 248 | F9: 0.01612903226
A10: Total Operational Expenditure | B10: =SUM(B7:B9) -> 195 | C10: =SUM(C7:C9) -> 732 | D10: 750 | E10: 744 | F10: 0.01612903226
A11: Net Operational Expenditure | B11: =B10-B5 -> 75 | C11: =C10-C5 -> 607 | D11: 650 | E11: 649 | F11: 0.06471494607
A12: Net expenditure to be consistent with summary T 5.1.2 in Chapter 5. Variances are calculated by dividing the difference between the Actual and Original Budget by the Actual. | F12: T 3.5.5

Sheet 3.5.6
A1: Capital Expenditure Year 0: Housing Services
A2: R' 000
A3: Capital Projects | B3: Year 0
B4: Budget | C4: Adjustment Budget | D4: Actual Expenditure | E4: Variance from original budget | F4: Total Project Value
A5: Total All | B5: =SUM(B7:B10) -> 260 | C5: =SUM(C7:C10) -> 326 | D5: 378 | E5: =(D5-B5)/D5 -> 0.3121693122
A7: Project A | B7: 100 | C7: 130 | D7: 128 | E7: =(D7-B7)/D7 -> 0.21875 | F7: 280
A8: Project B | B8: 80 | C8: 91 | D8: 90 | E8: =(D8-B8)/D8 -> 0.1111111111 | F8: 150
A9: Project C | B9: 45 | C9: 50 | D9: 80 | E9: =(D9-B9)/D9 -> 0.4375 | F9: 320
A10: Project D | B10: 35 | C10: 55 | D10: 80 | E10: 0.5625 | F10: 90
A11: Total project value represents the estimated cost of the project on approval by council (including past and future expenditure as appropriate. | F11: T 3.5.6

Sheet 3.6.3
A1: Free Basic Services To Low Income Households
B2: Number of households
B3: Total | C3: Households earning less than R1,100 per month
D4: Free Basic Water | F4: Free Basic Sanitation | H4: Free Basic Electricity | J4: Free Basic Refuse
C5: Total | D5: Access | E5: % | F5: Access | G5: % | H5: Access | I5: % | J5: Access | K5: %
A6: Year -2 | B6: 100000 | C6: 18000 | D6: 12000 | E6: =D6/C6 -> 0.6666666667 | F6: 10000 | G6: =F6/C6 -> 0.5555555556 | H6: 13000 | I6: =H6/C6 -> 0.7222222222 | J6: 7000 | K6: =J6/C6 -> 0.3888888889
A7: Year -1 | B7: 103000 | C7: 18500 | D7: 13000 | E7: =D7/C7 -> 0.7027027027 | F7: 11000 | G7: =F7/C7 -> 0.5945945946 | H7: 14500 | I7: =H7/C7 -> 0.7837837838 | J7: 8000 | K7: =J7/C7 -> 0.4324324324
A8: Year 0 | B8: 105000 | C8: 19000 | D8: 15000 | E8: =D8/C8 -> 0.7894736842 | F8: 12000 | G8: =F8/C8 -> 0.6315789474 | H8: 16100 | I8: =H8/C8 -> 0.8473684211 | J8: 9000 | K8: =J8/C8 -> 0.4736842105
J9: T 3.6.3

Sheet 3.6.4
A1: Financial Performance Year 0: Cost to Municipality of Free Basic Services Delivered
A2: Services Delivered | B2: Year -1 | C2: Year 0
B3: Actual | C3: Budget | D3: Adjustment Budget | E3: Actual | F3: Variance to Budget
A4: Water | B4: 200 | C4: 244 | D4: 250 | E4: 248 | F4: =(E4-C4)/E4 -> 0.01612903226
A5: Waste Water (Sanitation) | B5: 220 | C5: 240 | D5: 250 | E5: 245 | F5: =(E5-C5)/E5 -> 0.02040816327
A6: Electricity | B6: 100 | C6: 120 | D6: 130 | E6: 135 | F6: 0.1111111111
A7: Waste Management (Solid Waste) | B7: 105 | C7: 110 | D7: 120 | E7: 125 | F7: 0.12
A8: Total | B8: =SUM(B4:B7) -> 625 | C8: =SUM(C4:C7) -> 714 | D8: 750 | E8: 753 | F8: 0.05179282869
E9: T 3.6.4

Sheet 3.6.5
A1: Free Basic Service Policy Objectives Taken From IDP
A2: Service Objectives | B2: Outline Service Targets | C2: Year -1 | E2: Year 0 | H2: Year 1 | I2: Year 3
C3: Target | D3: Actual | E3: Target | G3: Actual | H3: Target
A4: Service Indicators | C4: *Previous Year | E4: *Previous Year | F4: *Current Year | H4: *Current Year | I4: *Current Year | J4: *Following Year
A5: (i) | B5: (ii) | C5: (iii) | D5: (iv) | E5: (v) | F5: (vi) | G5: (vii) | H5: (viii) | I5: (ix) | J5: (x)
A6: Service Objective xxx
A7: Provision of alternative support to low income households that do not receive all Free Basic Services | B7: Low income households (LIHs) who do not receive all the free basic services but do receive alternative support (Total number of LIHs not in receipt of free basic services) | C7: xxxx LIHs receiving support (out of xxx LIHs in total) | D7: xxxx LIHs receiving support (out of xxx LIHs in total) | E7: xxxx LIHs receiving support (out of xxx LIHs in total) | F7: xxxx LIHs receiving support (out of xxx LIHs in total) | G7: xxxx LIHs receiving support (out of xxx LIHs in total) | H7: xxxx LIHs receiving support (out of xxx LIHs in total) | I7: xxxx LIHs receiving support (out of xxx LIHs in total) | J7: xxxx LIHs receiving support (out of xxx LIHs in total)
A23: Note: This statement should include no more than the top four priority service objectives. The indicators and targets specified above (columns (i) and (ii)) must be incoporated in the indicator set for each municipality to which they apply. These are 'universal municipal indicators'. * 'Previous Year' refers to the targets that were set in the Year -1 Budget/IDP round; *'Current Year' refers to the targets set in the Year 0 Budget/IDP round. *'Following Year' refers to the targets set in the Year 1 Budget/IDP round. Note that all targets in the IDP must be fundable within approved budget provision. MSA 2000 chapter 5 sets out the purpose and character of Intergrated Development Plans (IDPs) and chapter 6 sets out the requirements for the reduction of performance management arrangement by municipalities in which IDPs play a key role. | J23: T 3.6.5

Sheet 3.7.2
A1: Gravel Road Infrastructure
E2: Kilometers
B3: Total gravel roads | C3: New gravel roads constructed | D3: Gravel roads upgraded to tar | E3: Gravel roads graded/maintained
A4: Year -2 | B4: 145 | C4: 15 | D4: 10 | E4: 100
A5: Year -1 | B5: 160 | C5: 20 | D5: 12 | E5: 120
A6: Year 0 | B6: 166 | C6: 25 | D6: 14 | E6: 140
E7: T 3.7.2

Sheet 3.7.3
A1: Tarred Road Infrastructure
A2: Kilometers
B3: Total tarred roads | C3: New tar roads | D3: Existing tar roads re-tarred | E3: Existing tar roads re-sheeted | F3: Tar roads maintained
A4: Year -2 | B4: 85 | C4: 10 | D4: 23 | E4: 18 | F4: 100
A5: Year -1 | B5: 98 | C5: 14 | D5: 25 | E5: 15 | F5: 120
A6: Year 0 | B6: 114 | C6: 20 | D6: 30 | E6: 25 | F6: 140
F7: T 3.7.3

Sheet 3.7.4
A1: Cost of Construction/Maintenance
A2: R' 000
B3: Gravel | E3: Tar
B4: New | C4: Gravel - Tar | D4: Maintained | E4: New | F4: Re-worked | G4: Maintained
A5: Year -2 | B5: 450000 | C5: 1700000 | D5: 250000 | E5: 1950000 | F5: 1050000 | G5: 400000
A6: Year -1 | B6: 475000 | C6: 1800000 | D6: 260000 | E6: 2020000 | F6: 1220000 | G6: 500000
A7: Year 0 | B7: 490000 | C7: 1900000 | D7: 280000 | E7: 2300000 | F7: 1300000 | G7: 550000
G8: T 3.7.4

Sheet 3.7.6
A1: Road Service Policy Objectives Taken From IDP
A2: Service Objectives | B2: Outline Service Targets | C2: Year -1 | E2: Year 0 | H2: Year 1 | I2: Year 3
C3: Target | D3: Actual | E3: Target | G3: Actual | H3: Target
A4: Service Indicators | C4: *Previous Year | E4: *Previous Year | F4: *Current Year | H4: *Current Year | I4: *Current Year | J4: *Following Year
A5: (i) | B5: (ii) | C5: (iii) | D5: (iv) | E5: (v) | F5: (vi) | G5: (vii) | H5: (viii) | I5: (ix) | J5: (x)
A6: Service Objective xxx
A7: Elimination of gravel roads in townships | B7: Kilometers of gravel roads tarred (Kilometers of gravel road remaining) | C7: xxx kms gravel roads tarred (xxx kms gravel roads remaining) | D7: xxx kms gravel roads tarred (xxx kms gravel roads remaining) | E7: xxx kms gravel roads tarred (xxx kms gravel roads remaining) | F7: xxx kms gravel roads tarred (xxx kms gravel roads remaining) | G7: xxx kms gravel roads tarred (xxx kms gravel roads remaining) | H7: Baseline (xxx kms gravel roads remaining) | I7: xxx kms gravel roads tarred (xxx kms gravel roads remaining) | J7: xxx kms gravel roads tarred (xxx kms gravel roads remaining)
A8: Development of municipal roads as required | B8: xxx kms of municipal roads developed | C8: xxx kms | D8: xxx kms | E8: xxx kms | F8: xxx kms | G8: xxx kms | H8: xxx kms | I8: xxx kms | J8: xxx kms
A23: Note: This statement should include no more than the top four priority service objectives. The indicators and targets specified above (columns (i) and (ii)) must be incoporated in the indicator set for each municipality to which they apply. These are 'universal municipal indicators'. * 'Previous Year' refers to the targets that were set in the Year -1 Budget/IDP round; *'Current Year' refers to the targets set in the Year 0 Budget/IDP round. *'Following Year' refers to the targets set in the Year 1 Budget/IDP round. Note that all targets in the IDP must be fundable within approved budget provision. MSA 2000 chapter 5 sets out the purpose and character of Intergrated Development Plans (IDPs) and chapter 6 sets out the requirements for the reduction of performance management arrangement by municipalities in which IDPs play a key role. | J23: T 3.7.6

Sheet 3.7.7
A1: Employees: Road Services
A2: Job Level | B2: Year -1 | C2: Year 0
B3: Employees | C3: Posts | D3: Employees | E3: Vacancies (fulltime equivalents) | F3: Vacancies (as a % of total posts)
B4: No. | C4: No. | D4: No. | E4: No. | F4: %
A5: 0 - 3 | B5: 1 | C5: 1 | D5: 1 | E5: 0 | F5: =E5/C5 -> 0
A6: 4 - 6 | B6: 3 | C6: 3 | D6: 3 | E6: 0 | F6: =E6/C6 -> 0
A7: 7 - 9 | B7: 6 | C7: 8 | D7: 6 | E7: 2 | F7: =E7/C7 -> 0.25
A8: 10 - 12 | B8: 7 | C8: 15 | D8: 7 | E8: 8 | F8: 0.5333333333
A9: 13 - 15 | B9: 9 | C9: 15 | D9: 9 | E9: 6 | F9: 0.4
A10: 16 - 18 | B10: 11 | C10: 21 | D10: 11 | E10: 10 | F10: 0.4761904762
A11: 19 - 20 | B11: 18 | C11: 30 | D11: 18 | E11: 12 | F11: 0.4
A12: Total | B12: =SUM(B5:B11) -> 55 | C12: =SUM(C5:C11) -> 93 | D12: =SUM(D5:D11) -> 55 | E12: =SUM(E5:E11) -> 38 | F12: 0.4086021505
A13: Totals should equate to those included in the Chapter 4 total employee schedule. Employees and Posts numbers are as at 30 June. *Posts must be established and funded in the approved budget or adjustments budget. Full-time equivalents are calculated by taking the total number of working days lost (excluding weekends and public holidays) while a post remains vacant and adding together all such days lost by all posts within the same set (e.g. ‘senior management’) then dividing that total by 250 to give the number of posts equivalent to the accumulated days. T3.7.7

Sheet 3.7.8
A1: Financial Performance Year 0: Road Services
A2: R'000
A3: Details | B3: Year -1 | C3: Year 0
B4: Actual | C4: Original Budget | D4: Adjustment Budget | E4: Actual | F4: Variance to Budget
A5: Total Operational Revenue | B5: 120 | C5: 125 | D5: 100 | E5: 95 | F5: =(E5-C5)/E5 -> -0.3157894737
A6: Expenditure:
A7: Employees | B7: 125 | C7: 244 | D7: 250 | E7: 248 | F7: =(E7-C7)/E7 -> 0.01612903226
A8: Repairs and Maintenance | B8: 25 | C8: 244 | D8: 250 | E8: 248 | F8: 0.01612903226
A9: Other | B9: 45 | C9: 244 | D9: 250 | E9: 248 | F9: 0.01612903226
A10: Total Operational Expenditure | B10: =SUM(B7:B9) -> 195 | C10: =SUM(C7:C9) -> 732 | D10: 750 | E10: 744 | F10: 0.01612903226
A11: Net Operational Expenditure | B11: =B10-B5 -> 75 | C11: =C10-C5 -> 607 | D11: 650 | E11: 649 | F11: 0.06471494607
A12: Net expenditure to be consistent with summary T 5.1.2 in Chapter 5. Variances are calculated by dividing the difference between the Actual and Original Budget by the Actual. | F12: T 3.7.8

Sheet 3.7.9
A1: Capital Expenditure Year 0: Road Services
A2: R' 000
A3: Capital Projects | B3: Year 0
B4: Budget | C4: Adjustment Budget | D4: Actual Expenditure | E4: Variance from original budget | F4: Total Project Value
A5: Total All | B5: =SUM(B7:B10) -> 260 | C5: =SUM(C7:C10) -> 326 | D5: 378 | E5: =(D5-B5)/D5 -> 0.3121693122
A7: Project A | B7: 100 | C7: 130 | D7: 128 | E7: =(D7-B7)/D7 -> 0.21875 | F7: 280
A8: Project B | B8: 80 | C8: 91 | D8: 90 | E8: =(D8-B8)/D8 -> 0.1111111111 | F8: 150
A9: Project C | B9: 45 | C9: 50 | D9: 80 | E9: =(D9-B9)/D9 -> 0.4375 | F9: 320
A10: Project D | B10: 35 | C10: 55 | D10: 80 | E10: 0.5625 | F10: 90
A11: Total project value represents the estimated cost of the project on approval by council (including past and future expenditure as appropriate. | F11: T 3.7.9

Sheet 3.8.2
A1: Municipal Bus Service Data
B2: Details | C2: Year -1 | D2: Year 0 | F2: Year 1
C3: Actual No. | D3: Estimate No. | E3: Actual No. | F3: Estimate No.
A4: 1 | B4: Passenger journeys
A5: 2 | B5: Seats available for all journeys
A6: 3 | B6: Average Unused Bus Capacity for all journeys | C6: %
A7: 4 | B7: Size of bus fleet at year end
A8: 5 | B8: Average number of Buses off the road at any one time | C8: %
A9: 6 | B9: Proportion of the fleet off road road at any one time | C9: %
A10: 7 | B10: No. of Bus journeys scheduled
A11: 8 | B11: No. of journeys cancelled
A12: 9 | B12: Proportion of journeys cancelled | C12: %
A13: T 3.8.2

Sheet 3.8.3
A1: Transport Service Policy Objectives Taken From IDP
A2: Service Objectives | B2: Outline Service Targets | C2: Year -1 | E2: Year 0 | H2: Year 1 | I2: Year 3
C3: Target | D3: Actual | E3: Target | G3: Actual | H3: Target
A4: Service Indicators | C4: *Previous Year | E4: *Previous Year | F4: *Current Year | H4: *Current Year | I4: *Current Year | J4: *Following Year
A5: (i) | B5: (ii) | C5: (iii) | D5: (iv) | E5: (v) | F5: (vi) | G5: (vii) | H5: (viii) | I5: (ix) | J5: (x)
A6: Service Objective xxx
A23: Note: This statement should include no more than the top four priority service objectives. The indicators and targets specified above (columns (i) and (ii)) must be incoporated in the indicator set for each municipality to which they apply. These are 'universal municipal indicators'. * 'Previous Year' refers to the targets that were set in the Year -1 Budget/IDP round; *'Current Year' refers to the targets set in the Year 0 Budget/IDP round. *'Following Year' refers to the targets set in the Year 1 Budget/IDP round. Note that all targets in the IDP must be fundable within approved budget provision. MSA 2000 chapter 5 sets out the purpose and character of Intergrated Development Plans (IDPs) and chapter 6 sets out the requirements for the reduction of performance management arrangement by municipalities in which IDPs play a key role. | J23: T 3.8.3

Sheet 3.8.4
A1: Employees: Transport Services
A2: Job Level | B2: Year -1 | C2: Year 0
B3: Employees | C3: Posts | D3: Employees | E3: Vacancies (fulltime equivalents) | F3: Vacancies (as a % of total posts)
B4: No. | C4: No. | D4: No. | E4: No. | F4: %
A5: 0 - 3 | B5: 1 | C5: 1 | D5: 1 | E5: 0 | F5: =E5/C5 -> 0
A6: 4 - 6 | B6: 3 | C6: 3 | D6: 3 | E6: 0 | F6: =E6/C6 -> 0
A7: 7 - 9 | B7: 6 | C7: 8 | D7: 6 | E7: 2 | F7: =E7/C7 -> 0.25
A8: 10 - 12 | B8: 7 | C8: 15 | D8: 7 | E8: 8 | F8: 0.5333333333
A9: 13 - 15 | B9: 9 | C9: 15 | D9: 9 | E9: 6 | F9: 0.4
A10: 16 - 18 | B10: 11 | C10: 21 | D10: 11 | E10: 10 | F10: 0.4761904762
A11: 19 - 20 | B11: 18 | C11: 30 | D11: 18 | E11: 12 | F11: 0.4
A12: Total | B12: =SUM(B5:B11) -> 55 | C12: =SUM(C5:C11) -> 93 | D12: =SUM(D5:D11) -> 55 | E12: =SUM(E5:E11) -> 38 | F12: 0.4086021505
A13: Totals should equate to those included in the Chapter 4 total employee schedule. Employees and Posts numbers are as at 30 June. *Posts must be established and funded in the approved budget or adjustments budget. Full-time equivalents are calculated by taking the total number of working days lost (excluding weekends and public holidays) while a post remains vacant and adding together all such days lost by all posts within the same set (e.g. ‘senior management’) then dividing that total by 250 to give the number of posts equivalent to the accumulated days. T3.8.4

Sheet 3.8.5
A1: Financial Performance Year 0: Transport Services
A2: R'000
A3: Details | B3: Year -1 | C3: Year 0
B4: Actual | C4: Original Budget | D4: Adjustment Budget | E4: Actual | F4: Variance to Budget
A5: Total Operational Revenue | B5: 120 | C5: 125 | D5: 100 | E5: 95 | F5: =(E5-C5)/E5 -> -0.3157894737
A6: Expenditure:
A7: Employees | B7: 125 | C7: 244 | D7: 250 | E7: 248 | F7: =(E7-C7)/E7 -> 0.01612903226
A8: Repairs and Maintenance | B8: 25 | C8: 244 | D8: 250 | E8: 248 | F8: 0.01612903226
A9: Other | B9: 45 | C9: 244 | D9: 250 | E9: 248 | F9: 0.01612903226
A10: Total Operational Expenditure | B10: =SUM(B7:B9) -> 195 | C10: =SUM(C7:C9) -> 732 | D10: 750 | E10: 744 | F10: 0.01612903226
A11: Net Operational Expenditure | B11: =B10-B5 -> 75 | C11: =C10-C5 -> 607 | D11: 650 | E11: 649 | F11: 0.06471494607
A12: Net expenditure to be consistent with summary T 5.1.2 in Chapter 5. Variances are calculated by dividing the difference between the Actual and Original Budget by the Actual. | F12: T 3.8.5

Sheet 3.8.6
A1: Capital Expenditure Year 0: Transport Services
A2: R' 000
A3: Capital Projects | B3: Year 0
B4: Budget | C4: Adjustment Budget | D4: Actual Expenditure | E4: Variance from original budget | F4: Total Project Value
A5: Total All | B5: =SUM(B7:B10) -> 260 | C5: =SUM(C7:C10) -> 326 | D5: 378 | E5: =(D5-B5)/D5 -> 0.3121693122
A7: Project A | B7: 100 | C7: 130 | D7: 128 | E7: =(D7-B7)/D7 -> 0.21875 | F7: 280
A8: Project B | B8: 80 | C8: 91 | D8: 90 | E8: =(D8-B8)/D8 -> 0.1111111111 | F8: 150
A9: Project C | B9: 45 | C9: 50 | D9: 80 | E9: =(D9-B9)/D9 -> 0.4375 | F9: 320
A10: Project D | B10: 35 | C10: 55 | D10: 80 | E10: 0.5625 | F10: 90
A11: Total project value represents the estimated cost of the project on approval by council (including past and future expenditure as appropriate. | F11: T 3.8.6

Sheet 3.9.2
A1: Stormwater Infrastructure
A2: Kilometers
B3: Total Stormwater measures | C3: New stormwater measures | D3: Stormwater measures upgraded | E3: Stormwater measures maintained
A4: Year -2 | B4: 145 | C4: 15 | D4: 10 | E4: 100
A5: Year -1 | B5: 160 | C5: 20 | D5: 12 | E5: 120
A6: Year 0 | B6: 166 | C6: 25 | D6: 14 | E6: 140
E7: T 3.9.2

Sheet 3.9.3
A1: Cost of Construction/Maintenance
A2: R' 000
B3: Stormwater Measures
B4: New | C4: Upgraded | D4: Maintained
A5: Year -2 | B5: 1700000 | C5: 600000 | D5: 280000
A6: Year -1 | B6: 1800000 | C6: 700000 | D6: 330000
A7: Year 0 | B7: 1900000 | C7: 900000 | D7: 420000
D8: T 3.9.3

Sheet 3.9.5
A1: Stormwater Policy Objectives Taken From IDP
A2: Service Objectives | B2: Outline Service Targets | C2: Year -1 | E2: Year 0 | H2: Year 1 | I2: Year 3
C3: Target | D3: Actual | E3: Target | G3: Actual | H3: Target
A4: Service Indicators | C4: *Previous Year | E4: *Previous Year | F4: *Current Year | H4: *Current Year | I4: *Current Year | J4: *Following Year
A5: (i) | B5: (ii) | C5: (iii) | D5: (iv) | E5: (v) | F5: (vi) | G5: (vii) | H5: (viii) | I5: (ix) | J5: (x)
A6: Service Objective xxx
A7: Development of fully integrated stormwater management systems including wetlands and natural water courses | B7: Phasing in of systems | C7: Strategy approval (Yes/No); Timescale x yrs | D7: Strategy approval (Yes/No); Timescale x yrs | E7: Strategy approval (Yes/No); Timescale x yrs | F7: Strategy approval (Yes/No); Timescale x yrs | G7: Strategy approval (Yes/No); Timescale x yrs | H7: Strategy approval (Yes/No); x yrs remaining | I7: Completion (Yes/No); x yrs remaining | J7: Completion (Yes/No); x yrs remaining
A23: Note: This statement should include no more than the top four priority service objectives. The indicators and targets specified above (columns (i) and (ii)) must be incoporated in the indicator set for each municipality to which they apply. These are 'universal municipal indicators'. * 'Previous Year' refers to the targets that were set in the Year -1 Budget/IDP round; *'Current Year' refers to the targets set in the Year 0 Budget/IDP round. *'Following Year' refers to the targets set in the Year 1 Budget/IDP round. Note that all targets in the IDP must be fundable within approved budget provision. MSA 2000 chapter 5 sets out the purpose and character of Intergrated Development Plans (IDPs) and chapter 6 sets out the requirements for the reduction of performance management arrangement by municipalities in which IDPs play a key role. | J23: T 3.9.5

Sheet 3.9.6
A1: Employees: Stormmwater Services
A2: Job Level | B2: Year -1 | C2: Year 0
B3: Employees | C3: Posts | D3: Employees | E3: Vacancies (fulltime equivalents) | F3: Vacancies (as a % of total posts)
B4: No. | C4: No. | D4: No. | E4: No. | F4: %
A5: 0 - 3 | B5: 1 | C5: 1 | D5: 1 | E5: 0 | F5: =E5/C5 -> 0
A6: 4 - 6 | B6: 3 | C6: 3 | D6: 3 | E6: 0 | F6: =E6/C6 -> 0
A7: 7 - 9 | B7: 6 | C7: 8 | D7: 6 | E7: 2 | F7: =E7/C7 -> 0.25
A8: 10 - 12 | B8: 7 | C8: 15 | D8: 7 | E8: 8 | F8: 0.5333333333
A9: 13 - 15 | B9: 9 | C9: 15 | D9: 9 | E9: 6 | F9: 0.4
A10: 16 - 18 | B10: 11 | C10: 21 | D10: 11 | E10: 10 | F10: 0.4761904762
A11: 19 - 20 | B11: 18 | C11: 30 | D11: 18 | E11: 12 | F11: 0.4
A12: Total | B12: =SUM(B5:B11) -> 55 | C12: =SUM(C5:C11) -> 93 | D12: =SUM(D5:D11) -> 55 | E12: =SUM(E5:E11) -> 38 | F12: 0.4086021505
A13: Totals should equate to those included in the Chapter 4 total employee schedule. Employees and Posts numbers are as at 30 June. *Posts must be established and funded in the approved budget or adjustments budget. Full-time equivalents are calculated by taking the total number of working days lost (excluding weekends and public holidays) while a post remains vacant and adding together all such days lost by all posts within the same set (e.g. ‘senior management’) then dividing that total by 250 to give the number of posts equivalent to the accumulated days. T 3.9.6

Sheet 3.9.7
A1: Financial Performance Year 0: Stormwater Services
A2: R'000
A3: Details | B3: Year -1 | C3: Year 0
B4: Actual | C4: Original Budget | D4: Adjustment Budget | E4: Actual | F4: Variance to Budget
A5: Total Operational Revenue | B5: 120 | C5: 125 | D5: 100 | E5: 95 | F5: =(E5-C5)/E5 -> -0.3157894737
A6: Expenditure:
A7: Employees | B7: 125 | C7: 244 | D7: 250 | E7: 248 | F7: =(E7-C7)/E7 -> 0.01612903226
A8: Repairs and Maintenance | B8: 25 | C8: 244 | D8: 250 | E8: 248 | F8: 0.01612903226
A9: Other | B9: 45 | C9: 244 | D9: 250 | E9: 248 | F9: 0.01612903226
A10: Total Operational Expenditure | B10: =SUM(B7:B9) -> 195 | C10: =SUM(C7:C9) -> 732 | D10: 750 | E10: 744 | F10: 0.01612903226
A11: Net Operational Expenditure | B11: =B10-B5 -> 75 | C11: =C10-C5 -> 607 | D11: 650 | E11: 649 | F11: 0.06471494607
A12: Net expenditure to be consistent with summary T 5.1.2 in Chapter 5. Variances are calculated by dividing the difference between the Actual and Original Budget by the Actual. | F12: T 3.9.7

Sheet 3.9.8
A1: Capital Expenditure Year 0: Stormwater Services
A2: R' 000
A3: Capital Projects | B3: Year 0
B4: Budget | C4: Adjustment Budget | D4: Actual Expenditure | E4: Variance from original budget | F4: Total Project Value
A5: Total All | B5: =SUM(B7:B10) -> 260 | C5: =SUM(C7:C10) -> 326 | D5: 378 | E5: =(D5-B5)/D5 -> 0.3121693122
A7: Project A | B7: 100 | C7: 130 | D7: 128 | E7: =(D7-B7)/D7 -> 0.21875 | F7: 280
A8: Project B | B8: 80 | C8: 91 | D8: 90 | E8: =(D8-B8)/D8 -> 0.1111111111 | F8: 150
A9: Project C | B9: 45 | C9: 50 | D9: 80 | E9: =(D9-B9)/D9 -> 0.4375 | F9: 320
A10: Project D | B10: 35 | C10: 55 | D10: 80 | E10: 0.5625 | F10: 90
A11: Total project value represents the estimated cost of the project on approval by council (including past and future expenditure as appropriate. | F11: T 3.9.8

Sheet 3.10.2
A1: Applications for Land Use Development
A2: Detail | B2: Formalisation of Townships | D2: Rezoning | F2: Built Enviroment
B3: Year -1 | C3: Year 0 | D3: Year -1 | E3: Year 0 | F3: Year -1 | G3: Year 0
A4: Planning application received
A5: Determination made in year of receipt
A6: Determination made in following year
A7: Applications withdrawn
A8: Applications outstanding at year end
G9: T 3.10.2

Sheet 3.10.3
A1: Planning Policy Objectives Taken From IDP
A2: Service Objectives | B2: Outline Service Targets | C2: Year -1 | E2: Year 0 | H2: Year 1 | I2: Year 3
C3: Target | D3: Actual | E3: Target | G3: Actual | H3: Target
A4: Service Indicators | C4: *Previous Year | E4: *Previous Year | F4: *Current Year | H4: *Current Year | I4: *Current Year | J4: *Following Year
A5: (i) | B5: (ii) | C5: (iii) | D5: (iv) | E5: (v) | F5: (vi) | G5: (vii) | H5: (viii) | I5: (ix) | J5: (x)
A6: Service Objective xxx
A7: Determine planning application within a reasonable timescale | B7: Approval or rejection of all build enviroment applications within a x weeks | C7: Determination within x weeeks | D7: Determination within x weeeks | E7: Determination within 12 weeeks | F7: Determination within 12 weeeks | G7: Determination within x weeeks | H7: Determination within 11 weeeks | I7: Determination within 8 weeeks | J7: Determination within 8 weeeks
B8: Reduction in planning decisions overturned | C8: X planning decisions overturned | D8: X planning decisions overturned | E8: 5% planning decisions overturned | F8: 5% planning decisions overturned | G8: X planning decisions overturned | H8: 4% planning decisions overturned | I8: No planning decisions overturned | J8: No planning decisions overturned
A23: Note: This statement should include no more than the top four priority service objectives. The indicators and targets specified above (columns (i) and (ii)) must be incoporated in the indicator set for each municipality to which they apply. These are 'universal municipal indicators'. * 'Previous Year' refers to the targets that were set in the Year -1 Budget/IDP round; *'Current Year' refers to the targets set in the Year 0 Budget/IDP round. *'Following Year' refers to the targets set in the Year 1 Budget/IDP round. Note that all targets in the IDP must be fundable within approved budget provision. MSA 2000 chapter 5 sets out the purpose and character of Intergrated Development Plans (IDPs) and chapter 6 sets out the requirements for the reduction of performance management arrangement by municipalities in which IDPs play a key role. | J23: T 3.10.3

Sheet 3.10.4
A1: Employees: Planning Services
A2: Job Level | B2: Year -1 | C2: Year 0
B3: Employees | C3: Posts | D3: Employees | E3: Vacancies (fulltime equivalents) | F3: Vacancies (as a % of total posts)
B4: No. | C4: No. | D4: No. | E4: No. | F4: %
A5: 0 - 3 | B5: 1 | C5: 1 | D5: 1 | E5: 0 | F5: =E5/C5 -> 0
A6: 4 - 6 | B6: 3 | C6: 3 | D6: 3 | E6: 0 | F6: =E6/C6 -> 0
A7: 7 - 9 | B7: 6 | C7: 8 | D7: 6 | E7: 2 | F7: =E7/C7 -> 0.25
A8: 10 - 12 | B8: 7 | C8: 15 | D8: 7 | E8: 8 | F8: 0.5333333333
A9: 13 - 15 | B9: 9 | C9: 15 | D9: 9 | E9: 6 | F9: 0.4
A10: 16 - 18 | B10: 11 | C10: 21 | D10: 11 | E10: 10 | F10: 0.4761904762
A11: 19 - 20 | B11: 18 | C11: 30 | D11: 18 | E11: 12 | F11: 0.4
A12: Total | B12: =SUM(B5:B11) -> 55 | C12: =SUM(C5:C11) -> 93 | D12: =SUM(D5:D11) -> 55 | E12: =SUM(E5:E11) -> 38 | F12: 0.4086021505
A13: Totals should equate to those included in the Chapter 4 total employee schedule. Employees and Posts numbers are as at 30 June. *Posts must be established and funded in the approved budget or adjustments budget. Full-time equivalents are calculated by taking the total number of working days lost (excluding weekends and public holidays) while a post remains vacant and adding together all such days lost by all posts within the same set (e.g. ‘senior management’) then dividing that total by 250 to give the number of posts equivalent to the accumulated days. T 3.10.4

Sheet 3.10.5
A1: Financial Performance Year 0: Planning Services
A2: R'000
A3: Details | B3: Year -1 | C3: Year 0
B4: Actual | C4: Original Budget | D4: Adjustment Budget | E4: Actual | F4: Variance to Budget
A5: Total Operational Revenue | B5: 120 | C5: 125 | D5: 100 | E5: 95 | F5: =(E5-C5)/E5 -> -0.3157894737
A6: Expenditure:
A7: Employees | B7: 125 | C7: 244 | D7: 250 | E7: 248 | F7: =(E7-C7)/E7 -> 0.01612903226
A8: Repairs and Maintenance | B8: 25 | C8: 244 | D8: 250 | E8: 248 | F8: 0.01612903226
A9: Other | B9: 45 | C9: 244 | D9: 250 | E9: 248 | F9: 0.01612903226
A10: Total Operational Expenditure | B10: =SUM(B7:B9) -> 195 | C10: =SUM(C7:C9) -> 732 | D10: 750 | E10: 744 | F10: 0.01612903226
A11: Net Operational Expenditure | B11: =B10-B5 -> 75 | C11: =C10-C5 -> 607 | D11: 650 | E11: 649 | F11: 0.06471494607
A12: Net expenditure to be consistent with summary T 5.1.2 in Chapter 5. Variances are calculated by dividing the difference between the Actual and Original Budget by the Actual. | F12: T 3.10.5

Sheet 3.10.6
A1: Capital Expenditure Year 0: Planning Services
A2: R' 000
A3: Capital Projects | B3: Year 0
B4: Budget | C4: Adjustment Budget | D4: Actual Expenditure | E4: Variance from original budget | F4: Total Project Value
A5: Total All | B5: =SUM(B7:B10) -> 260 | C5: =SUM(C7:C10) -> 326 | D5: 378 | E5: =(D5-B5)/D5 -> 0.3121693122
A7: Project A | B7: 100 | C7: 130 | D7: 128 | E7: =(D7-B7)/D7 -> 0.21875 | F7: 280
A8: Project B | B8: 80 | C8: 91 | D8: 90 | E8: =(D8-B8)/D8 -> 0.1111111111 | F8: 150
A9: Project C | B9: 45 | C9: 50 | D9: 80 | E9: =(D9-B9)/D9 -> 0.4375 | F9: 320
A10: Project D | B10: 35 | C10: 55 | D10: 80 | E10: 0.5625 | F10: 90
A11: Total project value represents the estimated cost of the project on approval by council (including past and future expenditure as appropriate. | F11: T 3.10.6

Sheet 3.11.2
A1: Economic Activity by Sector
A2: R '000
A3: Sector | B3: Year -2 | C3: Year -1 | D3: Year 0
A4: Agric, forestry and fishing | B4: 2 | C4: 1.5 | D4: 1.5
A5: Mining and quarrying | B5: 6 | C5: 5 | D5: 2
A6: Manufacturing | B6: 56 | C6: 58 | D6: 63
A7: Wholesale and retail trade | B7: 45 | C7: 51 | D7: 52
A8: Finance, property, etc. | B8: 51 | C8: 48 | D8: 52
A9: Govt, community and social services | B9: 23 | C9: 25 | D9: 25
A10: Infrastructure services | B10: 34 | C10: 38 | D10: 41
A11: Total | B11: =SUM(B4:B10) -> 217 | C11: =SUM(C4:C10) -> 226.5 | D11: =SUM(D4:D10) -> 236.5
D12: T 3.11.2

Sheet 3.11.3
A1: Economic Employment by Sector
D2: Jobs
A3: Sector | B3: Year 1 | C3: Year -1 | D3: Year 0
B4: No. | C4: No. | D4: No.
A5: Agric, forestry and fishing | B5: 20000 | C5: 25000 | D5: 30000
A6: Mining and quarrying | B6: 400000 | C6: 435000 | D6: 372000
A7: Manufacturing | B7: 320000 | C7: 300000 | D7: 270000
A8: Wholesale and retail trade | B8: 190000 | C8: 200000 | D8: 210000
A9: Finance, property, etc. | B9: 275000 | C9: 255000 | D9: 235000
A10: Govt, community and social services | B10: 300000 | C10: 310000 | D10: 320000
A11: Infrastructure services | B11: 400000 | C11: 430000 | D11: 450000
A12: Total | B12: =SUM(B5:B11) -> 1905000 | C12: =SUM(C5:C11) -> 1955000 | D12: =SUM(D5:D11) -> 1887000
D13: T 3.11.3

Sheet 3.11.5
A1: Jobs Created during Year 0 by LED Initiatives (Excluding EPWP projects)
A2: Total Jobs created / Top 3 initiatives | B2: Jobs created | C2: Jobs lost/displaced by other initiatives | D2: Net total jobs created in year | E2: Method of validating jobs created/lost
B3: No. | C3: No. | D3: No.
A4: Total (all initiatives)
A5: Year -2
A6: Year -1
A7: Year 0
A9: Initiative A (Year 0)
A10: Initiative B (Year 0)
A11: Initiative C (Year 0)
E12: T 3.11.5

Sheet 3.11.6
A1: Job creation through EPWP* projects
A2: Details | B2: EPWP Projects | C2: Jobs created through EPWP projects
B3: No. | C3: No.
A4: Year -2 | B4: 40 | C4: 2000
A5: Year -1 | B5: 50 | C5: 2900
A6: Year 0 | B6: 66 | C6: 4500
A7: * - Extended Public Works Programme | C7: T 3.11.6

Sheet 3.11.7
A1: Local Economic Development Policy Objectives Taken From IDP
A2: Service Objectives | B2: Outline Service Targets | C2: Year -1 | E2: Year 0 | H2: Year 1 | I2: Year 3
C3: Target | D3: Actual | E3: Target | G3: Actual | H3: Target
A4: Service Indicators | C4: *Previous Year | E4: *Previous Year | F4: *Current Year | H4: *Current Year | I4: *Current Year | J4: *Following Year
A5: (i) | B5: (ii) | C5: (iii) | D5: (iv) | E5: (v) | F5: (vi) | G5: (vii) | H5: (viii) | I5: (ix) | J5: (x)
A6: Service Objective xxx
A7: Training of people in essential skills: x, y, z | B7: Number of people trained (including retrained upskilled) | C7: x people trained | D7: x people trained | E7: x people trained | F7: x people trained | G7: x people trained | H7: x people trained | I7: x people trained | J7: x people trained
A23: Note: This statement should include no more than the top four priority service objectives. The indicators and targets specified above (columns (i) and (ii)) must be incoporated in the indicator set for each municipality to which they apply. These are 'universal municipal indicators'. * 'Previous Year' refers to the targets that were set in the Year -1 Budget/IDP round; *'Current Year' refers to the targets set in the Year 0 Budget/IDP round. *'Following Year' refers to the targets set in the Year 1 Budget/IDP round. Note that all targets in the IDP must be fundable within approved budget provision. MSA 2000 chapter 5 sets out the purpose and character of Intergrated Development Plans (IDPs) and chapter 6 sets out the requirements for the reduction of performance management arrangement by municipalities in which IDPs play a key role. | J23: T 3.11.7

Sheet 3.11.8
A1: Employees: Local Economic Development Services
A2: Job Level | B2: Year -1 | C2: Year 0
B3: Employees | C3: Posts | D3: Employees | E3: Vacancies (fulltime equivalents) | F3: Vacancies (as a % of total posts)
B4: No. | C4: No. | D4: No. | E4: No. | F4: %
A5: 0 - 3 | B5: 1 | C5: 1 | D5: 1 | E5: 0 | F5: =E5/C5 -> 0
A6: 4 - 6 | B6: 3 | C6: 3 | D6: 3 | E6: 0 | F6: =E6/C6 -> 0
A7: 7 - 9 | B7: 6 | C7: 8 | D7: 6 | E7: 2 | F7: =E7/C7 -> 0.25
A8: 10 - 12 | B8: 7 | C8: 15 | D8: 7 | E8: 8 | F8: 0.5333333333
A9: 13 - 15 | B9: 9 | C9: 15 | D9: 9 | E9: 6 | F9: 0.4
A10: 16 - 18 | B10: 11 | C10: 21 | D10: 11 | E10: 10 | F10: 0.4761904762
A11: 19 - 20 | B11: 18 | C11: 30 | D11: 18 | E11: 12 | F11: 0.4
A12: Total | B12: =SUM(B5:B11) -> 55 | C12: =SUM(C5:C11) -> 93 | D12: =SUM(D5:D11) -> 55 | E12: =SUM(E5:E11) -> 38 | F12: 0.4086021505
A13: Totals should equate to those included in the Chapter 4 total employee schedule. Employees and Posts numbers are as at 30 June. *Posts must be established and funded in the approved budget or adjustments budget. Full-time equivalents are calculated by taking the total number of working days lost (excluding weekends and public holidays) while a post remains vacant and adding together all such days lost by all posts within the same set (e.g. ‘senior management’) then dividing that total by 250 to give the number of posts equivalent to the accumulated days. T 3.11.8

Sheet 3.11.9
A1: Financial Performance Year 0: Local Economic Development Services
A2: R'000
A3: Details | B3: Year -1 | C3: Year 0
B4: Actual | C4: Original Budget | D4: Adjustment Budget | E4: Actual | F4: Variance to Budget
A5: Total Operational Revenue | B5: 120 | C5: 125 | D5: 100 | E5: 95 | F5: =(E5-C5)/E5 -> -0.3157894737
A6: Expenditure:
A7: Employees | B7: 125 | C7: 244 | D7: 250 | E7: 248 | F7: =(E7-C7)/E7 -> 0.01612903226
A8: Repairs and Maintenance | B8: 25 | C8: 244 | D8: 250 | E8: 248 | F8: 0.01612903226
A9: Other | B9: 45 | C9: 244 | D9: 250 | E9: 248 | F9: 0.01612903226
A10: Total Operational Expenditure | B10: =SUM(B7:B9) -> 195 | C10: =SUM(C7:C9) -> 732 | D10: 750 | E10: 744 | F10: 0.01612903226
A11: Net Operational Expenditure | B11: =B10-B5 -> 75 | C11: =C10-C5 -> 607 | D11: 650 | E11: 649 | F11: 0.06471494607
A12: Net expenditure to be consistent with summary T 5.1.2 in Chapter 5. Variances are calculated by dividing the difference between the Actual and Original Budget by the Actual. | F12: T 3.11.9

Sheet 3.11.10
A1: Capital Expenditure Year 0: Economic Development Services
A2: R' 000
A3: Capital Projects | B3: Year 0
B4: Budget | C4: Adjustment Budget | D4: Actual Expenditure | E4: Variance from original budget | F4: Total Project Value
A5: Total All | B5: =SUM(B7:B10) -> 260 | C5: =SUM(C7:C10) -> 326 | D5: 378 | E5: =(D5-B5)/D5 -> 0.3121693122
A7: Project A | B7: 100 | C7: 130 | D7: 128 | E7: =(D7-B7)/D7 -> 0.21875 | F7: 280
A8: Project B | B8: 80 | C8: 91 | D8: 90 | E8: =(D8-B8)/D8 -> 0.1111111111 | F8: 150
A9: Project C | B9: 45 | C9: 50 | D9: 80 | E9: =(D9-B9)/D9 -> 0.4375 | F9: 320
A10: Project D | B10: 35 | C10: 55 | D10: 80 | E10: 0.5625 | F10: 90
A11: Total project value represents the estimated cost of the project on approval by council (including past and future expenditure as appropriate. | F11: T 3.11.10

Sheet 3.12.3
A1: Libraries; Archives; Museums; Galleries; Community Facilities; Other Policy Objectives Taken From IDP
A2: Service Objectives | B2: Outline Service Targets | C2: Year -1 | E2: Year 0 | H2: Year 1 | I2: Year 3
C3: Target | D3: Actual | E3: Target | G3: Actual | H3: Target
A4: Service Indicators | C4: *Previous Year | E4: *Previous Year | F4: *Current Year | H4: *Current Year | I4: *Current Year | J4: *Following Year
A5: (i) | B5: (ii) | C5: (iii) | D5: (iv) | E5: (v) | F5: (vi) | G5: (vii) | H5: (viii) | I5: (ix) | J5: (x)
A6: Service Objective xxx
A23: Note: This statement should include no more than the top four priority service objectives. The indicators and targets specified above (columns (i) and (ii)) must be incoporated in the indicator set for each municipality to which they apply. These are 'universal municipal indicators'. * 'Previous Year' refers to the targets that were set in the Year -1 Budget/IDP round; *'Current Year' refers to the targets set in the Year 0 Budget/IDP round. *'Following Year' refers to the targets set in the Year 1 Budget/IDP round. Note that all targets in the IDP must be fundable within approved budget provision. MSA 2000 chapter 5 sets out the purpose and character of Intergrated Development Plans (IDPs) and chapter 6 sets out the requirements for the reduction of performance management arrangement by municipalities in which IDPs play a key role. | J23: T 3.12.3

Sheet 3.12.4
A1: Employees: Libraries; Archives; Museums; Galleries; Community Facilities; Other
A2: Job Level | B2: Year -1 | C2: Year 0
B3: Employees | C3: Posts | D3: Employees | E3: Vacancies (fulltime equivalents) | F3: Vacancies (as a % of total posts)
B4: No. | C4: No. | D4: No. | E4: No. | F4: %
A5: 0 - 3 | B5: 1 | C5: 1 | D5: 1 | E5: 0 | F5: =E5/C5 -> 0
A6: 4 - 6 | B6: 3 | C6: 3 | D6: 3 | E6: 0 | F6: =E6/C6 -> 0
A7: 7 - 9 | B7: 6 | C7: 8 | D7: 6 | E7: 2 | F7: =E7/C7 -> 0.25
A8: 10 - 12 | B8: 7 | C8: 15 | D8: 7 | E8: 8 | F8: 0.5333333333
A9: 13 - 15 | B9: 9 | C9: 15 | D9: 9 | E9: 6 | F9: 0.4
A10: 16 - 18 | B10: 11 | C10: 21 | D10: 11 | E10: 10 | F10: 0.4761904762
A11: 19 - 20 | B11: 18 | C11: 30 | D11: 18 | E11: 12 | F11: 0.4
A12: Total | B12: =SUM(B5:B11) -> 55 | C12: =SUM(C5:C11) -> 93 | D12: =SUM(D5:D11) -> 55 | E12: =SUM(E5:E11) -> 38 | F12: 0.4086021505
A13: Totals should equate to those included in the Chapter 4 total employee schedule. Employees and Posts numbers are as at 30 June. *Posts must be established and funded in the approved budget or adjustments budget. Full-time equivalents are calculated by taking the total number of working days lost (excluding weekends and public holidays) while a post remains vacant and adding together all such days lost by all posts within the same set (e.g. ‘senior management’) then dividing that total by 250 to give the number of posts equivalent to the accumulated days. T 3.12.4

Sheet 3.12.5
A1: Financial Performance Year 0: Libraries; Archives; Museums; Galleries; Community Facilities; Other
A2: R'000
A3: Details | B3: Year -1 | C3: Year 0
B4: Actual | C4: Original Budget | D4: Adjustment Budget | E4: Actual | F4: Variance to Budget
A5: Total Operational Revenue | B5: 120 | C5: 125 | D5: 100 | E5: 95 | F5: =(E5-C5)/E5 -> -0.3157894737
A6: Expenditure:
A7: Employees | B7: 125 | C7: 244 | D7: 250 | E7: 248 | F7: =(E7-C7)/E7 -> 0.01612903226
A8: Repairs and Maintenance | B8: 25 | C8: 244 | D8: 250 | E8: 248 | F8: 0.01612903226
A9: Other | B9: 45 | C9: 244 | D9: 250 | E9: 248 | F9: 0.01612903226
A10: Total Operational Expenditure | B10: =SUM(B7:B9) -> 195 | C10: =SUM(C7:C9) -> 732 | D10: 750 | E10: 744 | F10: 0.01612903226
A11: Net Operational Expenditure | B11: =B10-B5 -> 75 | C11: =C10-C5 -> 607 | D11: 650 | E11: 649 | F11: 0.06471494607
A12: Net expenditure to be consistent with summary T 5.1.2 in Chapter 5. Variances are calculated by dividing the difference between the Actual and Original Budget by the Actual. | F12: T 3.12.5

Sheet 3.12.6
A1: Capital Expenditure Year 0: Libraries; Archives; Museums; Galleries; Community Facilities; Other
A2: R' 000
A3: Capital Projects | B3: Year 0
B4: Budget | C4: Adjustment Budget | D4: Actual Expenditure | E4: Variance from original budget | F4: Total Project Value
A5: Total All | B5: =SUM(B7:B10) -> 260 | C5: =SUM(C7:C10) -> 326 | D5: 378 | E5: =(D5-B5)/D5 -> 0.3121693122
A7: Project A | B7: 100 | C7: 130 | D7: 128 | E7: =(D7-B7)/D7 -> 0.21875 | F7: 280
A8: Project B | B8: 80 | C8: 91 | D8: 90 | E8: =(D8-B8)/D8 -> 0.1111111111 | F8: 150
A9: Project C | B9: 45 | C9: 50 | D9: 80 | E9: =(D9-B9)/D9 -> 0.4375 | F9: 320
A10: Project D | B10: 35 | C10: 55 | D10: 80 | E10: 0.5625 | F10: 90
A11: Total project value represents the estimated cost of the project on approval by council (including past and future expenditure as appropriate. | F11: T 3.12.6

Sheet 3.13.3
A1: Cemetories and Crematoriums Policy Objectives Taken From IDP
A2: Service Objectives | B2: Outline Service Targets | C2: Year -1 | E2: Year 0 | H2: Year 1 | I2: Year 3
C3: Target | D3: Actual | E3: Target | G3: Actual | H3: Target
A4: Service Indicators | C4: *Previous Year | E4: *Previous Year | F4: *Current Year | H4: *Current Year | I4: *Current Year | J4: *Following Year
A5: (i) | B5: (ii) | C5: (iii) | D5: (iv) | E5: (v) | F5: (vi) | G5: (vii) | H5: (viii) | I5: (ix) | J5: (x)
A6: Service Objective xxx
A18: Note: This statement should include no more than the top four priority service objectives. The indicators and targets specified above (columns (i) and (ii)) must be incoporated in the indicator set for each municipality to which they apply. These are 'universal municipal indicators'. * 'Previous Year' refers to the targets that were set in the Year -1 Budget/IDP round; *'Current Year' refers to the targets set in the Year 0 Budget/IDP round. *'Following Year' refers to the targets set in the Year 1 Budget/IDP round. Note that all targets in the IDP must be fundable within approved budget provision. MSA 2000 chapter 5 sets out the purpose and character of Intergrated Development Plans (IDPs) and chapter 6 sets out the requirements for the reduction of performance management arrangement by municipalities in which IDPs play a key role. | J18: T 3.13.3

Sheet 3.13.4
A1: Employees: Cemetories and Cremotoriums
A2: Job Level | B2: Year -1 | C2: Year 0
B3: Employees | C3: Posts | D3: Employees | E3: Vacancies (fulltime equivalents) | F3: Vacancies (as a % of total posts)
B4: No. | C4: No. | D4: No. | E4: No. | F4: %
A5: 0 - 3 | B5: 1 | C5: 1 | D5: 1 | E5: 0 | F5: =E5/C5 -> 0
A6: 4 - 6 | B6: 3 | C6: 3 | D6: 3 | E6: 0 | F6: =E6/C6 -> 0
A7: 7 - 9 | B7: 6 | C7: 8 | D7: 6 | E7: 2 | F7: =E7/C7 -> 0.25
A8: 10 - 12 | B8: 7 | C8: 15 | D8: 7 | E8: 8 | F8: 0.5333333333
A9: 13 - 15 | B9: 9 | C9: 15 | D9: 9 | E9: 6 | F9: 0.4
A10: 16 - 18 | B10: 11 | C10: 21 | D10: 11 | E10: 10 | F10: 0.4761904762
A11: 19 - 20 | B11: 18 | C11: 30 | D11: 18 | E11: 12 | F11: 0.4
A12: Total | B12: =SUM(B5:B11) -> 55 | C12: =SUM(C5:C11) -> 93 | D12: =SUM(D5:D11) -> 55 | E12: =SUM(E5:E11) -> 38 | F12: 0.4086021505
A13: Totals should equate to those included in the Chapter 4 total employee schedule. Employees and Posts numbers are as at 30 June. *Posts must be established and funded in the approved budget or adjustments budget. Full-time equivalents are calculated by taking the total number of working days lost (excluding weekends and public holidays) while a post remains vacant and adding together all such days lost by all posts within the same set (e.g. ‘senior management’) then dividing that total by 250 to give the number of posts equivalent to the accumulated days. T 3.13.4

Sheet 3.13.5
A1: Financial Performance Year 0: Cemetories and Crematoriums
A2: R'000
A3: Details | B3: Year -1 | C3: Year 0
B4: Actual | C4: Original Budget | D4: Adjustment Budget | E4: Actual | F4: Variance to Budget
A5: Total Operational Revenue | B5: 120 | C5: 125 | D5: 100 | E5: 95 | F5: =(E5-C5)/E5 -> -0.3157894737
A6: Expenditure:
A7: Employees | B7: 125 | C7: 244 | D7: 250 | E7: 248 | F7: =(E7-C7)/E7 -> 0.01612903226
A8: Repairs and Maintenance | B8: 25 | C8: 244 | D8: 250 | E8: 248 | F8: 0.01612903226
A9: Other | B9: 45 | C9: 244 | D9: 250 | E9: 248 | F9: 0.01612903226
A10: Total Operational Expenditure | B10: =SUM(B7:B9) -> 195 | C10: =SUM(C7:C9) -> 732 | D10: 750 | E10: 744 | F10: 0.01612903226
A11: Net Operational Expenditure | B11: =B10-B5 -> 75 | C11: =C10-C5 -> 607 | D11: 650 | E11: 649 | F11: 0.06471494607
A12: Net expenditure to be consistent with summary T 5.1.2 in Chapter 5. Variances are calculated by dividing the difference between the Actual and Original Budget by the Actual. | F12: T 3.13.5

Sheet 3.13.6
A1: Capital Expenditure Year 0: Cemetories and Crematoriums
A2: R' 000
A3: Capital Projects | B3: Year 0
B4: Budget | C4: Adjustment Budget | D4: Actual Expenditure | E4: Variance from original budget | F4: Total Project Value
A5: Total All | B5: =SUM(B7:B10) -> 260 | C5: =SUM(C7:C10) -> 326 | D5: 378 | E5: =(D5-B5)/D5 -> 0.3121693122
A7: Project A | B7: 100 | C7: 130 | D7: 128 | E7: =(D7-B7)/D7 -> 0.21875 | F7: 280
A8: Project B | B8: 80 | C8: 91 | D8: 90 | E8: =(D8-B8)/D8 -> 0.1111111111 | F8: 150
A9: Project C | B9: 45 | C9: 50 | D9: 80 | E9: =(D9-B9)/D9 -> 0.4375 | F9: 320
A10: Project D | B10: 35 | C10: 55 | D10: 80 | E10: 0.5625 | F10: 90
A11: Total project value represents the estimated cost of the project on approval by council (including past and future expenditure as appropriate. | F11: T 3.13.6

Sheet 3.14.3
A1: Child Care; Aged Care; Social Programmes Policy Objectives Taken From IDP
A2: Service Objectives | B2: Outline Service Targets | C2: Year -1 | E2: Year 0 | H2: Year 1 | I2: Year 3
C3: Target | D3: Actual | E3: Target | G3: Actual | H3: Target
A4: Service Indicators | C4: *Previous Year | E4: *Previous Year | F4: *Current Year | H4: *Current Year | I4: *Current Year | J4: *Following Year
A5: (i) | B5: (ii) | C5: (iii) | D5: (iv) | E5: (v) | F5: (vi) | G5: (vii) | H5: (viii) | I5: (ix) | J5: (x)
A6: Service Objective xxx
A18: Note: This statement should include no more than the top four priority service objectives. The indicators and targets specified above (columns (i) and (ii)) must be incoporated in the indicator set for each municipality to which they apply. These are 'universal municipal indicators'. * 'Previous Year' refers to the targets that were set in the Year -1 Budget/IDP round; *'Current Year' refers to the targets set in the Year 0 Budget/IDP round. *'Following Year' refers to the targets set in the Year 1 Budget/IDP round. Note that all targets in the IDP must be fundable within approved budget provision. MSA 2000 chapter 5 sets out the purpose and character of Intergrated Development Plans (IDPs) and chapter 6 sets out the requirements for the reduction of performance management arrangement by municipalities in which IDPs play a key role. | J18: T 3.14.3

Sheet 3.14.4
A1: Employees: Child Care; Aged Care; Social Programmes
A2: Job Level | B2: Year -1 | C2: Year 0
B3: Employees | C3: Posts | D3: Employees | E3: Vacancies (fulltime equivalents) | F3: Vacancies (as a % of total posts)
B4: No. | C4: No. | D4: No. | E4: No. | F4: %
A5: 0 - 3 | B5: 1 | C5: 1 | D5: 1 | E5: 0 | F5: =E5/C5 -> 0
A6: 4 - 6 | B6: 3 | C6: 3 | D6: 3 | E6: 0 | F6: =E6/C6 -> 0
A7: 7 - 9 | B7: 6 | C7: 8 | D7: 6 | E7: 2 | F7: =E7/C7 -> 0.25
A8: 10 - 12 | B8: 7 | C8: 15 | D8: 7 | E8: 8 | F8: 0.5333333333
A9: 13 - 15 | B9: 9 | C9: 15 | D9: 9 | E9: 6 | F9: 0.4
A10: 16 - 18 | B10: 11 | C10: 21 | D10: 11 | E10: 10 | F10: 0.4761904762
A11: 19 - 20 | B11: 18 | C11: 30 | D11: 18 | E11: 12 | F11: 0.4
A12: Total | B12: =SUM(B5:B11) -> 55 | C12: =SUM(C5:C11) -> 93 | D12: =SUM(D5:D11) -> 55 | E12: =SUM(E5:E11) -> 38 | F12: 0.4086021505
A13: Totals should equate to those included in the Chapter 4 total employee schedule. Employees and Posts numbers are as at 30 June. *Posts must be established and funded in the approved budget or adjustments budget. Full-time equivalents are calculated by taking the total number of working days lost (excluding weekends and public holidays) while a post remains vacant and adding together all such days lost by all posts within the same set (e.g. ‘senior management’) then dividing that total by 250 to give the number of posts equivalent to the accumulated days. T 3.14.4

Sheet 3.14.5
A1: Financial Performance Year 0: Child Care; Aged Care; Social Programmes
A2: R'000
A3: Details | B3: Year -1 | C3: Year 0
B4: Actual | C4: Original Budget | D4: Adjustment Budget | E4: Actual | F4: Variance to Budget
A5: Total Operational Revenue | B5: 120 | C5: 125 | D5: 100 | E5: 95 | F5: =(E5-C5)/E5 -> -0.3157894737
A6: Expenditure:
A7: Employees | B7: 125 | C7: 244 | D7: 250 | E7: 248 | F7: =(E7-C7)/E7 -> 0.01612903226
A8: Repairs and Maintenance | B8: 25 | C8: 244 | D8: 250 | E8: 248 | F8: 0.01612903226
A9: Other | B9: 45 | C9: 244 | D9: 250 | E9: 248 | F9: 0.01612903226
A10: Total Operational Expenditure | B10: =SUM(B7:B9) -> 195 | C10: =SUM(C7:C9) -> 732 | D10: 750 | E10: 744 | F10: 0.01612903226
A11: Net Operational Expenditure | B11: =B10-B5 -> 75 | C11: =C10-C5 -> 607 | D11: 650 | E11: 649 | F11: 0.06471494607
A12: Net expenditure to be consistent with summary T 5.1.2 in Chapter 5. Variances are calculated by dividing the difference between the Actual and Original Budget by the Actual. | F12: T 3.14.5

Sheet 3.14.6
A1: Capital Expenditure Year 0: Child Care; Aged Care; Social Programmes
A2: R' 000
A3: Capital Projects | B3: Year 0
B4: Budget | C4: Adjustment Budget | D4: Actual Expenditure | E4: Variance from original budget | F4: Total Project Value
A5: Total All | B5: =SUM(B7:B10) -> 260 | C5: =SUM(C7:C10) -> 326 | D5: 378 | E5: =(D5-B5)/D5 -> 0.3121693122
A7: Project A | B7: 100 | C7: 130 | D7: 128 | E7: =(D7-B7)/D7 -> 0.21875 | F7: 280
A8: Project B | B8: 80 | C8: 91 | D8: 90 | E8: =(D8-B8)/D8 -> 0.1111111111 | F8: 150
A9: Project C | B9: 45 | C9: 50 | D9: 80 | E9: =(D9-B9)/D9 -> 0.4375 | F9: 320
A10: Project D | B10: 35 | C10: 55 | D10: 80 | E10: 0.5625 | F10: 90
A11: Total project value represents the estimated cost of the project on approval by council (including past and future expenditure as appropriate. | F11: T 3.14.6

Sheet 3.15.3
A1: Pollution Control Policy Objectives Taken From IDP
A2: Service Objectives | B2: Outline Service Targets | C2: Year 0 | E2: Year 1 | H2: Year 2 | I2: Year 3
C3: Target | D3: Actual | E3: Target | G3: Actual | H3: Target
A4: Service Indicators | C4: *Previous Year | E4: *Previous Year | F4: *Current Year | H4: *Current Year | I4: *Current Year | J4: *Following Year
A5: (i) | B5: (ii) | C5: (iii) | D5: (iv) | E5: (v) | F5: (vi) | G5: (vii) | H5: (viii) | I5: (ix) | J5: (x)
A6: Service Objective xxx
A7: Water and air purity | B7: Water: x% of all readings taken throughout the year on at least weekly to be found acceptable (clean) by National Standards | C7: T0% clean | D7: A0% clean | E7: T1% clean | F7: T1% clean | G7: A1% clean | H7: T2% acceptable | I7: T5% acceptable | J7: T5% acceptable
B8: Air: x% of all readings taken throughout the year on at least weekly to be found acceptable by National standard | C8: T0% clean | D8: A0% clean | E8: T1% clean | F8: T1% clean | G8: A1% clean | H8: T2% acceptable | I8: T5% acceptable | J8: T5% acceptable
A18: Note: This statement should include no more than the top four priority service objectives. The indicators and targets specified above (columns (i) and (ii)) must be incoporated in the indicator set for each municipality to which they apply. These are 'universal municipal indicators'. * 'Previous Year' refers to the targets that were set in the Year -1 Budget/IDP round; *'Current Year' refers to the targets set in the Year 0 Budget/IDP round. *'Following Year' refers to the targets set in the Year 1 Budget/IDP round. Note that all targets in the IDP must be fundable within approved budget provision. MSA 2000 chapter 5 sets out the purpose and character of Intergrated Development Plans (IDPs) and chapter 6 sets out the requirements for the reduction of performance management arrangement by municipalities in which IDPs play a key role. | J18: T 3.15.3

Sheet 3.15.4
A1: Employees: Pollution Control
A2: Job Level | B2: Year -1 | C2: Year 0
B3: Employees | C3: Posts | D3: Employees | E3: Vacancies (fulltime equivalents) | F3: Vacancies (as a % of total posts)
B4: No. | C4: No. | D4: No. | E4: No. | F4: %
A5: 0 - 3 | B5: 1 | C5: 1 | D5: 1 | E5: 0 | F5: =E5/C5 -> 0
A6: 4 - 6 | B6: 3 | C6: 3 | D6: 3 | E6: 0 | F6: =E6/C6 -> 0
A7: 7 - 9 | B7: 6 | C7: 8 | D7: 6 | E7: 2 | F7: =E7/C7 -> 0.25
A8: 10 - 12 | B8: 7 | C8: 15 | D8: 7 | E8: 8 | F8: 0.5333333333
A9: 13 - 15 | B9: 9 | C9: 15 | D9: 9 | E9: 6 | F9: 0.4
A10: 16 - 18 | B10: 11 | C10: 21 | D10: 11 | E10: 10 | F10: 0.4761904762
A11: 19 - 20 | B11: 18 | C11: 30 | D11: 18 | E11: 12 | F11: 0.4
A12: Total | B12: =SUM(B5:B11) -> 55 | C12: =SUM(C5:C11) -> 93 | D12: =SUM(D5:D11) -> 55 | E12: =SUM(E5:E11) -> 38 | F12: 0.4086021505
A13: Totals should equate to those included in the Chapter 4 total employee schedule. Employees and Posts numbers are as at 30 June. *Posts must be established and funded in the approved budget or adjustments budget. Full-time equivalents are calculated by taking the total number of working days lost (excluding weekends and public holidays) while a post remains vacant and adding together all such days lost by all posts within the same set (e.g. ‘senior management’) then dividing that total by 250 to give the number of posts equivalent to the accumulated days. T 3.15.4

Sheet 3.15.5
A1: Financial Performance Year 0: Pollution Control
A2: R'000
A3: Details | B3: Year -1 | C3: Year 0
B4: Actual | C4: Original Budget | D4: Adjustment Budget | E4: Actual | F4: Variance to Budget
A5: Total Operational Revenue | B5: 120 | C5: 125 | D5: 100 | E5: 95 | F5: =(E5-C5)/E5 -> -0.3157894737
A6: Expenditure:
A7: Employees | B7: 125 | C7: 244 | D7: 250 | E7: 248 | F7: =(E7-C7)/E7 -> 0.01612903226
A8: Repairs and Maintenance | B8: 25 | C8: 244 | D8: 250 | E8: 248 | F8: 0.01612903226
A9: Other | B9: 45 | C9: 244 | D9: 250 | E9: 248 | F9: 0.01612903226
A10: Total Operational Expenditure | B10: =SUM(B7:B9) -> 195 | C10: =SUM(C7:C9) -> 732 | D10: 750 | E10: 744 | F10: 0.01612903226
A11: Net Operational Expenditure | B11: =B10-B5 -> 75 | C11: =C10-C5 -> 607 | D11: 650 | E11: 649 | F11: 0.06471494607
A12: Net expenditure to be consistent with summary T 5.1.2 in Chapter 5. Variances are calculated by dividing the difference between the Actual and Original Budget by the Actual. | F12: T 3.15.5

Sheet 3.15.6
A1: Capital Expenditure Year 0: Pollution Control
A2: R' 000
A3: Capital Projects | B3: Year 0
B4: Budget | C4: Adjustment Budget | D4: Actual Expenditure | E4: Variance from original budget | F4: Total Project Value
A5: Total All | B5: =SUM(B7:B10) -> 260 | C5: =SUM(C7:C10) -> 326 | D5: 378 | E5: =(D5-B5)/D5 -> 0.3121693122
A7: Project A | B7: 100 | C7: 130 | D7: 128 | E7: =(D7-B7)/D7 -> 0.21875 | F7: 280
A8: Project B | B8: 80 | C8: 91 | D8: 90 | E8: =(D8-B8)/D8 -> 0.1111111111 | F8: 150
A9: Project C | B9: 45 | C9: 50 | D9: 80 | E9: =(D9-B9)/D9 -> 0.4375 | F9: 320
A10: Project D | B10: 35 | C10: 55 | D10: 80 | E10: 0.5625 | F10: 90
A11: Total project value represents the estimated cost of the project on approval by council (including past and future expenditure as appropriate. | F11: T 3.15.6

Sheet 3.16.3
A1: Bio-Diversity; Landscape and Other Policy Objectives Taken From IDP
A2: Service Objectives | B2: Outline Service Targets | C2: Year -1 | E2: Year 0 | H2: Year 1 | I2: Year 3
C3: Target | D3: Actual | E3: Target | G3: Actual | H3: Target
A4: Service Indicators | C4: *Previous Year | E4: *Previous Year | F4: *Current Year | H4: *Current Year | I4: *Current Year | J4: *Following Year
A5: (i) | B5: (ii) | C5: (iii) | D5: (iv) | E5: (v) | F5: (vi) | G5: (vii) | H5: (viii) | I5: (ix) | J5: (x)
A6: Service Objective xxx
A18: Note: This statement should include no more than the top four priority service objectives. The indicators and targets specified above (columns (i) and (ii)) must be incoporated in the indicator set for each municipality to which they apply. These are 'universal municipal indicators'. * 'Previous Year' refers to the targets that were set in the Year -1 Budget/IDP round; *'Current Year' refers to the targets set in the Year 0 Budget/IDP round. *'Following Year' refers to the targets set in the Year 1 Budget/IDP round. Note that all targets in the IDP must be fundable within approved budget provision. MSA 2000 chapter 5 sets out the purpose and character of Intergrated Development Plans (IDPs) and chapter 6 sets out the requirements for the reduction of performance management arrangement by municipalities in which IDPs play a key role. | J18: T 3.16.3

Sheet 3.16.4
A1: Employees: Bio-Diversity; Landscape and Other
A2: Job Level | B2: Year -1 | C2: Year 0
B3: Employees | C3: Posts | D3: Employees | E3: Vacancies (fulltime equivalents) | F3: Vacancies (as a % of total posts)
B4: No. | C4: No. | D4: No. | E4: No. | F4: %
A5: 0 - 3 | B5: 1 | C5: 1 | D5: 1 | E5: 0 | F5: =E5/C5 -> 0
A6: 4 - 6 | B6: 3 | C6: 3 | D6: 3 | E6: 0 | F6: =E6/C6 -> 0
A7: 7 - 9 | B7: 6 | C7: 8 | D7: 6 | E7: 2 | F7: =E7/C7 -> 0.25
A8: 10 - 12 | B8: 7 | C8: 15 | D8: 7 | E8: 8 | F8: 0.5333333333
A9: 13 - 15 | B9: 9 | C9: 15 | D9: 9 | E9: 6 | F9: 0.4
A10: 16 - 18 | B10: 11 | C10: 21 | D10: 11 | E10: 10 | F10: 0.4761904762
A11: 19 - 20 | B11: 18 | C11: 30 | D11: 18 | E11: 12 | F11: 0.4
A12: Total | B12: =SUM(B5:B11) -> 55 | C12: =SUM(C5:C11) -> 93 | D12: =SUM(D5:D11) -> 55 | E12: =SUM(E5:E11) -> 38 | F12: 0.4086021505
A13: Totals should equate to those included in the Chapter 4 total employee schedule. Employees and Posts numbers are as at 30 June. *Posts must be established and funded in the approved budget or adjustments budget. Full-time equivalents are calculated by taking the total number of working days lost (excluding weekends and public holidays) while a post remains vacant and adding together all such days lost by all posts within the same set (e.g. ‘senior management’) then dividing that total by 250 to give the number of posts equivalent to the accumulated days. T 3.16.4

Sheet 3.16.5
A1: Financial Performance Year 0: Bio-Diversity; Landscape and Other
A2: R'000
A3: Details | B3: Year -1 | C3: Year 0
B4: Actual | C4: Original Budget | D4: Adjustment Budget | E4: Actual | F4: Variance to Budget
A5: Total Operational Revenue | B5: 120 | C5: 125 | D5: 100 | E5: 95 | F5: =(E5-C5)/E5 -> -0.3157894737
A6: Expenditure:
A7: Employees | B7: 125 | C7: 244 | D7: 250 | E7: 248 | F7: =(E7-C7)/E7 -> 0.01612903226
A8: Repairs and Maintenance | B8: 25 | C8: 244 | D8: 250 | E8: 248 | F8: 0.01612903226
A9: Other | B9: 45 | C9: 244 | D9: 250 | E9: 248 | F9: 0.01612903226
A10: Total Operational Expenditure | B10: =SUM(B7:B9) -> 195 | C10: =SUM(C7:C9) -> 732 | D10: 750 | E10: 744 | F10: 0.01612903226
A11: Net Operational Expenditure | B11: =B10-B5 -> 75 | C11: =C10-C5 -> 607 | D11: 650 | E11: 649 | F11: 0.06471494607
A12: Net expenditure to be consistent with summary T 5.1.2 in Chapter 5. Variances are calculated by dividing the difference between the Actual and Original Budget by the Actual. | F12: T 3.16.5

Sheet 3.16.6
A1: Capital Expenditure Year 0: Bio-Diversity; Landscape and Other
A2: R' 000
A3: Capital Projects | B3: Year 0
B4: Budget | C4: Adjustment Budget | D4: Actual Expenditure | E4: Variance from original budget | F4: Total Project Value
A5: Total All | B5: =SUM(B7:B10) -> 260 | C5: =SUM(C7:C10) -> 326 | D5: 378 | E5: =(D5-B5)/D5 -> 0.3121693122
A7: Project A | B7: 100 | C7: 130 | D7: 128 | E7: =(D7-B7)/D7 -> 0.21875 | F7: 280
A8: Project B | B8: 80 | C8: 91 | D8: 90 | E8: =(D8-B8)/D8 -> 0.1111111111 | F8: 150
A9: Project C | B9: 45 | C9: 50 | D9: 80 | E9: =(D9-B9)/D9 -> 0.4375 | F9: 320
A10: Project D | B10: 35 | C10: 55 | D10: 80 | E10: 0.5625 | F10: 90
A11: Total project value represents the estimated cost of the project on approval by council (including past and future expenditure as appropriate. | F11: T 3.16.6

Sheet 3.17.2
A1: Service Data for Clinics
B2: Details | C2: Year -2 | D2: Year -1 | F2: Year 0
C3: Actual No. | D3: Estimate No. | E3: Actual No. | F3: Estimate No.
A4: 1 | B4: Average number of Patient visits on an average day
A5: 2 | B5: Total Medical Staff available on an average day
A6: 3 | B6: Average Pateint waiting time | C6: mins | D6: mins | E6: mins | F6: mins
A7: 4 | B7: Number of HIV/AIDS tests undertaken in the year
A8: 5 | B8: Number of tests in 4 above that proved positive
A9: 6 | B9: Number of children that are immunised at under 1 year of age
A10: 7 | B10: Child immunisation s above compared with the child population under 1 year of age | C10: % | D10: % | E10: % | F10: %
A11: T 3.17.2

Sheet 3.17.3
A1: Clinics Policy Objectives Taken From IDP
A2: Service Objectives | B2: Outline Service Targets | C2: Year 0 | E2: Year 1 | H2: Year 2 | I2: Year 3
C3: Target | D3: Actual | E3: Target | G3: Actual | H3: Target
A4: Service Indicators | C4: *Previous Year | E4: *Previous Year | F4: *Current Year | H4: *Current Year | I4: *Current Year | J4: *Following Year
A5: (i) | B5: (ii) | C5: (iii) | D5: (iv) | E5: (v) | F5: (vi) | G5: (vii) | H5: (viii) | I5: (ix) | J5: (x)
A6: Service Objective xxx
A7: Proportion of population visiting public health clinics | B7: % of children under 1 year that are immunised. | C7: T0% immunised | D7: A0% immunised | E7: T1% immunised | F7: T1% immunised | G7: A1% immunised | H7: T2% immunised | I7: T5% immunised | J7: T5% immunised
A8: Proportion of population visiting public health clinics | B8: % of those tested for HIV/AIDS that proved positive; (number of those tested) | C8: T0% tested positive; (xxxxxx tested) | D8: A0% tested positive; (xxxxx tested) | E8: T1% tested positive; (xxxxx tested) | F8: T1% tested positive; (xxxxx tested) | G8: A1% tested positive; (xxxxx tested) | H8: T2% tested positive; (xxxxx tested) | I8: T5% tested positive; (xxxxx tested) | J8: T5% tested positive; (xxxxx tested)
A18: Note: This statement should include no more than the top four priority service objectives. The indicators and targets specified above (columns (i) and (ii)) must be incoporated in the indicator set for each municipality to which they apply. These are 'universal municipal indicators'. * 'Previous Year' refers to the targets that were set in the Year -1 Budget/IDP round; *'Current Year' refers to the targets set in the Year 0 Budget/IDP round. *'Following Year' refers to the targets set in the Year 1 Budget/IDP round. Note that all targets in the IDP must be fundable within approved budget provision. MSA 2000 chapter 5 sets out the purpose and character of Intergrated Development Plans (IDPs) and chapter 6 sets out the requirements for the reduction of performance management arrangement by municipalities in which IDPs play a key role. | J18: T 3.17.3

Sheet 3.17.4
A1: Employees: Clinics
A2: Job Level | B2: Year -1 | C2: Year 0
B3: Employees | C3: Posts | D3: Employees | E3: Vacancies (fulltime equivalents) | F3: Vacancies (as a % of total posts)
B4: No. | C4: No. | D4: No. | E4: No. | F4: %
A5: 0 - 3 | B5: 1 | C5: 1 | D5: 1 | E5: 0 | F5: =E5/C5 -> 0
A6: 4 - 6 | B6: 3 | C6: 3 | D6: 3 | E6: 0 | F6: =E6/C6 -> 0
A7: 7 - 9 | B7: 6 | C7: 8 | D7: 6 | E7: 2 | F7: =E7/C7 -> 0.25
A8: 10 - 12 | B8: 7 | C8: 15 | D8: 7 | E8: 8 | F8: 0.5333333333
A9: 13 - 15 | B9: 9 | C9: 15 | D9: 9 | E9: 6 | F9: 0.4
A10: 16 - 18 | B10: 11 | C10: 21 | D10: 11 | E10: 10 | F10: 0.4761904762
A11: 19 - 20 | B11: 18 | C11: 30 | D11: 18 | E11: 12 | F11: 0.4
A12: Total | B12: =SUM(B5:B11) -> 55 | C12: =SUM(C5:C11) -> 93 | D12: =SUM(D5:D11) -> 55 | E12: =SUM(E5:E11) -> 38 | F12: 0.4086021505
A13: Totals should equate to those included in the Chapter 4 total employee schedule. Employees and Posts numbers are as at 30 June. *Posts must be established and funded in the approved budget or adjustments budget. Full-time equivalents are calculated by taking the total number of working days lost (excluding weekends and public holidays) while a post remains vacant and adding together all such days lost by all posts within the same set (e.g. ‘senior management’) then dividing that total by 250 to give the number of posts equivalent to the accumulated days. T 3.17.4

Sheet 3.17.5
A1: Financial Performance Year 0: Clinics
A2: R'000
A3: Details | B3: Year -1 | C3: Year 0
B4: Actual | C4: Original Budget | D4: Adjustment Budget | E4: Actual | F4: Variance to Budget
A5: Total Operational Revenue | B5: 120 | C5: 125 | D5: 100 | E5: 95 | F5: =(E5-C5)/E5 -> -0.3157894737
A6: Expenditure:
A7: Employees | B7: 125 | C7: 244 | D7: 250 | E7: 248 | F7: =(E7-C7)/E7 -> 0.01612903226
A8: Repairs and Maintenance | B8: 25 | C8: 244 | D8: 250 | E8: 248 | F8: 0.01612903226
A9: Other | B9: 45 | C9: 244 | D9: 250 | E9: 248 | F9: 0.01612903226
A10: Total Operational Expenditure | B10: =SUM(B7:B9) -> 195 | C10: =SUM(C7:C9) -> 732 | D10: 750 | E10: 744 | F10: 0.01612903226
A11: Net Operational Expenditure | B11: =B10-B5 -> 75 | C11: =C10-C5 -> 607 | D11: 650 | E11: 649 | F11: 0.06471494607
A12: Net expenditure to be consistent with summary T 5.1.2 in Chapter 5. Variances are calculated by dividing the difference between the Actual and Original Budget by the Actual. | F12: T 3.17.5

Sheet 3.17.6
A1: Capital Expenditure Year 0: Clinics
A2: R' 000
A3: Capital Projects | B3: Year 0
B4: Budget | C4: Adjustment Budget | D4: Actual Expenditure | E4: Variance from original budget | F4: Total Project Value
A5: Total All | B5: =SUM(B7:B10) -> 260 | C5: =SUM(C7:C10) -> 326 | D5: 378 | E5: =(D5-B5)/D5 -> 0.3121693122
A7: Project A | B7: 100 | C7: 130 | D7: 128 | E7: =(D7-B7)/D7 -> 0.21875 | F7: 280
A8: Project B | B8: 80 | C8: 91 | D8: 90 | E8: =(D8-B8)/D8 -> 0.1111111111 | F8: 150
A9: Project C | B9: 45 | C9: 50 | D9: 80 | E9: =(D9-B9)/D9 -> 0.4375 | F9: 320
A10: Project D | B10: 35 | C10: 55 | D10: 80 | E10: 0.5625 | F10: 90
A11: Total project value represents the estimated cost of the project on approval by council (including past and future expenditure as appropriate. | F11: T 3.17.6

Sheet 3.18.2
A1: Ambulance Service Data
B2: Details | C2: Year -2 | D2: Year -1 | F2: Year 0
C3: Actual No. | D3: Estimate No. | E3: Actual No. | F3: Estimate No.
A4: 1 | B4: Number of patients taken to medical facilities during the year
A5: 2 | B5: Average time from emergency call to arrival at the patient - in urban areas
A6: 3 | B6: Average time from emergency call to arrival at the patient - in rural areas
A7: 4 | B7: Average time from emergency call to the transportation of patient to a medical facility - in urban areas
A8: 5 | B8: Average time from emergency call to the transportation of patient to a medical facility - in rural areas
A9: 6 | B9: No. ambulance
A10: 7 | B10: No. paramedics
A11: T 3.18.2

Sheet 3.18.3
A1: Ambulances Policy Objectives Taken From IDP
A2: Service Objectives | B2: Outline Service Targets | C2: Year -1 | E2: Year 0 | H2: Year 1 | I2: Year 3
C3: Target | D3: Actual | E3: Target | G3: Actual | H3: Target
A4: Service Indicators | C4: *Previous Year | E4: *Previous Year | F4: *Current Year | H4: *Current Year | I4: *Current Year | J4: *Following Year
A5: (i) | B5: (ii) | C5: (iii) | D5: (iv) | E5: (v) | F5: (vi) | G5: (vii) | H5: (viii) | I5: (ix) | J5: (x)
A6: Service Objective xxx
A7: Ambulance turnaround time (Timeout to patients and back to medical facility) | B7: Average turnaround time in rural areas | C7: T0 min on average | D7: A0 min on average | E7: T1 min on average | F7: T1 min on average | G7: A1 min on average | H7: T2 min on average | I7: T5 min on average | J7: T5 min on average
B8: Average turnaround time in urban areas | C8: T0 min on average | D8: A0 min on average | E8: T1 min on average | F8: T1 min on average | G8: A1 min on average | H8: T2 min on average | I8: T5 min on average | J8: T5 min on average
A18: Note: This statement should include no more than the top four priority service objectives. The indicators and targets specified above (columns (i) and (ii)) must be incoporated in the indicator set for each municipality to which they apply. These are 'universal municipal indicators'. * 'Previous Year' refers to the targets that were set in the Year -1 Budget/IDP round; *'Current Year' refers to the targets set in the Year 0 Budget/IDP round. *'Following Year' refers to the targets set in the Year 1 Budget/IDP round. Note that all targets in the IDP must be fundable within approved budget provision. MSA 2000 chapter 5 sets out the purpose and character of Intergrated Development Plans (IDPs) and chapter 6 sets out the requirements for the reduction of performance management arrangement by municipalities in which IDPs play a key role. | J18: T 3.18.3

Sheet 3.18.4
A1: Employees: Ambulances
A2: Job Level | B2: Year -1 | C2: Year 0
B3: Employees | C3: Posts | D3: Employees | E3: Vacancies (fulltime equivalents) | F3: Vacancies (as a % of total posts)
B4: No. | C4: No. | D4: No. | E4: No. | F4: %
A5: 0 - 3 | B5: 1 | C5: 1 | D5: 1 | E5: 0 | F5: =E5/C5 -> 0
A6: 4 - 6 | B6: 3 | C6: 3 | D6: 3 | E6: 0 | F6: =E6/C6 -> 0
A7: 7 - 9 | B7: 6 | C7: 8 | D7: 6 | E7: 2 | F7: =E7/C7 -> 0.25
A8: 10 - 12 | B8: 7 | C8: 15 | D8: 7 | E8: 8 | F8: 0.5333333333
A9: 13 - 15 | B9: 9 | C9: 15 | D9: 9 | E9: 6 | F9: 0.4
A10: 16 - 18 | B10: 11 | C10: 21 | D10: 11 | E10: 10 | F10: 0.4761904762
A11: 19 - 20 | B11: 18 | C11: 30 | D11: 18 | E11: 12 | F11: 0.4
A12: Total | B12: =SUM(B5:B11) -> 55 | C12: =SUM(C5:C11) -> 93 | D12: =SUM(D5:D11) -> 55 | E12: =SUM(E5:E11) -> 38 | F12: 0.4086021505
A13: Totals should equate to those included in the Chapter 4 total employee schedule. Employees and Posts numbers are as at 30 June. *Posts must be established and funded in the approved budget or adjustments budget. Full-time equivalents are calculated by taking the total number of working days lost (excluding weekends and public holidays) while a post remains vacant and adding together all such days lost by all posts within the same set (e.g. ‘senior management’) then dividing that total by 250 to give the number of posts equivalent to the accumulated days. T 3.18.4

Sheet 3.18.5
A1: Financial Performance Year 0: Ambulances
A2: R'000
A3: Details | B3: Year -1 | C3: Year 0
B4: Actual | C4: Original Budget | D4: Adjustment Budget | E4: Actual | F4: Variance to Budget
A5: Total Operational Revenue | B5: 120 | C5: 125 | D5: 100 | E5: 95 | F5: =(E5-C5)/E5 -> -0.3157894737
A6: Expenditure:
A7: Employees | B7: 125 | C7: 244 | D7: 250 | E7: 248 | F7: =(E7-C7)/E7 -> 0.01612903226
A8: Repairs and Maintenance | B8: 25 | C8: 244 | D8: 250 | E8: 248 | F8: 0.01612903226
A9: Other | B9: 45 | C9: 244 | D9: 250 | E9: 248 | F9: 0.01612903226
A10: Total Operational Expenditure | B10: =SUM(B7:B9) -> 195 | C10: =SUM(C7:C9) -> 732 | D10: 750 | E10: 744 | F10: 0.01612903226
A11: Net Operational Expenditure | B11: =B10-B5 -> 75 | C11: =C10-C5 -> 607 | D11: 650 | E11: 649 | F11: 0.06471494607
A12: Net expenditure to be consistent with summary T 5.1.2 in Chapter 5. Variances are calculated by dividing the difference between the Actual and Original Budget by the Actual. | F12: T 3.18.5

Sheet 3.18.6
A1: Capital Expenditure Year 0: Ambulances
A2: R' 000
A3: Capital Projects | B3: Year 0
B4: Budget | C4: Adjustment Budget | D4: Actual Expenditure | E4: Variance from original budget | F4: Total Project Value
A5: Total All | B5: =SUM(B7:B10) -> 260 | C5: =SUM(C7:C10) -> 326 | D5: 378 | E5: =(D5-B5)/D5 -> 0.3121693122
A7: Project A | B7: 100 | C7: 130 | D7: 128 | E7: =(D7-B7)/D7 -> 0.21875 | F7: 280
A8: Project B | B8: 80 | C8: 91 | D8: 90 | E8: =(D8-B8)/D8 -> 0.1111111111 | F8: 150
A9: Project C | B9: 45 | C9: 50 | D9: 80 | E9: =(D9-B9)/D9 -> 0.4375 | F9: 320
A10: Project D | B10: 35 | C10: 55 | D10: 80 | E10: 0.5625 | F10: 90
A11: Total project value represents the estimated cost of the project on approval by council (including past and future expenditure as appropriate. | F11: T 3.18.6

Sheet 3.19.3
A1: Health Inspection and Etc Policy Objectives Taken From IDP
A2: Service Objectives | B2: Outline Service Targets | C2: Year 0 | E2: Year 1 | H2: Year 2 | I2: Year 3
C3: Target | D3: Actual | E3: Target | G3: Actual | H3: Target
A4: Service Indicators | C4: *Previous Year | E4: *Previous Year | F4: *Current Year | H4: *Current Year | I4: *Current Year | J4: *Following Year
A5: (i) | B5: (ii) | C5: (iii) | D5: (iv) | E5: (v) | F5: (vi) | G5: (vii) | H5: (viii) | I5: (ix) | J5: (x)
A6: Service Objective xxx
A18: Note: This statement should include no more than the top four priority service objectives. The indicators and targets specified above (columns (i) and (ii)) must be incoporated in the indicator set for each municipality to which they apply. These are 'universal municipal indicators'. * 'Previous Year' refers to the targets that were set in the Year -1 Budget/IDP round; *'Current Year' refers to the targets set in the Year 0 Budget/IDP round. *'Following Year' refers to the targets set in the Year 1 Budget/IDP round. Note that all targets in the IDP must be fundable within approved budget provision. MSA 2000 chapter 5 sets out the purpose and character of Intergrated Development Plans (IDPs) and chapter 6 sets out the requirements for the reduction of performance management arrangement by municipalities in which IDPs play a key role. | J18: T 3.19.3

Sheet 3.19.4
A1: Employees: Health Inspection and Etc
A2: Job Level | B2: Year -1 | C2: Year 0
B3: Employees | C3: Posts | D3: Employees | E3: Vacancies (fulltime equivalents) | F3: Vacancies (as a % of total posts)
B4: No. | C4: No. | D4: No. | E4: No. | F4: %
A5: 0 - 3 | B5: 1 | C5: 1 | D5: 1 | E5: 0 | F5: =E5/C5 -> 0
A6: 4 - 6 | B6: 3 | C6: 3 | D6: 3 | E6: 0.5 | F6: =E6/C6 -> 0.1666666667
A7: 7 - 9 | B7: 6 | C7: 6 | D7: 6 | E7: 1.5 | F7: =E7/C7 -> 0.25
A8: 10 - 12 | B8: 7 | C8: 7 | D8: 7 | E8: 1 | F8: 0.1428571429
A9: 13 - 15 | B9: 9 | C9: 9 | D9: 9 | E9: 2.2 | F9: 0.2444444444
A10: 16 - 18 | B10: 11 | C10: 11 | D10: 11 | E10: 0.9 | F10: 0.08181818182
A11: 19 - 20 | B11: 18 | C11: 18 | D11: 18 | E11: 1 | F11: 0.05555555556
A12: Total | B12: =SUM(B5:B11) -> 55 | C12: =SUM(C5:C11) -> 55 | D12: =SUM(D5:D11) -> 55 | E12: =SUM(E5:E11) -> 7.1 | F12: 0.1290909091
A13: Totals should equate to those included in the Chapter 4 total employee schedule. Employees and Posts numbers are as at 30 June. *Posts must be established and funded in the approved budget or adjustments budget. Full-time equivalents are calculated by taking the total number of working days lost (excluding weekends and public holidays) while a post remains vacant and adding together all such days lost by all posts within the same set (e.g. ‘senior management’) then dividing that total by 250 to give the number of posts equivalent to the accumulated days. T 3.19.4

Sheet 3.19.5
A1: Financial Performance Year 0: Health Inspection and Etc
A2: R'000
A3: Details | B3: Year -1 | C3: Year 0
B4: Actual | C4: Original Budget | D4: Adjustment Budget | E4: Actual | F4: Variance to Budget
A5: Total Operational Revenue | B5: 120 | C5: 125 | D5: 100 | E5: 95 | F5: =(E5-C5)/E5 -> -0.3157894737
A6: Expenditure:
A7: Employees | B7: 125 | C7: 244 | D7: 250 | E7: 248 | F7: =(E7-C7)/E7 -> 0.01612903226
A8: Repairs and Maintenance | B8: 25 | C8: 244 | D8: 250 | E8: 248 | F8: 0.01612903226
A9: Other | B9: 45 | C9: 244 | D9: 250 | E9: 248 | F9: 0.01612903226
A10: Total Operational Expenditure | B10: =SUM(B7:B9) -> 195 | C10: =SUM(C7:C9) -> 732 | D10: 750 | E10: 744 | F10: 0.01612903226
A11: Net Operational Expenditure | B11: =B10-B5 -> 75 | C11: =C10-C5 -> 607 | D11: 650 | E11: 649 | F11: 0.06471494607
A12: Net expenditure to be consistent with summary T 5.1.2 in Chapter 5. Variances are calculated by dividing the difference between the Actual and Original Budget by the Actual. | F12: T 3.19.5

Sheet 3.19.6
A1: Capital Expenditure Year 0: Health Inspection and Etc
A2: R' 000
A3: Capital Projects | B3: Year 0
B4: Budget | C4: Adjustment Budget | D4: Actual Expenditure | E4: Variance from original budget | F4: Total Project Value
A5: Total All | B5: =SUM(B7:B10) -> 260 | C5: =SUM(C7:C10) -> 326 | D5: 378 | E5: =(D5-B5)/D5 -> 0.3121693122
A7: Project A | B7: 100 | C7: 130 | D7: 128 | E7: =(D7-B7)/D7 -> 0.21875 | F7: 280
A8: Project B | B8: 80 | C8: 91 | D8: 90 | E8: =(D8-B8)/D8 -> 0.1111111111 | F8: 150
A9: Project C | B9: 45 | C9: 50 | D9: 80 | E9: =(D9-B9)/D9 -> 0.4375 | F9: 320
A10: Project D | B10: 35 | C10: 55 | D10: 80 | E10: 0.5625 | F10: 90
A11: Total project value represents the estimated cost of the project on approval by council (including past and future expenditure as appropriate. | F11: T 3.19.6

Sheet 3.20.2
A1: Metropolitan Police Service Data
B2: Details | C2: Year -1 | D2: Year 0 | F2: Year 1
C3: Actual No. | D3: Estimate No. | E3: Actual No. | F3: Estimate No.
A4: 1 | B4: Number of road traffic accidents during the year
A5: 2 | B5: Number of by-law infringements attended
A6: 3 | B6: Number of police officers in the field on an average day
A7: 4 | B7: Number of police officers on duty on an average day
A8: T 3.20.2

Sheet 3.20.3
A1: Police Policy Objectives Taken From IDP
A2: Service Objectives | B2: Outline Service Targets | C2: Year -1 | E2: Year 0 | H2: Year 1 | I2: Year 3
C3: Target | D3: Actual | E3: Target | G3: Actual | H3: Target
A4: Service Indicators | C4: *Previous Year | E4: *Previous Year | F4: *Current Year | H4: *Current Year | I4: *Current Year | J4: *Following Year
A5: (i) | B5: (ii) | C5: (iii) | D5: (iv) | E5: (v) | F5: (vi) | G5: (vii) | H5: (viii) | I5: (ix) | J5: (x)
A6: Service Objective xxx
A7: Reduction in road accidents | B7: x% reduction in road accidents over the target for the previous year | C7: T0% reduction in year -1 | D7: A0% reduction in year -1 | E7: T1% reduction in year 0 | F7: T1% reduction in year 0 | G7: A1% reduction in year 0 | H7: T2% reduction in year 1 | I7: T5% reduction in year 3 | J7: T5% reduction in year 3
A18: Note: This statement should include no more than the top four priority service objectives. The indicators and targets specified above (columns (i) and (ii)) must be incoporated in the indicator set for each municipality to which they apply. These are 'universal municipal indicators'. * 'Previous Year' refers to the targets that were set in the Year -1 Budget/IDP round; *'Current Year' refers to the targets set in the Year 0 Budget/IDP round. *'Following Year' refers to the targets set in the Year 1 Budget/IDP round. Note that all targets in the IDP must be fundable within approved budget provision. MSA 2000 chapter 5 sets out the purpose and character of Intergrated Development Plans (IDPs) and chapter 6 sets out the requirements for the reduction of performance management arrangement by municipalities in which IDPs play a key role. | J18: T 3.20.3

Sheet 3.20.4
A1: Employees: Police Officers
A2: Job Level | B2: Year -1 | C2: Year 0
A3: Police | B3: Employees | C3: Posts | D3: Employees | E3: Vacancies (fulltime equivalents) | F3: Vacancies (as a % of total posts)
A4: Administrators | B4: No. | C4: No. | D4: No. | E4: No. | F4: %
A5: Chief Police Officer & Deputy
A6: Other Police Officers
A7: 0 - 3 | B7: 1 | C7: 1 | D7: 1 | E7: 0 | F7: =E7/C7 -> 0
A8: 4 - 6 | B8: 3 | C8: 3 | D8: 3 | E8: 0 | F8: =E8/C8 -> 0
A9: 7 - 9 | B9: 6 | C9: 8 | D9: 6 | E9: 2 | F9: =E9/C9 -> 0.25
A10: 10 - 12 | B10: 7 | C10: 15 | D10: 7 | E10: 8 | F10: 0.5333333333
A11: 13 - 15 | B11: 9 | C11: 15 | D11: 9 | E11: 6 | F11: 0.4
A12: 16 - 18 | B12: 11 | C12: 21 | D12: 11 | E12: 10 | F12: 0.4761904762
A13: 19 - 20 | B13: 18 | C13: 30 | D13: 18 | E13: 12 | F13: 0.4
A14: Total | B14: =SUM(B5:B13) -> 55 | C14: =SUM(C5:C13) -> 93 | D14: 55 | E14: 38 | F14: 0.4086021505
A15: Totals should equate to those included in the Chapter 4 total employee schedule. Employees and Posts numbers are as at 30 June. *Posts must be established and funded in the approved budget or adjustments budget. Full-time equivalents are calculated by taking the total number of working days lost (excluding weekends and public holidays) while a post remains vacant and adding together all such days lost by all posts within the same set (e.g. ‘senior management’) then dividing that total by 250 to give the number of posts equivalent to the accumulated days. T 3.20.4

Sheet 3.20.5
A1: Financial Performance Year 0: Police
A2: R'000
A3: Details | B3: Year -1 | C3: Year 0
B4: Actual | C4: Original Budget | D4: Adjustment Budget | E4: Actual | F4: Variance to Budget
A5: Total Operational Revenue | B5: 120 | C5: 125 | D5: 100 | E5: 95 | F5: =(E5-C5)/E5 -> -0.3157894737
A6: Expenditure:
A7: Police Officers
A8: Other employees | B8: 125 | C8: 244 | D8: 250 | E8: 248 | F8: =(E8-C8)/E8 -> 0.01612903226
A9: Repairs and Maintenance | B9: 25 | C9: 244 | D9: 250 | E9: 248 | F9: 0.01612903226
A10: Other | B10: 45 | C10: 244 | D10: 250 | E10: 248 | F10: 0.01612903226
A11: Total Operational Expenditure | B11: =SUM(B8:B10) -> 195 | C11: =SUM(C8:C10) -> 732 | D11: 750 | E11: 744 | F11: 0.01612903226
A12: Net Operational Expenditure | B12: =B11-B5 -> 75 | C12: =C11-C5 -> 607 | D12: 650 | E12: 649 | F12: 0.06471494607
A13: Net expenditure to be consistent with summary T 5.1.2 in Chapter 5. Variances are calculated by dividing the difference between the Actual and Original Budget by the Actual. | F13: T 3.20.5

Sheet 3.20.6
A1: Capital Expenditure Year 0: Police
A2: R' 000
A3: Capital Projects | B3: Year 0
B4: Budget | C4: Adjustment Budget | D4: Actual Expenditure | E4: Variance from original budget | F4: Total Project Value
A5: Total All | B5: =SUM(B7:B10) -> 260 | C5: =SUM(C7:C10) -> 326 | D5: 378 | E5: =(D5-B5)/D5 -> 0.3121693122
A7: Project A | B7: 100 | C7: 130 | D7: 128 | E7: =(D7-B7)/D7 -> 0.21875 | F7: 280
A8: Project B | B8: 80 | C8: 91 | D8: 90 | E8: =(D8-B8)/D8 -> 0.1111111111 | F8: 150
A9: Project C | B9: 45 | C9: 50 | D9: 80 | E9: =(D9-B9)/D9 -> 0.4375 | F9: 320
A10: Project D | B10: 35 | C10: 55 | D10: 80 | E10: 0.5625 | F10: 90
A11: Total project value represents the estimated cost of the project on approval by council (including past and future expenditure as appropriate. | F11: T 3.20.6

Sheet 3.21.2
A1: Metropolitan Fire Service Data
B2: Details | C2: Year -1 | D2: Year 0 | F2: Year 1
C3: Actual No. | D3: Estimate No. | E3: Actual No. | F3: Estimate No.
A4: 1 | B4: Total fires attended in the year
A5: 2 | B5: Total of other incidents attended in the year
A6: 3 | B6: Average turnout time - urban areas
A7: 4 | B7: Average turnout time - rural areas
A8: 5 | B8: Fire fighters in post at year end
A9: 6 | B9: Total fire appliances at year end
A10: 7 | B10: Average number of appliance off the road during the year
A11: T 3.21.2

Sheet 3.21.3
A1: Fire Service Policy Objectives Taken From IDP
A2: Service Objectives | B2: Outline Service Targets | C2: Year -1 | E2: Year 0 | H2: Year 1 | I2: Year 3
C3: Target | D3: Actual | E3: Target | G3: Actual | H3: Target
A4: Service Indicators | C4: *Previous Year | E4: *Previous Year | F4: *Current Year | H4: *Current Year | I4: *Current Year | J4: *Following Year
A5: (i) | B5: (ii) | C5: (iii) | D5: (iv) | E5: (v) | F5: (vi) | G5: (vii) | H5: (viii) | I5: (ix) | J5: (x)
A6: Service Objective xxx
A7: Turnout time compared to National guidelines | B7: % turn out within guidelines (total number of turn outs) | C7: T0% within guidelines | D7: A0% within guidelines or x if x is larger | E7: T1% within guidelines or A0% if that is larger | F7: 70% within guidelines or A0% if that is larger | G7: A1% within guidelines | H7: 75% within guidelines or A1 if that is larger; (xxxxx emergency turn outs in year) | I7: 95% within guidelines or A4 if that is larger; (xxxxx emergency turn outs in year) | J7: 95% within guidelines or A4 if that is larger; (xxxxx emergency turn outs in year)
A18: Note: This statement should include no more than the top four priority service objectives. The indicators and targets specified above (columns (i) and (ii)) must be incoporated in the indicator set for each municipality to which they apply. These are 'universal municipal indicators'. * 'Previous Year' refers to the targets that were set in the Year -1 Budget/IDP round; *'Current Year' refers to the targets set in the Year 0 Budget/IDP round. *'Following Year' refers to the targets set in the Year 1 Budget/IDP round. Note that all targets in the IDP must be fundable within approved budget provision. MSA 2000 chapter 5 sets out the purpose and character of Intergrated Development Plans (IDPs) and chapter 6 sets out the requirements for the reduction of performance management arrangement by municipalities in which IDPs play a key role. | J18: T 3.21.3

Sheet 3.21.4
A1: Employees: Fire Services
A2: Job Level | B2: Year -1 | C2: Year 0
A3: Fire Fighters | B3: Employees | C3: Posts | D3: Employees | E3: Vacancies (fulltime equivalents) | F3: Vacancies (as a % of total posts)
A4: Administrators | B4: No. | C4: No. | D4: No. | E4: No. | F4: %
A5: Chief Fire Officer & Deputy
A6: Other Fire Officers
A7: 0 - 3 | B7: 1 | C7: 1 | D7: 1 | E7: 0 | F7: =E7/C7 -> 0
A8: 4 - 6 | B8: 3 | C8: 3 | D8: 3 | E8: 0 | F8: =E8/C8 -> 0
A9: 7 - 9 | B9: 6 | C9: 8 | D9: 6 | E9: 2 | F9: =E9/C9 -> 0.25
A10: 10 - 12 | B10: 7 | C10: 15 | D10: 7 | E10: 8 | F10: 0.5333333333
A11: 13 - 15 | B11: 9 | C11: 15 | D11: 9 | E11: 6 | F11: 0.4
A12: 16 - 18 | B12: 11 | C12: 21 | D12: 11 | E12: 10 | F12: 0.4761904762
A13: 19 - 20 | B13: 18 | C13: 30 | D13: 18 | E13: 12 | F13: 0.4
A14: Total | B14: =SUM(B5:B13) -> 55 | C14: =SUM(C5:C13) -> 93 | D14: 55 | E14: 38 | F14: 0.4086021505
A15: Totals should equate to those included in the Chapter 4 total employee schedule. Employees and Posts numbers are as at 30 June. *Posts must be established and funded in the approved budget or adjustments budget. Full-time equivalents are calculated by taking the total number of working days lost (excluding weekends and public holidays) while a post remains vacant and adding together all such days lost by all posts within the same set (e.g. ‘senior management’) then dividing that total by 250 to give the number of posts equivalent to the accumulated days. T 3.21.4

Sheet 3.21.5
A1: Financial Performance Year 0: Fire Services
A2: R'000
A3: Details | B3: Year -1 | C3: Year 0
B4: Actual | C4: Original Budget | D4: Adjustment Budget | E4: Actual | F4: Variance to Budget
A5: Total Operational Revenue | B5: 120 | C5: 125 | D5: 100 | E5: 95 | F5: =(E5-C5)/E5 -> -0.3157894737
A6: Expenditure:
A7: Fire fighters
A8: Other employees | B8: 125 | C8: 244 | D8: 250 | E8: 248 | F8: =(E8-C8)/E8 -> 0.01612903226
A9: Repairs and Maintenance | B9: 25 | C9: 244 | D9: 250 | E9: 248 | F9: 0.01612903226
A10: Other | B10: 45 | C10: 244 | D10: 250 | E10: 248 | F10: 0.01612903226
A11: Total Operational Expenditure | B11: =SUM(B8:B10) -> 195 | C11: =SUM(C8:C10) -> 732 | D11: 750 | E11: 744 | F11: 0.01612903226
A12: Net Operational Expenditure | B12: =B11-B5 -> 75 | C12: =C11-C5 -> 607 | D12: 650 | E12: 649 | F12: 0.06471494607
A13: Net expenditure to be consistent with summary T 5.1.2 in Chapter 5. Variances are calculated by dividing the difference between the Actual and Original Budget by the Actual. | F13: T 3.21.5

Sheet 3.21.6
A1: Capital Expenditure Year 0: Fire Services
A2: R' 000
A3: Capital Projects | B3: Year 0
B4: Budget | C4: Adjustment Budget | D4: Actual Expenditure | E4: Variance from original budget | F4: Total Project Value
A5: Total All | B5: =SUM(B7:B10) -> 260 | C5: =SUM(C7:C10) -> 326 | D5: 378 | E5: =(D5-B5)/D5 -> 0.3121693122
A7: Project A | B7: 100 | C7: 130 | D7: 128 | E7: =(D7-B7)/D7 -> 0.21875 | F7: 280
A8: Project B | B8: 80 | C8: 91 | D8: 90 | E8: =(D8-B8)/D8 -> 0.1111111111 | F8: 150
A9: Project C | B9: 45 | C9: 50 | D9: 80 | E9: =(D9-B9)/D9 -> 0.4375 | F9: 320
A10: Project D | B10: 35 | C10: 55 | D10: 80 | E10: 0.5625 | F10: 90
A11: Total project value represents the estimated cost of the project on approval by council (including past and future expenditure as appropriate. | F11: T 3.21.6

Sheet 3.22.3
A1: Disater Management, Animal Licencing and Control, Control of Public Nuisances, Etc Policy Objectives Taken From IDP
A2: Service Objectives | B2: Outline Service Targets | C2: Year 0 | E2: Year 1 | H2: Year 2 | I2: Year 3
C3: Target | D3: Actual | E3: Target | G3: Actual | H3: Target
A4: Service Indicators | C4: *Previous Year | E4: *Previous Year | F4: *Current Year | H4: *Current Year | I4: *Current Year | J4: *Following Year
A5: (i) | B5: (ii) | C5: (iii) | D5: (iv) | E5: (v) | F5: (vi) | G5: (vii) | H5: (viii) | I5: (ix) | J5: (x)
A6: Service Objective xxx
A18: Note: This statement should include no more than the top four priority service objectives. The indicators and targets specified above (columns (i) and (ii)) must be incoporated in the indicator set for each municipality to which they apply. These are 'universal municipal indicators'. * 'Previous Year' refers to the targets that were set in the Year -1 Budget/IDP round; *'Current Year' refers to the targets set in the Year 0 Budget/IDP round. *'Following Year' refers to the targets set in the Year 1 Budget/IDP round. Note that all targets in the IDP must be fundable within approved budget provision. MSA 2000 chapter 5 sets out the purpose and character of Intergrated Development Plans (IDPs) and chapter 6 sets out the requirements for the reduction of performance management arrangement by municipalities in which IDPs play a key role. | J18: T 3.22.3

Sheet 3.22.4
A1: Employees: Disater Management, Animal Licencing and Control, Control of Public Nuisances, Etc
A2: Job Level | B2: Year -1 | C2: Year 0
B3: Employees | C3: Posts | D3: Employees | E3: Vacancies (fulltime equivalents) | F3: Vacancies (as a % of total posts)
B4: No. | C4: No. | D4: No. | E4: No. | F4: %
A5: 0 - 3 | B5: 1 | C5: 1 | D5: 1 | E5: 0 | F5: =E5/C5 -> 0
A6: 4 - 6 | B6: 3 | C6: 3 | D6: 3 | E6: 0 | F6: =E6/C6 -> 0
A7: 7 - 9 | B7: 6 | C7: 8 | D7: 6 | E7: 2 | F7: =E7/C7 -> 0.25
A8: 10 - 12 | B8: 7 | C8: 15 | D8: 7 | E8: 8 | F8: 0.5333333333
A9: 13 - 15 | B9: 9 | C9: 15 | D9: 9 | E9: 6 | F9: 0.4
A10: 16 - 18 | B10: 11 | C10: 21 | D10: 11 | E10: 10 | F10: 0.4761904762
A11: 19 - 20 | B11: 18 | C11: 30 | D11: 18 | E11: 12 | F11: 0.4
A12: Total | B12: =SUM(B5:B11) -> 55 | C12: =SUM(C5:C11) -> 93 | D12: =SUM(D5:D11) -> 55 | E12: =SUM(E5:E11) -> 38 | F12: 0.4086021505
A13: Totals should equate to those included in the Chapter 4 total employee schedule. Employees and Posts numbers are as at 30 June. *Posts must be established and funded in the approved budget or adjustments budget. Full-time equivalents are calculated by taking the total number of working days lost (excluding weekends and public holidays) while a post remains vacant and adding together all such days lost by all posts within the same set (e.g. ‘senior management’) then dividing that total by 250 to give the number of posts equivalent to the accumulated days. T 3.22.4

Sheet 3.22.5
A1: Financial Performance Year 0: Disater Management, Animal Licencing and Control, Control of Public Nuisances, Etc
A2: R'000
A3: Details | B3: Year -1 | C3: Year 0
B4: Actual | C4: Original Budget | D4: Adjustment Budget | E4: Actual | F4: Variance to Budget
A5: Total Operational Revenue | B5: 120 | C5: 125 | D5: 100 | E5: 95 | F5: =(E5-C5)/E5 -> -0.3157894737
A6: Expenditure:
A7: Employees | B7: 125 | C7: 244 | D7: 250 | E7: 248 | F7: =(E7-C7)/E7 -> 0.01612903226
A8: Repairs and Maintenance | B8: 25 | C8: 244 | D8: 250 | E8: 248 | F8: 0.01612903226
A9: Other | B9: 45 | C9: 244 | D9: 250 | E9: 248 | F9: 0.01612903226
A10: Total Operational Expenditure | B10: =SUM(B7:B9) -> 195 | C10: =SUM(C7:C9) -> 732 | D10: 750 | E10: 744 | F10: 0.01612903226
A11: Net Operational Expenditure | B11: =B10-B5 -> 75 | C11: =C10-C5 -> 607 | D11: 650 | E11: 649 | F11: 0.06471494607
A12: Net expenditure to be consistent with summary T 5.1.2 in Chapter 5. Variances are calculated by dividing the difference between the Actual and Original Budget by the Actual. | F12: T 3.22.5

Sheet 3.22.6
A1: Capital Expenditure Year 0: Disater Management, Animal Licencing and Control, Control of Public Nuisances, Etc
A2: R' 000
A3: Capital Projects | B3: Year 0
B4: Budget | C4: Adjustment Budget | D4: Actual Expenditure | E4: Variance from original budget | F4: Total Project Value
A5: Total All | B5: =SUM(B7:B10) -> 260 | C5: =SUM(C7:C10) -> 326 | D5: 378 | E5: =(D5-B5)/D5 -> 0.3121693122
A7: Project A | B7: 100 | C7: 130 | D7: 128 | E7: =(D7-B7)/D7 -> 0.21875 | F7: 280
A8: Project B | B8: 80 | C8: 91 | D8: 90 | E8: =(D8-B8)/D8 -> 0.1111111111 | F8: 150
A9: Project C | B9: 45 | C9: 50 | D9: 80 | E9: =(D9-B9)/D9 -> 0.4375 | F9: 320
A10: Project D | B10: 35 | C10: 55 | D10: 80 | E10: 0.5625 | F10: 90
A11: Total project value represents the estimated cost of the project on approval by council (including past and future expenditure as appropriate. | F11: T 3.22.6

Sheet 3.23.2
A1: Sport and Recreation Policy Objectives Taken From IDP
A2: Service Objectives | B2: Outline Service Targets | C2: Year 0 | E2: Year 1 | H2: Year 2 | I2: Year 3
C3: Target | D3: Actual | E3: Target | G3: Actual | H3: Target
A4: Service Indicators | C4: *Previous Year | E4: *Previous Year | F4: *Current Year | H4: *Current Year | I4: *Current Year | J4: *Following Year
A5: (i) | B5: (ii) | C5: (iii) | D5: (iv) | E5: (v) | F5: (vi) | G5: (vii) | H5: (viii) | I5: (ix) | J5: (x)
A6: Service Objective xxx
A18: Note: This statement should include no more than the top four priority service objectives. The indicators and targets specified above (columns (i) and (ii)) must be incoporated in the indicator set for each municipality to which they apply. These are 'universal municipal indicators'. * 'Previous Year' refers to the targets that were set in the Year -1 Budget/IDP round; *'Current Year' refers to the targets set in the Year 0 Budget/IDP round. *'Following Year' refers to the targets set in the Year 1 Budget/IDP round. Note that all targets in the IDP must be fundable within approved budget provision. MSA 2000 chapter 5 sets out the purpose and character of Intergrated Development Plans (IDPs) and chapter 6 sets out the requirements for the reduction of performance management arrangement by municipalities in which IDPs play a key role. | J18: T 3.23.2

Sheet 3.23.3
A1: Employees: Sport and Recreation
A2: Job Level | B2: Year -1 | C2: Year 0
B3: Employees | C3: Posts | D3: Employees | E3: Vacancies (fulltime equivalents) | F3: Vacancies (as a % of total posts)
B4: No. | C4: No. | D4: No. | E4: No. | F4: %
A5: 0 - 3 | B5: 1 | C5: 1 | D5: 1 | E5: 0 | F5: =E5/C5 -> 0
A6: 4 - 6 | B6: 3 | C6: 3 | D6: 3 | E6: 0 | F6: =E6/C6 -> 0
A7: 7 - 9 | B7: 6 | C7: 8 | D7: 6 | E7: 2 | F7: =E7/C7 -> 0.25
A8: 10 - 12 | B8: 7 | C8: 15 | D8: 7 | E8: 8 | F8: 0.5333333333
A9: 13 - 15 | B9: 9 | C9: 15 | D9: 9 | E9: 6 | F9: 0.4
A10: 16 - 18 | B10: 11 | C10: 21 | D10: 11 | E10: 10 | F10: 0.4761904762
A11: 19 - 20 | B11: 18 | C11: 30 | D11: 18 | E11: 12 | F11: 0.4
A12: Total | B12: =SUM(B5:B11) -> 55 | C12: =SUM(C5:C11) -> 93 | D12: =SUM(D5:D11) -> 55 | E12: =SUM(E5:E11) -> 38 | F12: 0.4086021505
A13: Totals should equate to those included in the Chapter 4 total employee schedule. Employees and Posts numbers are as at 30 June. *Posts must be established and funded in the approved budget or adjustments budget. Full-time equivalents are calculated by taking the total number of working days lost (excluding weekends and public holidays) while a post remains vacant and adding together all such days lost by all posts within the same set (e.g. ‘senior management’) then dividing that total by 250 to give the number of posts equivalent to the accumulated days. T 3.23.3

Sheet 3.23.4
A1: Financial Performance Year 0: Sport and Recreation
A2: R'000
A3: Details | B3: Year -1 | C3: Year 0
B4: Actual | C4: Original Budget | D4: Adjustment Budget | E4: Actual | F4: Variance to Budget
A5: Total Operational Revenue | B5: 120 | C5: 125 | D5: 100 | E5: 95 | F5: =(E5-C5)/E5 -> -0.3157894737
A6: Expenditure:
A7: Employees | B7: 125 | C7: 244 | D7: 250 | E7: 248 | F7: =(E7-C7)/E7 -> 0.01612903226
A8: Repairs and Maintenance | B8: 25 | C8: 244 | D8: 250 | E8: 248 | F8: 0.01612903226
A9: Other | B9: 45 | C9: 244 | D9: 250 | E9: 248 | F9: 0.01612903226
A10: Total Operational Expenditure | B10: =SUM(B7:B9) -> 195 | C10: =SUM(C7:C9) -> 732 | D10: 750 | E10: 744 | F10: 0.01612903226
A11: Net Operational Expenditure | B11: =B10-B5 -> 75 | C11: =C10-C5 -> 607 | D11: 650 | E11: 649 | F11: 0.06471494607
A12: Net expenditure to be consistent with summary T 5.1.2 in Chapter 5. Variances are calculated by dividing the difference between the Actual and Original Budget by the Actual. | F12: T 3.23.4

Sheet 3.23.5
A1: Capital Expenditure Year 0: Sport and Recreation
A2: R' 000
A3: Capital Projects | B3: Year 0
B4: Budget | C4: Adjustment Budget | D4: Actual Expenditure | E4: Variance from original budget | F4: Total Project Value
A5: Total All | B5: =SUM(B7:B10) -> 260 | C5: =SUM(C7:C10) -> 326 | D5: 378 | E5: =(D5-B5)/D5 -> 0.3121693122
A7: Project A | B7: 100 | C7: 130 | D7: 128 | E7: =(D7-B7)/D7 -> 0.21875 | F7: 280
A8: Project B | B8: 80 | C8: 91 | D8: 90 | E8: =(D8-B8)/D8 -> 0.1111111111 | F8: 150
A9: Project C | B9: 45 | C9: 50 | D9: 80 | E9: =(D9-B9)/D9 -> 0.4375 | F9: 320
A10: Project D | B10: 35 | C10: 55 | D10: 80 | E10: 0.5625 | F10: 90
A11: Total project value represents the estimated cost of the project on approval by council (including past and future expenditure as appropriate. | F11: T 3.23.5

Sheet 3.24.3
A1: The Executive and Council Policy Objectives Taken From IDP
A2: Service Objectives | B2: Outline Service Targets | C2: Year -1 | E2: Year 0 | H2: Year 1 | I2: Year 3
C3: Target | D3: Actual | E3: Target | G3: Actual | H3: Target
A4: Service Indicators | C4: *Previous Year | E4: *Previous Year | F4: *Current Year | H4: *Current Year | I4: *Current Year | J4: *Following Year
A5: (i) | B5: (ii) | C5: (iii) | D5: (iv) | E5: (v) | F5: (vi) | G5: (vii) | H5: (viii) | I5: (ix) | J5: (x)
A6: Service Objective xxx
A18: Note: This statement should include no more than the top four priority service objectives. The indicators and targets specified above (columns (i) and (ii)) must be incoporated in the indicator set for each municipality to which they apply. These are 'universal municipal indicators'. * 'Previous Year' refers to the targets that were set in the Year -1 Budget/IDP round; *'Current Year' refers to the targets set in the Year 0 Budget/IDP round. *'Following Year' refers to the targets set in the Year 1 Budget/IDP round. Note that all targets in the IDP must be fundable within approved budget provision. MSA 2000 chapter 5 sets out the purpose and character of Intergrated Development Plans (IDPs) and chapter 6 sets out the requirements for the reduction of performance management arrangement by municipalities in which IDPs play a key role. | J18: T 3.24.3

Sheet 3.24.4
A1: Employees: The Executive and Council
A2: Job Level | B2: Year -1 | C2: Year 0
B3: Employees | C3: Posts | D3: Employees | E3: Vacancies (fulltime equivalents) | F3: Vacancies (as a % of total posts)
B4: No. | C4: No. | D4: No. | E4: No. | F4: %
A5: 0 - 3 | B5: 1 | C5: 1 | D5: 1 | E5: 0 | F5: =E5/C5 -> 0
A6: 4 - 6 | B6: 3 | C6: 3 | D6: 3 | E6: 0 | F6: =E6/C6 -> 0
A7: 7 - 9 | B7: 6 | C7: 8 | D7: 6 | E7: 2 | F7: =E7/C7 -> 0.25
A8: 10 - 12 | B8: 7 | C8: 15 | D8: 7 | E8: 8 | F8: 0.5333333333
A9: 13 - 15 | B9: 9 | C9: 15 | D9: 9 | E9: 6 | F9: 0.4
A10: 16 - 18 | B10: 11 | C10: 21 | D10: 11 | E10: 10 | F10: 0.4761904762
A11: 19 - 20 | B11: 18 | C11: 30 | D11: 18 | E11: 12 | F11: 0.4
A12: Total | B12: =SUM(B5:B11) -> 55 | C12: =SUM(C5:C11) -> 93 | D12: =SUM(D5:D11) -> 55 | E12: =SUM(E5:E11) -> 38 | F12: 0.4086021505
A13: Totals should equate to those included in the Chapter 4 total employee schedule. Employees and Posts numbers are as at 30 June. *Posts must be established and funded in the approved budget or adjustments budget. Full-time equivalents are calculated by taking the total number of working days lost (excluding weekends and public holidays) while a post remains vacant and adding together all such days lost by all posts within the same set (e.g. ‘senior management’) then dividing that total by 250 to give the number of posts equivalent to the accumulated days. T 3.24.4

Sheet 3.24.5
A1: Financial Performance Year 0: The Executive and Council
A2: R'000
A3: Details | B3: Year -1 | C3: Year 0
B4: Actual | C4: Original Budget | D4: Adjustment Budget | E4: Actual | F4: Variance to Budget
A5: Total Operational Revenue | B5: 120 | C5: 125 | D5: 100 | E5: 95 | F5: =(E5-C5)/E5 -> -0.3157894737
A6: Expenditure:
A7: Employees | B7: 125 | C7: 244 | D7: 250 | E7: 248 | F7: =(E7-C7)/E7 -> 0.01612903226
A8: Repairs and Maintenance | B8: 25 | C8: 244 | D8: 250 | E8: 248 | F8: 0.01612903226
A9: Other | B9: 45 | C9: 244 | D9: 250 | E9: 248 | F9: 0.01612903226
A10: Total Operational Expenditure | B10: =SUM(B7:B9) -> 195 | C10: =SUM(C7:C9) -> 732 | D10: 750 | E10: 744 | F10: 0.01612903226
A11: Net Operational Expenditure | B11: =B10-B5 -> 75 | C11: =C10-C5 -> 607 | D11: 650 | E11: 649 | F11: 0.06471494607
A12: Net expenditure to be consistent with summary T 5.1.2 in Chapter 5. Variances are calculated by dividing the difference between the Actual and Original Budget by the Actual. | F12: T 3.24.5

Sheet 3.24.6
A1: Capital Expenditure Year 0: The Executive and Council
A2: R' 000
A3: Capital Projects | B3: Year 0
B4: Budget | C4: Adjustment Budget | D4: Actual Expenditure | E4: Variance from original budget | F4: Total Project Value
A5: Total All | B5: =SUM(B7:B10) -> 260 | C5: =SUM(C7:C10) -> 326 | D5: 378 | E5: =(D5-B5)/D5 -> 0.3121693122
A7: Project A | B7: 100 | C7: 130 | D7: 128 | E7: =(D7-B7)/D7 -> 0.21875 | F7: 280
A8: Project B | B8: 80 | C8: 91 | D8: 90 | E8: =(D8-B8)/D8 -> 0.1111111111 | F8: 150
A9: Project C | B9: 45 | C9: 50 | D9: 80 | E9: =(D9-B9)/D9 -> 0.4375 | F9: 320
A10: Project D | B10: 35 | C10: 55 | D10: 80 | E10: 0.5625 | F10: 90
A11: Total project value represents the estimated cost of the project on approval by council (including past and future expenditure as appropriate. | F11: T 3.24.6

Sheet 3.25.2
A1: Debt Recovery
A2: R' 000
A3: Details of the types of account raised and recovered | B3: Year -1 | D3: Year 0 | G3: Year 1
B4: Actual for accounts billed in year | C4: Proportion of accounts value billed that were collected in the year % | D4: Billed in Year | E4: Actual for accounts billed in year | F4: Proportion of accounts value billed that were collected % | G4: Estmated outturn for accounts billed in year | H4: Estimated Proportion of accounts billed that were collected %
A5: Property Rates
A6: Electricity - B
A7: Electricity - C
A8: Water - B
A9: Water - C
A10: Sanitation
A11: Refuse
A12: Other
A13: B- Basic; C= Consumption. See chapter 6 for the Auditor General's rating of the quality of the financial Accounts and the systems behind them. | H13: T 3.25.2

Sheet 3.25.3
A1: Financial Service Policy Objectives Taken From IDP
A2: Service Objectives | B2: Outline Service Targets | C2: Year 0 | E2: Year 1 | H2: Year 2 | I2: Year 3
C3: Target | D3: Actual | E3: Target | G3: Actual | H3: Target
A4: Service Indicators | C4: *Previous Year | E4: *Previous Year | F4: *Current Year | H4: *Current Year | I4: *Current Year | J4: *Following Year
A5: (i) | B5: (ii) | C5: (iii) | D5: (iv) | E5: (v) | F5: (vi) | G5: (vii) | H5: (viii) | I5: (ix) | J5: (x)
A6: Service Objective xxx
A7: Increase in speed of payment of tariffs, tax demands, invoices | B7: No more than x% of creditors raised (in Rand value) during the year outstanding (o/s) at year end | C7: No more than T0% of current yr creditors o/s at yr end | D7: No more than A0% of current yr creditors o/s at yr end | E7: No more than T1% of current yr creditors o/s at yr end | F7: No more than T1% of current yr creditors o/s at yr end | G7: No more than A1% of current yr creditors o/s at yr end | H7: No more than T2% of current yr creditors o/s at yr end | I7: No more than T5% of current yr creditors o/s at yr end | J7: No more than T5% of current yr creditors o/s at yr end
A8: Reducing the number of invoices raised by increasing advance payment for services rendered (A project requiring partipation by all departments but let by the central finance department) | B8: x% reduction in number of invoices raised over the previous year's target | C8: T0% reduction in invoices raised; target limit of invoices | D8: A0% reduction in invoices raised; target limit of invoices | E8: T1% reduction in invoices raised; target limit of invoices | F8: T1% reduction in invoices raised; target limit of invoices | G8: A1% reduction in invoices raised; target limit of invoices | H8: T2% reduction in invoices raised; target limit of invoices | I8: T5% reduction in invoices raised; target limit of invoices | J8: T5% reduction in invoices raised; target limit of invoices
A9: Improving speed of legal measures to recover revenues | B9: Commence legal proceedings for recovery of revenues within 4 weeks of the due date | C9: Legal proceeding within 4 weeks of due date | D9: Legal proceeding within 4 weeks of due date | E9: Legal proceeding within 4 weeks of due date | F9: Legal proceeding within 4 weeks of due date | G9: Legal proceeding within 4 weeks of due date | H9: % of legal proceeding commenced within 4 weeks of due date | I9: % of legal proceeding commenced within 4 weeks of due date | J9: % of legal proceeding commenced within 4 weeks of due date
A18: Note: This statement should include no more than the top four priority service objectives. The indicators and targets specified above (columns (i) and (ii)) must be incoporated in the indicator set for each municipality to which they apply. These are 'universal municipal indicators'. * 'Previous Year' refers to the targets that were set in the Year -1 Budget/IDP round; *'Current Year' refers to the targets set in the Year 0 Budget/IDP round. *'Following Year' refers to the targets set in the Year 1 Budget/IDP round. Note that all targets in the IDP must be fundable within approved budget provision. MSA 2000 chapter 5 sets out the purpose and character of Intergrated Development Plans (IDPs) and chapter 6 sets out the requirements for the reduction of performance management arrangement by municipalities in which IDPs play a key role. | J18: T 3.25.3

Sheet 3.25.4
A1: Employees: Financial Services
A2: Job Level | B2: Year -1 | C2: Year 0
B3: Employees | C3: Posts | D3: Employees | E3: Vacancies (fulltime equivalents) | F3: Vacancies (as a % of total posts)
B4: No. | C4: No. | D4: No. | E4: No. | F4: %
A5: 0 - 3 | B5: 1 | C5: 1 | D5: 1 | E5: 0 | F5: =E5/C5 -> 0
A6: 4 - 6 | B6: 3 | C6: 3 | D6: 3 | E6: 0 | F6: =E6/C6 -> 0
A7: 7 - 9 | B7: 6 | C7: 8 | D7: 6 | E7: 2 | F7: =E7/C7 -> 0.25
A8: 10 - 12 | B8: 7 | C8: 15 | D8: 7 | E8: 8 | F8: 0.5333333333
A9: 13 - 15 | B9: 9 | C9: 15 | D9: 9 | E9: 6 | F9: 0.4
A10: 16 - 18 | B10: 11 | C10: 21 | D10: 11 | E10: 10 | F10: 0.4761904762
A11: 19 - 20 | B11: 18 | C11: 30 | D11: 18 | E11: 12 | F11: 0.4
A12: Total | B12: =SUM(B5:B11) -> 55 | C12: =SUM(C5:C11) -> 93 | D12: =SUM(D5:D11) -> 55 | E12: =SUM(E5:E11) -> 38 | F12: 0.4086021505
A13: Totals should equate to those included in the Chapter 4 total employee schedule. Employees and Posts numbers are as at 30 June. *Posts must be established and funded in the approved budget or adjustments budget. Full-time equivalents are calculated by taking the total number of working days lost (excluding weekends and public holidays) while a post remains vacant and adding together all such days lost by all posts within the same set (e.g. ‘senior management’) then dividing that total by 250 to give the number of posts equivalent to the accumulated days. T 3.25.4

Sheet 3.25.5
A1: Financial Performance Year 0: Financial Services
A2: R'000
A3: Details | B3: Year -1 | C3: Year 0
B4: Actual | C4: Original Budget | D4: Adjustment Budget | E4: Actual | F4: Variance to Budget
A5: Total Operational Revenue | B5: 120 | C5: 125 | D5: 100 | E5: 95 | F5: =(E5-C5)/E5 -> -0.3157894737
A6: Expenditure:
A7: Employees | B7: 125 | C7: 244 | D7: 250 | E7: 248 | F7: =(E7-C7)/E7 -> 0.01612903226
A8: Repairs and Maintenance | B8: 25 | C8: 244 | D8: 250 | E8: 248 | F8: 0.01612903226
A9: Other | B9: 45 | C9: 244 | D9: 250 | E9: 248 | F9: 0.01612903226
A10: Total Operational Expenditure | B10: =SUM(B7:B9) -> 195 | C10: =SUM(C7:C9) -> 732 | D10: 750 | E10: 744 | F10: 0.01612903226
A11: Net Operational Expenditure | B11: =B10-B5 -> 75 | C11: =C10-C5 -> 607 | D11: 650 | E11: 649 | F11: 0.06471494607
A12: Net expenditure to be consistent with summary T 5.1.2 in Chapter 5. Variances are calculated by dividing the difference between the Actual and Original Budget by the Actual. | F12: T 3.25.5

Sheet 3.25.6
A1: Capital Expenditure Year 0: Financial Services
A2: R' 000
A3: Capital Projects | B3: Year 0
B4: Budget | C4: Adjustment Budget | D4: Actual Expenditure | E4: Variance from original budget | F4: Total Project Value
A5: Total All | B5: =SUM(B7:B10) -> 260 | C5: =SUM(C7:C10) -> 326 | D5: 378 | E5: =(D5-B5)/D5 -> 0.3121693122
A7: Project A | B7: 100 | C7: 130 | D7: 128 | E7: =(D7-B7)/D7 -> 0.21875 | F7: 280
A8: Project B | B8: 80 | C8: 91 | D8: 90 | E8: =(D8-B8)/D8 -> 0.1111111111 | F8: 150
A9: Project C | B9: 45 | C9: 50 | D9: 80 | E9: =(D9-B9)/D9 -> 0.4375 | F9: 320
A10: Project D | B10: 35 | C10: 55 | D10: 80 | E10: 0.5625 | F10: 90
A11: Total project value represents the estimated cost of the project on approval by council (including past and future expenditure as appropriate. | F11: T 3.25.6

Sheet 3.26.3
A1: Human Resource Services Policy Objectives Taken From IDP
A2: Service Objectives | B2: Outline Service Targets | C2: Year -1 | E2: Year 0 | H2: Year 1 | I2: Year 3
C3: Target | D3: Actual | E3: Target | G3: Actual | H3: Target
A4: Service Indicators | C4: *Previous Year | E4: *Previous Year | F4: *Current Year | H4: *Current Year | I4: *Current Year | J4: *Following Year
A5: (i) | B5: (ii) | C5: (iii) | D5: (iv) | E5: (v) | F5: (vi) | G5: (vii) | H5: (viii) | I5: (ix) | J5: (x)
A6: Service Objective xxx
A18: Note: This statement should include no more than the top four priority service objectives. The indicators and targets specified above (columns (i) and (ii)) must be incoporated in the indicator set for each municipality to which they apply. These are 'universal municipal indicators'. * 'Previous Year' refers to the targets that were set in the Year -1 Budget/IDP round; *'Current Year' refers to the targets set in the Year 0 Budget/IDP round. *'Following Year' refers to the targets set in the Year 1 Budget/IDP round. Note that all targets in the IDP must be fundable within approved budget provision. MSA 2000 chapter 5 sets out the purpose and character of Intergrated Development Plans (IDPs) and chapter 6 sets out the requirements for the reduction of performance management arrangement by municipalities in which IDPs play a key role. | J18: T 3.25.3

Sheet 3.26.4
A1: Employees: Human Resource Services
A2: Job Level | B2: Year -1 | C2: Year 0
B3: Employees | C3: Posts | D3: Employees | E3: Vacancies (fulltime equivalents) | F3: Vacancies (as a % of total posts)
B4: No. | C4: No. | D4: No. | E4: No. | F4: %
A5: 0 - 3 | B5: 1 | C5: 1 | D5: 1 | E5: 0 | F5: =E5/C5 -> 0
A6: 4 - 6 | B6: 3 | C6: 3 | D6: 3 | E6: 0 | F6: =E6/C6 -> 0
A7: 7 - 9 | B7: 6 | C7: 8 | D7: 6 | E7: 2 | F7: =E7/C7 -> 0.25
A8: 10 - 12 | B8: 7 | C8: 15 | D8: 7 | E8: 8 | F8: 0.5333333333
A9: 13 - 15 | B9: 9 | C9: 15 | D9: 9 | E9: 6 | F9: 0.4
A10: 16 - 18 | B10: 11 | C10: 21 | D10: 11 | E10: 10 | F10: 0.4761904762
A11: 19 - 20 | B11: 18 | C11: 30 | D11: 18 | E11: 12 | F11: 0.4
A12: Total | B12: =SUM(B5:B11) -> 55 | C12: =SUM(C5:C11) -> 93 | D12: =SUM(D5:D11) -> 55 | E12: =SUM(E5:E11) -> 38 | F12: 0.4086021505
A13: Totals should equate to those included in the Chapter 4 total employee schedule. Employees and Posts numbers are as at 30 June. *Posts must be established and funded in the approved budget or adjustments budget. Full-time equivalents are calculated by taking the total number of working days lost (excluding weekends and public holidays) while a post remains vacant and adding together all such days lost by all posts within the same set (e.g. ‘senior management’) then dividing that total by 250 to give the number of posts equivalent to the accumulated days. T3.26.4

Sheet 3.26.5
A1: Financial Performance Year 0: Human Resource Services
A2: R'000
A3: Details | B3: Year -1 | C3: Year 0
B4: Actual | C4: Original Budget | D4: Adjustment Budget | E4: Actual | F4: Variance to Budget
A5: Total Operational Revenue | B5: 120 | C5: 125 | D5: 100 | E5: 95 | F5: =(E5-C5)/E5 -> -0.3157894737
A6: Expenditure:
A7: Employees | B7: 125 | C7: 244 | D7: 250 | E7: 248 | F7: =(E7-C7)/E7 -> 0.01612903226
A8: Repairs and Maintenance | B8: 25 | C8: 244 | D8: 250 | E8: 248 | F8: 0.01612903226
A9: Other | B9: 45 | C9: 244 | D9: 250 | E9: 248 | F9: 0.01612903226
A10: Total Operational Expenditure | B10: =SUM(B7:B9) -> 195 | C10: =SUM(C7:C9) -> 732 | D10: 750 | E10: 744 | F10: 0.01612903226
A11: Net Operational Expenditure | B11: =B10-B5 -> 75 | C11: =C10-C5 -> 607 | D11: 650 | E11: 649 | F11: 0.06471494607
A12: Net expenditure to be consistent with summary T 5.1.2 in Chapter 5. Variances are calculated by dividing the difference between the Actual and Original Budget by the Actual. | F12: T 3.26.5

Sheet 3.26.6
A1: Capital Expenditure Year 0: Human Resource Services
A2: R' 000
A3: Capital Projects | B3: Year 0
B4: Budget | C4: Adjustment Budget | D4: Actual Expenditure | E4: Variance from original budget | F4: Total Project Value
A5: Total All | B5: =SUM(B7:B10) -> 260 | C5: =SUM(C7:C10) -> 326 | D5: 378 | E5: =(D5-B5)/D5 -> 0.3121693122
A7: Project A | B7: 100 | C7: 130 | D7: 128 | E7: =(D7-B7)/D7 -> 0.21875 | F7: 280
A8: Project B | B8: 80 | C8: 91 | D8: 90 | E8: =(D8-B8)/D8 -> 0.1111111111 | F8: 150
A9: Project C | B9: 45 | C9: 50 | D9: 80 | E9: =(D9-B9)/D9 -> 0.4375 | F9: 320
A10: Project D | B10: 35 | C10: 55 | D10: 80 | E10: 0.5625 | F10: 90
A11: Total project value represents the estimated cost of the project on approval by council (including past and future expenditure as appropriate. | F11: T 3.26.6

Sheet 3.27.3
A1: ICT Services Policy Objectives Taken From IDP
A2: Service Objectives | B2: Outline Service Targets | C2: Year -1 | E2: Year 0 | H2: Year 1 | I2: Year 3
C3: Target | D3: Actual | E3: Target | G3: Actual | H3: Target
A4: Service Indicators | C4: *Previous Year | E4: *Previous Year | F4: *Current Year | H4: *Current Year | I4: *Current Year | J4: *Following Year
A5: (i) | B5: (ii) | C5: (iii) | D5: (iv) | E5: (v) | F5: (vi) | G5: (vii) | H5: (viii) | I5: (ix) | J5: (x)
A6: Service Objective xxx
A18: Note: This statement should include no more than the top four priority service objectives. The indicators and targets specified above (columns (i) and (ii)) must be incoporated in the indicator set for each municipality to which they apply. These are 'universal municipal indicators'. * 'Previous Year' refers to the targets that were set in the Year -1 Budget/IDP round; *'Current Year' refers to the targets set in the Year 0 Budget/IDP round. *'Following Year' refers to the targets set in the Year 1 Budget/IDP round. Note that all targets in the IDP must be fundable within approved budget provision. MSA 2000 chapter 5 sets out the purpose and character of Intergrated Development Plans (IDPs) and chapter 6 sets out the requirements for the reduction of performance management arrangement by municipalities in which IDPs play a key role. | J18: T 3.27.3

Sheet 3.27.4
A1: Employees: ICT Services
A2: Job Level | B2: Year -1 | C2: Year 0
B3: Employees | C3: Posts | D3: Employees | E3: Vacancies (fulltime equivalents) | F3: Vacancies (as a % of total posts)
B4: No. | C4: No. | D4: No. | E4: No. | F4: %
A5: 0 - 3 | B5: 1 | C5: 1 | D5: 1 | E5: 0 | F5: =E5/C5 -> 0
A6: 4 - 6 | B6: 3 | C6: 3 | D6: 3 | E6: 0 | F6: =E6/C6 -> 0
A7: 7 - 9 | B7: 6 | C7: 8 | D7: 6 | E7: 2 | F7: =E7/C7 -> 0.25
A8: 10 - 12 | B8: 7 | C8: 15 | D8: 7 | E8: 8 | F8: 0.5333333333
A9: 13 - 15 | B9: 9 | C9: 15 | D9: 9 | E9: 6 | F9: 0.4
A10: 16 - 18 | B10: 11 | C10: 21 | D10: 11 | E10: 10 | F10: 0.4761904762
A11: 19 - 20 | B11: 18 | C11: 30 | D11: 18 | E11: 12 | F11: 0.4
A12: Total | B12: =SUM(B5:B11) -> 55 | C12: =SUM(C5:C11) -> 93 | D12: =SUM(D5:D11) -> 55 | E12: =SUM(E5:E11) -> 38 | F12: 0.4086021505
A13: Totals should equate to those included in the Chapter 4 total employee schedule. Employees and Posts numbers are as at 30 June. *Posts must be established and funded in the approved budget or adjustments budget. Full-time equivalents are calculated by taking the total number of working days lost (excluding weekends and public holidays) while a post remains vacant and adding together all such days lost by all posts within the same set (e.g. ‘senior management’) then dividing that total by 250 to give the number of posts equivalent to the accumulated days. T3.27.4

Sheet 3.27.5
A1: Financial Performance Year 0: ICT Services
A2: R'000
A3: Details | B3: Year -1 | C3: Year 0
B4: Actual | C4: Original Budget | D4: Adjustment Budget | E4: Actual | F4: Variance to Budget
A5: Total Operational Revenue | B5: 120 | C5: 125 | D5: 100 | E5: 95 | F5: =(E5-C5)/E5 -> -0.3157894737
A6: Expenditure:
A7: Employees | B7: 125 | C7: 244 | D7: 250 | E7: 248 | F7: =(E7-C7)/E7 -> 0.01612903226
A8: Repairs and Maintenance | B8: 25 | C8: 244 | D8: 250 | E8: 248 | F8: 0.01612903226
A9: Other | B9: 45 | C9: 244 | D9: 250 | E9: 248 | F9: 0.01612903226
A10: Total Operational Expenditure | B10: =SUM(B7:B9) -> 195 | C10: =SUM(C7:C9) -> 732 | D10: 750 | E10: 744 | F10: 0.01612903226
A11: Net Operational Expenditure | B11: =B10-B5 -> 75 | C11: =C10-C5 -> 607 | D11: 650 | E11: 649 | F11: 0.06471494607
A12: Net expenditure to be consistent with summary T 5.1.2 in Chapter 5. Variances are calculated by dividing the difference between the Actual and Original Budget by the Actual. | F12: T 3.27.5

Sheet 3.27.6
A1: Capital Expenditure Year 0: ICT Services
A2: R' 000
A3: Capital Projects | B3: Year 0
B4: Budget | C4: Adjustment Budget | D4: Actual Expenditure | E4: Variance from original budget | F4: Total Project Value
A5: Total All | B5: =SUM(B7:B10) -> 260 | C5: =SUM(C7:C10) -> 326 | D5: 378 | E5: =(D5-B5)/D5 -> 0.3121693122
A7: Project A | B7: 100 | C7: 130 | D7: 128 | E7: =(D7-B7)/D7 -> 0.21875 | F7: 280
A8: Project B | B8: 80 | C8: 91 | D8: 90 | E8: =(D8-B8)/D8 -> 0.1111111111 | F8: 150
A9: Project C | B9: 45 | C9: 50 | D9: 80 | E9: =(D9-B9)/D9 -> 0.4375 | F9: 320
A10: Project D | B10: 35 | C10: 55 | D10: 80 | E10: 0.5625 | F10: 90
A11: Total project value represents the estimated cost of the project on approval by council (including past and future expenditure as appropriate. | F11: T 3.27.6

Sheet 3.28.3
A1: Property; Legal; Risk Management; and Procurement Services Policy Objectives Taken From IDP
A2: Service Objectives | B2: Outline Service Targets | C2: Year -1 | E2: Year 0 | H2: Year 1 | I2: Year 3
C3: Target | D3: Actual | E3: Target | G3: Actual | H3: Target
A4: Service Indicators | C4: *Previous Year | E4: *Previous Year | F4: *Current Year | H4: *Current Year | I4: *Current Year | J4: *Following Year
A5: (i) | B5: (ii) | C5: (iii) | D5: (iv) | E5: (v) | F5: (vi) | G5: (vii) | H5: (viii) | I5: (ix) | J5: (x)
A6: Service Objective xxx
A18: Note: This statement should include no more than the top four priority service objectives. The indicators and targets specified above (columns (i) and (ii)) must be incoporated in the indicator set for each municipality to which they apply. These are 'universal municipal indicators'. * 'Previous Year' refers to the targets that were set in the Year 0 Budget/IDP round; *'Current Year' refers to the targets set in the Year 1 Budget/IDP round. *'Following Year' refers to the targets set in the Year 2 Budget/IDP round. Note that all targets in the IDP must be fundable within approved budget provision. MSA 2000 chapter 5 sets out the purpose and character of Intergrated Development Plans (IDPs) and chapter 6 sets out the requirements for the reduction of performance management arrangement by municipalities in which IDPs play a key role. | J18: T 3.28.3

Sheet 3.28.4
A1: Employees: Property; Legal; Risk Management; and Procurement Services
A2: Job Level | B2: Year -1 | C2: Year 0
B3: Employees | C3: Posts | D3: Employees | E3: Vacancies (fulltime equivalents) | F3: Vacancies (as a % of total posts)
B4: No. | C4: No. | D4: No. | E4: No. | F4: %
A5: 0 - 3 | B5: 1 | C5: 1 | D5: 1 | E5: 0 | F5: =E5/C5 -> 0
A6: 4 - 6 | B6: 3 | C6: 3 | D6: 3 | E6: 0 | F6: =E6/C6 -> 0
A7: 7 - 9 | B7: 6 | C7: 8 | D7: 6 | E7: 2 | F7: =E7/C7 -> 0.25
A8: 10 - 12 | B8: 7 | C8: 15 | D8: 7 | E8: 8 | F8: 0.5333333333
A9: 13 - 15 | B9: 9 | C9: 15 | D9: 9 | E9: 6 | F9: 0.4
A10: 16 - 18 | B10: 11 | C10: 21 | D10: 11 | E10: 10 | F10: 0.4761904762
A11: 19 - 20 | B11: 18 | C11: 30 | D11: 18 | E11: 12 | F11: 0.4
A12: Total | B12: =SUM(B5:B11) -> 55 | C12: =SUM(C5:C11) -> 93 | D12: =SUM(D5:D11) -> 55 | E12: =SUM(E5:E11) -> 38 | F12: 0.4086021505
A13: Totals should equate to those included in the Chapter 4 total employee schedule. Employees and Posts numbers are as at 30 June. *Posts must be established and funded in the approved budget or adjustments budget. Full-time equivalents are calculated by taking the total number of working days lost (excluding weekends and public holidays) while a post remains vacant and adding together all such days lost by all posts within the same set (e.g. ‘senior management’) then dividing that total by 250 to give the number of posts equivalent to the accumulated days. T 3.28.4

Sheet 3.28.5
A1: Financial Performance Year 0: Property; Legal; Risk Management and Procurement Services
A2: R'000
A3: Details | B3: Year -1 | C3: Year 0
B4: Actual | C4: Original Budget | D4: Adjustment Budget | E4: Actual | F4: Variance to Budget
A5: Total Operational Revenue | B5: 120 | C5: 125 | D5: 100 | E5: 95 | F5: =(E5-C5)/E5 -> -0.3157894737
A6: Expenditure:
A7: Employees | B7: 125 | C7: 244 | D7: 250 | E7: 248 | F7: =(E7-C7)/E7 -> 0.01612903226
A8: Repairs and Maintenance | B8: 25 | C8: 244 | D8: 250 | E8: 248 | F8: 0.01612903226
A9: Other | B9: 45 | C9: 244 | D9: 250 | E9: 248 | F9: 0.01612903226
A10: Total Operational Expenditure | B10: =SUM(B7:B9) -> 195 | C10: =SUM(C7:C9) -> 732 | D10: 750 | E10: 744 | F10: 0.01612903226
A11: Net Operational Expenditure | B11: =B10-B5 -> 75 | C11: =C10-C5 -> 607 | D11: 650 | E11: 649 | F11: 0.06471494607
A12: Net expenditure to be consistent with summary T 5.1.2 in Chapter 5. Variances are calculated by dividing the difference between the Actual and Original Budget by the Actual. | F12: T 3.28.5

Sheet 3.28.6
A1: Capital Expenditure Year 0: Property; Legal; Risk Management and Procurement Services
A2: R' 000
A3: Capital Projects | B3: Year 0
B4: Budget | C4: Adjustment Budget | D4: Actual Expenditure | E4: Variance from original budget | F4: Total Project Value
A5: Total All | B5: =SUM(B7:B10) -> 260 | C5: =SUM(C7:C10) -> 326 | D5: 378 | E5: =(D5-B5)/D5 -> 0.3121693122
A7: Project A | B7: 100 | C7: 130 | D7: 128 | E7: =(D7-B7)/D7 -> 0.21875 | F7: 280
A8: Project B | B8: 80 | C8: 91 | D8: 90 | E8: =(D8-B8)/D8 -> 0.1111111111 | F8: 150
A9: Project C | B9: 45 | C9: 50 | D9: 80 | E9: =(D9-B9)/D9 -> 0.4375 | F9: 320
A10: Project D | B10: 35 | C10: 55 | D10: 80 | E10: 0.5625 | F10: 90
A11: Total project value represents the estimated cost of the project on approval by council (including past and future expenditure as appropriate. | F11: T 3.28.6

Sheet 3.30
A1: Plan Number: Plan Name
A2: No. | B2: Strategic Focus Area (IDP) | C2: Key Performance Indicator | D2: Baseline (Previous years actual) | E2: Demand | F2: Backlog | G2: Annual Target (Year) | H2: 5 Year Target | I2: Means of verification | J2: Unit of Measure | K2: Quarterly Target | L2: Quarterly actual | M2: Status (Achieved/Not Achieved) | N2: Measures taken to improve performance | O2: Performance Monitoring Quality Assurance comment | P2: Management Response | Q2: Internal Audit Comment | R2: Portfolio of Evidence
A11: Note: Set out key plans as per performance scorecard e.g Plan 1: Sustain and build natural enviroment, Plan 2: Economic Development and job creation, Plan 3: Quality living enviroment, Plan 4: Safe, healthy and secure enviroment, Plan 5: Empowering our citizen, Plan 6: Promoting cultural diversity, Plan 7: Good governance, Plan 8: Financial viability and sustainability. T 3.30

Sheet 4.1.1
A1: Employees
A2: =desc -> Description | B2: Year -1 | C2: Year 0
B3: Employees | C3: Approved Posts | D3: Employees | E3: Vacancies | F3: Vacancies
B4: No. | C4: No. | D4: No. | E4: No. | F4: %
A5: Water | B5: 26485424 | C5: 26485424 | D5: 23572027.36 | E5: 23572027.36 | F5: %
A6: Waste Water (Sanitation) | B6: 8541256 | C6: 8541256 | D6: 8285018.32 | E6: 8285018.32 | F6: %
A7: Electricity | B7: 12354652 | C7: 12354652 | D7: 10254361.16 | E7: 10254361.16 | F7: %
A8: Waste Management | B8: 14231546 | C8: 14231546 | D8: 13235337.78 | E8: 13235337.78 | F8: %
A9: Housing | B9: 6542352 | C9: 6542352 | D9: 5495575.68 | E9: 5495575.68 | F9: %
A10: Waste Water (Stormwater Drainage) | B10: 5642551 | C10: 5642551 | D10: 5529699.98 | E10: 5529699.98 | F10: %
A11: Roads | B11: 5642551 | C11: 5642551 | D11: 5529699.98 | E11: 5529699.98 | F11: %
A12: Transport | B12: 5321531 | C12: 5321531 | D12: 4470086.04 | E12: 4470086.04 | F12: %
A13: Planning | B13: 1253652 | C13: 1253652 | D13: 1002921.6 | E13: 1002921.6 | F13: %
A14: Local Economic Development | B14: 2515644 | C14: 2515644 | D14: 2062828.08 | E14: 2062828.08 | F14: %
A15: Planning (Strategic & Regulatary) | B15: 12545845 | C15: 12545845 | D15: 10413051.35 | E15: 10413051.35 | F15: %
A16: Local Economic Development | B16: 2354564 | C16: 2354564 | D16: 2189744.52 | E16: 2189744.52 | F16: %
A17: Community & Social Services | B17: 4564885 | C17: 4564885 | D17: 3697556.85 | E17: 3697556.85 | F17: %
A18: Enviromental Proctection | B18: 5648645 | C18: 5648645 | D18: 4970807.6 | E18: 4970807.6 | F18: %
A19: Health | B19: 5648645 | C19: 5648645 | D19: 4970807.6 | E19: 4970807.6 | F19: %
A20: Security and Safety | B20: 5648645 | C20: 5648645 | D20: 4970807.6 | E20: 4970807.6 | F20: %
A21: Sport and Recreation | B21: 5648645 | C21: 5648645 | D21: 4970807.6 | E21: 4970807.6 | F21: %
A22: Corporate Policy Offices and Other | B22: 5648645 | C22: 5648645 | D22: 4970807.6 | E22: 4970807.6 | F22: %
A23: Totals | B23: =SUM(B5:B22) -> 136239678 | C23: =SUM(C5:C22) -> 136239678 | D23: =SUM(D5:D22) -> 120591946.7 | E23: 120591946.7 | F23: =SUM(F5:F22) -> 0
A24: Headings follow the order of services as set out in chapter 3. Service totals should equate to those included in the Chapter 3 employee schedules. Employee and Approved Posts numbers are as at 30 June, as per the approved organogram. | F24: T 4.1.1

Sheet 4.1.2
A1: Vacancy Rate: Year 0
A2: Designations | B2: *Total Approved Posts | C2: *Vacancies (Total time that vacancies exist using fulltime equivalents) | D2: *Vacancies (as a proportion of total posts in each category)
B3: No. | C3: No. | D3: %
A4: Municipal Manager | B4: 1 | C4: 0 | D4: =C4*100/B4 -> 0
A5: CFO | B5: 1 | C5: 1 | D5: 100
A6: Other S57 Managers (excluding Finance Posts) | B6: 10 | C6: 1 | D6: 10
A7: Other S57 Managers (Finance posts) | B7: 3 | C7: 1 | D7: 33.33333333
A8: Police officers | B8: 12 | C8: 3 | D8: 25
A9: Fire fighters | B9: 20 | C9: 3 | D9: 15
A10: Senior management: Levels 13-15 (excluding Finance Posts) | B10: 25 | C10: 5 | D10: 20
A11: Senior management: Levels 13-15 (Finance posts) | B11: 6 | C11: 2 | D11: 33.33333333
A12: Highly skilled supervision: levels 9-12 (excluding Finance posts) | B12: 35 | C12: 8 | D12: 22.85714286
A13: Highly skilled supervision: levels 9-12 (Finance posts) | B13: 8 | C13: 1 | D13: 12.5
A14: Total | B14: =SUM(B4:B13) -> 121 | C14: =SUM(C4:C13) -> 25 | D14: 20.66115702
A15: Note: *For posts which are established and funded in the approved budget or adjustments budget (where changes in employee provision have been made). Full-time equivalents are calculated by taking the total number of working days lost (excluding weekends and public holidays) while a post remains vacant and adding together all such days lost by all posts within the same set (e.g. ‘senior management’) then dividing that total by 250 to give the number of posts equivalent to the accumulated days. | D15: T 4.1.2

Sheet 4.1.3
A1: Turn-over Rate
A2: Details | B2: Total Appointments as of beginning of Financial Year | C2: Terminations during the Financial Year | D2: Turn-over Rate*
B3: No. | C3: No.
A4: Year -2 | B4: 50 | C4: 18 | D4: =IF(C4=0,"",C4/B4 ) -> 0.36
A5: Year -1 | B5: 50 | C5: 12 | D5: =IF(C5=0,"",C5/B5 ) -> 0.24
A6: Year 0 | B6: 50 | C6: 10 | D6: =IF(C6=0,"",C6/B6 ) -> 0.2
A7: * Divide the number of employees who have left the organisation within a year, by total number of employees who occupied posts at the beginning of the year | D7: T 4.1.3
C34: =IFERROR(AVERAGE(C2:C33),"") -> 1900-01-13T08:00:00 | D34: =IFERROR(AVERAGE(D2:D33),"") -> 06:24:00

Sheet 4.2.1
A1: HR Policies and Plans
B2: Name of Policy | C2: Completed | D2: Reviewed | E2: Date adopted by council or comment on failure to adopt
C3: % | D3: %
A4: 1 | B4: Affirmative Action
A5: 2 | B5: Attraction and Retention
A6: 3 | B6: Code of Conduct for employees
A7: 4 | B7: Delegations, Authorisation & Responsibility
A8: 5 | B8: Disciplinary Code and Procedures
A9: 6 | B9: Essential Services
A10: 7 | B10: Employee Assistance / Wellness
A11: 8 | B11: Employment Equity
A12: 9 | B12: Exit Management
A13: 10 | B13: Grievance Procedures
A14: 11 | B14: HIV/Aids
A15: 12 | B15: Human Resource and Development
A16: 13 | B16: Information Technology
A17: 14 | B17: Job Evaluation
A18: 15 | B18: Leave
A19: 16 | B19: Occupational Health and Safety
A20: 17 | B20: Official Housing
A21: 18 | B21: Official Journeys
A22: 19 | B22: Official transport to attend Funerals
A23: 20 | B23: Official Working Hours and Overtime
A24: 21 | B24: Organisational Rights
A25: 22 | B25: Payroll Deductions
A26: 23 | B26: Performance Management and Development
A27: 24 | B27: Recruitment, Selection and Appointments
A28: 25 | B28: Remuneration Scales and Allowances
A29: 26 | B29: Resettlement
A30: 27 | B30: Sexual Harassment
A31: 28 | B31: Skills Development
A32: 29 | B32: Smoking
A33: 30 | B33: Special Skills
A34: 31 | B34: Work Organisation
A35: 32 | B35: Uniforms and Protective Clothing
A36: 33 | B36: Other:
A37: Use name of local policies if different from above and at any other HR policies not listed. | E37: T 4.2.1

Sheet 4.3.1
A1: Number and Cost of Injuries on Duty
A2: Type of injury | B2: Injury Leave Taken | C2: Employees using injury leave | D2: Proportion employees using sick leave | E2: Average Injury Leave per employee | F2: Total Estimated Cost
B3: Days | C3: No. | D3: % | E3: Days | F3: R'000
A4: Required basic medical attention only | B4: 60 | C4: 5 | D4: =IFERROR(C4/B4,"") -> 0.08333333333 | E4: =IF(B4="","",B4/5) -> 12 | F4: 60
A5: Temporary total disablement | D5: =IFERROR(C5/B5,"") ->  | E5: =IF(B5="","",B5/5) -> 
A6: Permanent disablement | D6: =IFERROR(C6/B6,"") ->  | E6: =IF(B6="","",B6/5) -> 
A7: Fatal | D7: =IFERROR(C7/B7,"") ->  | E7: =IF(B7="","",B7/5) -> 
A8: Total | B8: =SUM(B4:B7) -> 60 | C8: =SUM(C4:C7) -> 5 | D8: =IFERROR(C8/B8,"") -> 0.08333333333 | E8: =IF(B8="","",B8/5) -> 12 | F8: =SUM(F4:F7) -> 60
F9: T 4.3.1
C37: =IFERROR(AVERAGE(C4:C36),"") -> 1900-01-05 | D37: =IFERROR(AVERAGE(D4:D36),"") -> 02:00:00

Sheet 4.3.2
A1: Number of days and Cost of Sick Leave (excluding injuries on duty)
A2: Salary band | B2: Total sick leave | C2: Proportion of sick leave without medical certification | D2: Employees using sick leave | E2: Total employees in post* | F2: *Average sick leave per Employees | G2: Estimated cost
B3: Days | C3: % | D3: No. | E3: No. | F3: Days | G3: R' 000
A4: Lower skilled (Levels 1-2) | B4: 24 | C4: 0.9 | D4: 10 | E4: 30 | F4: =IFERROR(B4/$E$10,"") -> 0.1548387097 | G4: 30
A5: Skilled (Levels 3-5) | B5: 40 | E5: 22 | F5: =IFERROR(B5/$E$10,"") -> 0.2580645161
A6: Highly skilled production (levels 6-8) | B6: 136 | E6: 58 | F6: 0.8774193548
A7: Highly skilled supervision (levels 9-12) | B7: 6 | C7: 0.95 | D7: 2 | E7: 26 | F7: 0.03870967742 | G7: 31
A8: Senior management (Levels 13-15) | B8: 230 | E8: 11 | F8: 1.483870968
A9: MM and S57 | B9: 65 | E9: 8 | F9: 0.4193548387
A10: Total | B10: =SUM(B4:B9) -> 501 | C10: =AVERAGE(C4:C9) -> 0.925 | D10: =SUM(D4:D9) -> 12 | E10: =SUM(E4:E9) -> 155 | F10: 3.232258065 | G10: =SUM(G4:G9) -> 61
A11: * - Number of employees in post at the beginning of the year | G11: T 4.3.2
A12: *Average is calculated by taking sick leave in colunm 2 divided by total employees in colunm 5

Sheet 4.3.5
A1: Number and Period of Suspensions
A2: Position | B2: Nature of Alleged Misconduct | C2: Date of Suspension | D2: Details of Disciplinary Action taken or Status of Case and Reasons why not Finalised | E2: Date Finalised
E19: T 4.3.5
B36: =IFERROR(AVERAGE(B3:B35),"") -> 

Sheet 4.3.6
A1: Disciplinary Action Taken on Cases of Financial Misconduct
A2: Position | B2: Nature of Alleged Misconduct and Rand value of any loss to the municipality | C2: Disciplinary action taken | D2: Date Finalised
D19: T 4.3.6
B36: =IFERROR(AVERAGE(B3:B35),"") -> 

Sheet 4.4.1
A1: Performance Rewards By Gender
A2: Designations | B2: Beneficiary profile
B3: Gender | C3: Total number of employees in group | D3: Number of beneficiaries | E3: Expenditure on rewards Year 1 | F3: Proportion of beneficiaries within group
E4: R' 000 | F4: %
A5: Lower skilled (Levels 1-2) | B5: Female | C5: 20 | D5: 9 | F5: =IF(D5=0,"",D5/C5) -> 0.45
B6: Male | C6: 30 | D6: 12
A7: Skilled (Levels 3-5) | B7: Female | F7: =IF(D7=0,"",C7/D7) -> 
B8: Male
A9: Highly skilled production (levels 6-8) | B9: Female
B10: Male
A11: Highly skilled supervision (levels 9-12) | B11: Female
B12: Male
A13: Senior management (Levels 13-15) | B13: Female
B14: Male
A15: MM and S57 | B15: Female
B16: Male
A17: Total | C17: =IF(SUM(C5:C16)=0,"",SUM(C5:C16)) -> 50 | D17: =IF(SUM(D5:D16)=0,"",SUM(D5:D16)) -> 21
A18: Has the statutory municipal calculator been used as part of the evaluation process ? | F18: Yes/No
A19: Note: MSA 2000 S51(d) requires that … ‘performance plans, on which rewards are based should be aligned with the IDP’… (IDP objectives and targets are set out in Chapter 3) and that Service Delivery and Budget Implementation Plans (developed under MFMA S69 and Circular 13) should be consistent with the higher level IDP targets and must be incorporated appropriately in personal performance agreements as the basis of performance rewards. Those with disability are shown in brackets '(x)' in the 'Number of beneficiaries' column as well as in the numbers at the right hand side of the column (as illustrated above). | F19: T 4.4.1
E24: =IF(C24=0,"",B24/C24) -> 
C37: =IFERROR(AVERAGE(C3:C36),"") -> 1900-02-02T08:00:00

Sheet 4.5.1
A1: Skills Matrix
A2: Management level | B2: Gender | C2: Employees in post as at 30 June Year 0 | D2: Number of skilled employees required and actual as at 30 June Year 0
D3: Learnerships | G3: Skills programmes & other short courses | J3: Other forms of training | M3: Total
C4: No. | D4: Actual: End of Year -1 | E4: Actual: End of Year 0 | F4: Year 0 Target | G4: Actual: End of Year -1 | H4: Actual: End of Year 0 | I4: Year 0 Target | J4: Actual: End of Year -1 | K4: Actual: End of Year 0 | L4: Year 0 Target | M4: Actual: End of Year -1 | N4: Actual: End of Year 0 | O4: Year 0 Target
A5: MM and s57 | B5: Female | D5: 5 | K5: 0 | L5: 1 | N5: =IF(SUM(E5,H5,K5)=0,"",SUM(E5,H5,K5)) ->  | O5: 1
B6: Male | D6: 5 | K6: 1 | L6: 2 | N6: 1 | O6: 2
A7: Councillors, senior officials and managers | B7: Female | D7: 2 | K7: 3 | L7: 3 | N7: 3 | O7: 3
B8: Male | D8: 3 | K8: 4 | L8: 4 | N8: 4 | O8: 4
A9: Technicians and associate professionals* | B9: Female | D9: 4 | K9: 2 | L9: 2 | N9: 2 | O9: 2
B10: Male | D10: 8 | K10: 8 | L10: 9 | N10: 8 | O10: 9
A11: Professionals | B11: Female | D11: 8 | K11: 6 | L11: 6 | N11: 6 | O11: 6
B12: Male | D12: 6 | K12: 2 | L12: 2 | N12: 2 | O12: 2
A13: Sub total | B13: Female | C13: =IF(SUM(C9,C11,C7,C5)=0,"",SUM(C5,C7,C9,C11)) ->  | D13: 19 | K13: 11 | L13: =IF(SUM(L9,L11,L7,L5)=0,"",SUM(L5,L7,L9,L11)) -> 12 | N13: 11 | O13: 12
B14: Male | C14: =IF(SUM(C10,C12,C8,C6)=0,"",SUM(C10,C12,C8,C6)) ->  | D14: =IF(SUM(D10,D12,D8,D6)=0,"",SUM(D10,D12,D8,D6)) -> 22 | K14: 15 | L14: 17 | N14: 15 | O14: 17
A15: Total | C15: =SUM(C5:C14) -> 0 | D15: =SUM(D5:D14) -> 82 | E15: 0 | F15: 0 | G15: 0 | H15: 0 | I15: 0 | J15: 0 | K15: 52 | L15: 58 | M15: 0 | N15: 52 | O15: 58
A16: *Registered with professional Associate Body e.g CA (SA) | O16: T 4.5.1

Sheet 4.5.2
A1: Financial Competency Development: Progress Report*
A2: Description | B2: A. Total number of officials employed by municipality (Regulation 14(4)(a) and (c)) | C2: B. Total number of officials employed by municipal entities (Regulation 14(4)(a) and (c) | D2: Consolidated: Total of A and B | E2: Consolidated: Competency assessments completed for A and B (Regulation 14(4)(b) and (d)) | F2: Consolidated: Total number of officials whose performance agreements comply with Regulation 16 (Regulation 14(4)(f)) | G2: Consolidated: Total number of officials that meet prescribed competency levels (Regulation 14(4)(e))
A3: Financial Officials
A4: Accounting officer | B4: 0 | C4: 0 | D4: =SUM(B4:C4) -> 0 | E4: 0 | F4: 0 | G4: 0
A5: Chief financial officer | B5: 0 | C5: 0 | D5: =SUM(B5:C5) -> 0 | E5: 0 | F5: 0 | G5: 0
A6: Senior managers | B6: 0 | C6: 0 | D6: =SUM(B6:C6) -> 0 | E6: 0 | F6: 0 | G6: 0
A7: Any other financial officials | B7: 0 | C7: 0 | D7: =SUM(B7:C7) -> 0 | E7: 0 | F7: 0 | G7: 0
A8: Supply Chain Management Officials
A9: Heads of supply chain management units | B9: 0 | C9: 0 | D9: =SUM(B9:C9) -> 0 | E9: 0 | F9: 0 | G9: 0
A10: Supply chain management senior managers | B10: 0 | C10: 0 | D10: =SUM(B10:C10) -> 0 | E10: 1 | F10: 1 | G10: 1
A11: TOTAL | B11: =SUM(B4:B10) -> 0 | C11: 0 | D11: 0 | E11: 1 | F11: 1 | G11: 1
A12: * This is a statutory report under the National Treasury: Local Government: MFMA Competency Regulations (June 2007) | G12: T 4.5.2

Sheet 4.5.3
A1: Skills Development Expenditure
A2: R'000
A3: Management level | B3: Gender | C3: Employees as at the beginning of the financial year | D3: Original Budget and Actual Expenditure on skills development Year 1
D4: Learnerships | F4: Skills programmes & other short courses | H4: Other forms of training | J4: Total
C5: No. | D5: Original Budget | E5: Actual | F5: Original Budget | G5: Actual | H5: Original Budget | I5: Actual | J5: Original Budget | K5: Actual
A6: MM and S57 | B6: Female | H6: 10 | I6: 20 | J6: =IF(SUM(D6,F6,H6)=0,"",SUM(D6,F6,H6)) -> 10 | K6: =IF(SUM(E6,G6,I6)=0,"",SUM(E6,G6,I6)) -> 20
B7: Male | H7: 20 | I7: 25 | J7: =IF(SUM(D7,F7,H7)=0,"",SUM(D7,F7,H7)) -> 20 | K7: =IF(SUM(E7,G7,I7)=0,"",SUM(E7,G7,I7)) -> 25
A8: Legislators, senior officials and managers | B8: Female | J8: =IF(SUM(D8,F8,H8)=0,"",SUM(D8,F8,H8)) -> 
B9: Male
A10: Professionals | B10: Female
B11: Male
A12: Technicians and associate professionals | B12: Female
B13: Male
A14: Clerks | B14: Female
B15: Male
A16: Service and sales workers | B16: Female
B17: Male
A18: Plant and machine operators and assemblers | B18: Female
B19: Male
A20: Elementary occupations | B20: Female
B21: Male
A22: Sub total | B22: Female | C22: =IF(SUM(C10,C12,C14,C16,C8,C6)=0,"",SUM(C6,C8,C10,C12,C14,C16)) ->  | H22: 10 | I22: =IF(SUM(I10,I12,I14,I16,I8,I6)=0,"",SUM(I6,I8,I10,I12,I14,I16)) -> 20 | J22: 10 | K22: 20
B23: Male | C23: =IF(SUM(C9,C7,C11,C13,C15,C17)=0,"",SUM(C9,C7,C11,C13,C15,C17)) ->  | H23: 20 | I23: =IF(SUM(I9,I7,I11,I13,I15,I17)=0,"",SUM(I9,I7,I11,I13,I15,I17)) -> 25 | J23: 20 | K23: 25
A24: Total | C24: =SUM(C22:C23) -> 0 | D24: =SUM(D22:D23) -> 0 | E24: 0 | F24: 0 | G24: 0 | H24: 30 | I24: 45 | J24: 30 | K24: 45
A25: *% and *R value of municipal salaries (original budget) allocated for workplace skills plan. | J25: %* | K25: *R
K26: T4.5.3
C38: =IFERROR(AVERAGE(C4:C37),"") -> 00:00:00 | D38: =IFERROR(AVERAGE(D4:D37),"") -> 00:00:00

Sheet 4.6.2
A1: Number Of Employees Whose Salaries Were Increased Due To Their Positions Being Upgraded
A2: Beneficiaries | B2: Gender | C2: Total
A3: Lower skilled (Levels 1-2) | B3: Female
B4: Male
A5: Skilled (Levels 3-5) | B5: Female
B6: Male
A7: Highly skilled production (Levels 6-8) | B7: Female
B8: Male
A9: Highly skilled supervision (Levels9-12) | B9: Female
B10: Male
A11: Senior management (Levels13-16) | B11: Female
B12: Male
A13: MM and S 57 | B13: Female
B14: Male
A15: Total | C15: =SUM(C3:C14) -> 0
A16: Those with disability are shown in brackets '(x)' in the 'Number of beneficiaries' column as well as in the numbers at the right hand side of the column (as illustrated above). | C16: T 4.6.2

Sheet 4.6.3
A1: Employees Whose Salary Levels Exceed The Grade Determined By Job Evaluation
A2: Occupation | B2: Number of employees | C2: Job evaluation level | D2: Remuneration level | E2: Reason for deviation
E8: T 4.6.3
C36: =IFERROR(AVERAGE(C3:C35),"") ->  | D36: =IFERROR(AVERAGE(D3:D35),"") -> 

Sheet 4.6.4
A1: Employees appointed to posts not approved
A2: Department | B2: Level | C2: Date of appoinment | D2: No. appointed | E2: Reason for appointment when no established post exist
E8: T 4.6.4

Sheet 5.1.1
A1: Reconciliation of Table A1 Budget Summary
A2: Description | B2: Year 0 | M2: Year -1
A3: R thousands | B3: Original Budget | C3: Budget Adjustments (i.t.o. s28 and s31 of the MFMA) | D3: Final adjustments budget | E3: Shifting of funds (i.t.o. s31 of the MFMA) | F3: Virement (i.t.o. Council approved policy) | G3: Final Budget | H3: Actual Outcome | I3: Unauthorised expenditure | J3: Variance | K3: Actual Outcome as % of Final Budget | L3: Actual Outcome as % of Original Budget | M3: Reported unauthorised expenditure | N3: Expenditure authorised in terms of section 32 of MFMA | O3: Balance to be recovered | P3: Restated Audited Outcome
B4: 1 | C4: 2 | D4: 3 | E4: 4 | F4: 5 | G4: 6 | H4: 7 | I4: 8 | J4: 9 | K4: 10 | L4: 11 | M4: 12 | N4: 13 | O4: 14 | P4: 15
A7: Financial Performance
A8: Property rates | D8: =B8+C8 -> 0 | G8: =D8+E8+F8 -> 0
A9: Service charges | D9: =B9+C9 -> 0 | G9: =D9+E9+F9 -> 0
A10: Investment revenue | D10: 0 | G10: =D10+E10+F10 -> 0
A11: Transfers recognised - operational | D11: 0 | G11: =D11+E11+F11 -> 0
A12: Other own revenue | D12: 0 | G12: =D12+E12+F12 -> 0
A13: Total Revenue (excluding capital transfers and contributions)
A14: Employee costs | D14: 0 | G14: =D14+E14+F14 -> 0
A15: Remuneration of councillors | D15: 0 | G15: 0
A16: Debt impairment | D16: 0 | G16: 0
A17: Depreciation & asset impairment | D17: 0 | G17: 0
A18: Finance charges | D18: 0 | G18: 0
A19: Materials and bulk purchases | D19: 0 | G19: 0
A20: Transfers and grants | D20: 0 | G20: 0
A21: Other expenditure | D21: 0 | G21: 0
A22: Total Expenditure
A23: Surplus/(Deficit)
A24: Transfers recognised - capital | D24: =B24+C24 -> 0 | G24: =D24+E24+F24 -> 0
A25: Contributions recognised - capital & contributed assets | D25: =B25+C25 -> 0 | G25: =D25+E25+F25 -> 0
A26: Surplus/(Deficit) after capital transfers & contributions
A27: Share of surplus/ (deficit) of associate | D27: =B27+C27 -> 0 | G27: =D27+E27+F27 -> 0
A28: Surplus/(Deficit) for the year
A30: Capital expenditure & funds sources
A31: Capital expenditure
A32: Transfers recognised - capital | D32: =B32+C32 -> 0 | G32: =D32+E32+F32 -> 0
A33: Public contributions & donations | D33: =B33+C33 -> 0 | G33: =D33+E33+F33 -> 0
A34: Borrowing | D34: =B34+C34 -> 0 | G34: =D34+E34+F34 -> 0
A35: Internally generated funds | D35: =B35+C35 -> 0 | G35: =D35+E35+F35 -> 0
A36: Total sources of capital funds
A38: Cash flows
A39: Net cash from (used) operating | D39: =B39+C39 -> 0 | G39: =D39+E39+F39 -> 0
A40: Net cash from (used) investing | D40: =B40+C40 -> 0 | G40: =D40+E40+F40 -> 0
A41: Net cash from (used) financing | D41: =B41+C41 -> 0 | G41: =D41+E41+F41 -> 0
A42: Cash/cash equivalents at the year end
A44: T 5.1.1
A45: Notes
A46: 3 = sum of colum 1 and 2
A47: 2 represents movements in original budget to get to final adjustmenst budget (including shifting of funds)
A48: Virements must offset each other so that virements in Total Expenditure equals zero
A49: 6 = sum of column 3, 4 and 5
A50: 8 does not necessarily equal the difference between 9 and 8 because overspending is not the only reason for unauthroised expenditure
A51: 9 = 7 - 6
A52: 10 = (7/6)*100
A53: 11 = (9/1)*100
A54: 14 = 13 - 12
A55: 15 in revenue equals Audited Outcome plus funds actually recovered
A56: 15 in expenditure equals Audited Outcome less funds actually recovered
A57: 15 in Cash Flow equals Audited Outcome plus funds recovered
A59: This schedule must be part of the financial statements of the municipality (all other schedules, A2 - A7, should form part of the annexures to the financial statements. These schedules do not directly form part of the audit opinion)

Sheet 5.1.2
A1: Financial Performance of Operational Services
A2: R '000
A3: =desc -> Description | B3: Year -1 | C3: Year 0 | F3: Year 0 Variance
B4: Actual | C4: Original Budget | D4: Adjustments Budget | E4: Actual | F4: Original Budget | G4: Adjustments Budget
A5: Operating Cost
A6: Water | B6: 26485424 | C6: 23572027.36 | D6: 28074549.44 | E6: 23042318.88 | F6: =(E6-C6)/E6 -> -0.02298850575 | G6: =(E6-D6)/E6 -> -0.2183908046
A7: Waste Water (Sanitation) | B7: 8541256 | C7: 8285018.32 | D7: 9053731.36 | E7: 8455843.44 | F7: =(E7-C7)/E7 -> 0.0202020202 | G7: =(E7-D7)/E7 -> -0.07070707071
A8: Electricity | B8: 12354652 | C8: 10254361.16 | D8: 12478198.52 | E8: 13219477.64 | F8: 0.2242990654 | G8: 0.05607476636
A9: Waste Management | B9: 14231546 | C9: 13235337.78 | D9: 13662284.16 | E9: 12096814.1 | F9: -0.09411764706 | G9: -0.1294117647
A10: Housing | B10: 6542352 | C10: 5495575.68 | D10: 5953540.32 | E10: 6346081.44 | F10: 0.1340206186 | G10: 0.0618556701
A11: Component A: sub-total | B11: =SUM(B6:B10) -> 68155230 | C11: =SUM(C6:C10) -> 60842320.3 | D11: 69222303.8 | E11: 63160535.5 | F11: 0.03670353935 | G11: -0.09597398521
A12: Waste Water (Stormwater Drainage) | B12: 5642551 | C12: 5529699.98 | D12: 5924678.55 | E12: 5303997.94 | F12: =(E12-C12)/E12 -> -0.04255319149 | G12: =(E12-D12)/E12 -> -0.1170212766
A13: Roads | B13: 5642551 | C13: 5529699.98 | D13: 5924678.55 | E13: 5303997.94 | F13: -0.04255319149 | G13: -0.1170212766
A14: Transport | B14: 5321531 | C14: 4470086.04 | D14: 5747253.48 | E14: 4629731.97 | F14: 0.03448275862 | G14: -0.2413793103
A15: Component B: sub-total | B15: =SUM(B12:B14) -> 16606633 | C15: 8455214 | D15: 8624318.28 | E15: 9554391.82 | F15: 0.1150442478 | G15: 0.09734513274
A16: Planning | B16: 1253652 | C16: 1002921.6 | D16: 1190969.4 | E16: 1353944.16 | F16: 0.2592592593 | G16: 0.1203703704
A17: Local Economic Development | B17: 2515644 | C17: 2062828.08 | D17: 2264079.6 | E17: 2339548.92 | F17: 0.1182795699 | G17: 0.03225806452
A18: Component B: sub-total | B18: =SUM(B16:B17) -> 3769296 | C18: =SUM(C16:C17) -> 3065749.68 | D18: 3455049 | E18: 3693493.08 | F18: 0.1699592733 | G18: 0.06455787918
A19: Planning (Strategic & Regulatary) | B19: 12545845 | C19: 10413051.35 | D19: 11793094.3 | E19: 11542177.4 | F19: 0.09782608696 | G19: -0.02173913043
A20: Local Economic Development | B20: 2354564 | C20: 2189744.52 | D20: 2425200.92 | E20: 2401655.28 | F20: 0.08823529412 | G20: -0.009803921569
A21: Component C: sub-total | B21: =SUM(B19:B20) -> 14900409 | C21: =SUM(C19:C20) -> 12602795.87 | D21: 14218295.22 | E21: 13943832.68 | F21: 0.09617418975 | G21: -0.01968343613
A22: Community & Social Services | B22: 4564885 | C22: 3697556.85 | D22: 4336640.75 | E22: 4290991.9 | F22: 0.1382978723 | G22: -0.01063829787
A23: Enviromental Proctection | B23: 5648645 | C23: 4970807.6 | D23: 6157023.05 | E23: 4970807.6 | F23: 0 | G23: -0.2386363636
A24: Health | B24: 5648645 | C24: 4970807.6 | D24: 6157023.05 | E24: 4970807.6 | F24: =(E24-C24)/E24 -> 0 | G24: =(E24-D24)/E24 -> -0.2386363636
A25: Security and Safety | B25: 5648645 | C25: 4970807.6 | D25: 6157023.05 | E25: 4970807.6 | F25: =(E25-C25)/E25 -> 0 | G25: =(E25-D25)/E25 -> -0.2386363636
A26: Sport and Recreation | B26: 5648645 | C26: 4970807.6 | D26: 6157023.05 | E26: 4970807.6 | F26: =(E26-C26)/E26 -> 0 | G26: =(E26-D26)/E26 -> -0.2386363636
A27: Corporate Policy Offices and Other | B27: 5648645 | C27: 4970807.6 | D27: 6157023.05 | E27: 4970807.6 | F27: =(E27-C27)/E27 -> 0 | G27: =(E27-D27)/E27 -> -0.2386363636
A28: Component D: sub-total | B28: =SUM(B22:B27) -> 32808110 | C28: =SUM(C22:C27) -> 28551594.85 | D28: =SUM(D22:D27) -> 35121756 | E28: =SUM(E22:E27) -> 29145029.9 | F28: =(E28-C28)/E28 -> 0.02036144935 | G28: =(E28-D28)/E28 -> -0.2050684498
A29: Total Expenditure | B29: =B28+B21+B18+B15+B11 -> 136239678 | C29: =C28+C21+C18+C15+C11 -> 113517674.7 | D29: 130641722.3 | E29: 119497283 | F29: 0.05003970074 | G29: -0.09326102688
A30: In this table operational income is offset agaist operational expenditure leaving a net operational expenditure total for each service as shown in the individual net service expenditure tables in chapter 3. Variances are calculated by dividing the difference between actual and original/adjustments budget by the actual. | G30: T 5.1.2

Sheet 5.2.1
A1: Grant Performance
A2: R' 000
A3: Description | B3: Year -1 | C3: Year 0 | F3: Year 0 Variance
B4: Actual | C4: Budget | D4: Adjustments Budget | E4: Actual | F4: Original Budget (%) | G4: Adjustments Budget (%)
A5: Operating Transfers and Grants
A6: National Government: | B6: =SUM(B7:B11) -> 33976708 | C6: =SUM(C7:C11) -> 0 | D6: 0 | E6: 24756454.39
A7: Equitable share | B7: 21564856 | E7: 17302685
A8: Municipal Systems Improvement | B8: 4524356 | E8: 2182400.15
A9: Department of Water Affairs | B9: 6665484 | E9: 4283029.24
A10: Levy replacement | B10: 1222012 | E10: 988340
A11: Other transfers/grants [insert description]
A12: Provincial Government: | B12: =SUM(B13:B17) -> 18924800 | C12: =SUM(C13:C17) -> 0 | D12: =SUM(D13:D17) -> 0 | E12: =SUM(E13:E17) -> 5994433.32
A13: Health subsidy | B13: 8645268 | E13: 3785700.18
A14: Housing | B14: 4865422 | E14: 1501677.1
A15: Ambulance subsidy | B15: 845654 | E15: 218547.5
A16: Sports and Recreation | B16: 4568456 | E16: 488508.54
A17: =A11 -> Other transfers/grants [insert description]
A18: District Municipality: | B18: =SUM(B19:B20) -> 0 | C18: =SUM(C19:C20) -> 0 | D18: =SUM(D19:D20) -> 0 | E18: =SUM(E19:E20) -> 0
A19: [insert description]
A21: Other grant providers: | B21: =SUM(B22:B23) -> 0 | C21: =SUM(C22:C23) -> 0 | D21: =SUM(D22:D23) -> 0 | E21: =SUM(E22:E23) -> 0
A22: [insert description]
A24: Total Operating Transfers and Grants | B24: =B6+B12+B18+B21 -> 52901508 | C24: =C6+C12+C18+C21 -> 0 | D24: =D6+D12+D18+D21 -> 0 | E24: =E6+E12+E18+E21 -> 30750887.71
A25: Variances are calculated by dividing the difference between actual and original/adjustments budget by the actual. Full list of provincial and national grants available from published gazettes. | G25: T 5.2.1

Sheet 5.2.3
A1: Grants Received From Sources Other Than Division of Revenue Act (DoRA)
A2: Details of Donor | B2: Actual Grant Year -1 | C2: Actual Grant Year 0 | D2: Year 0 Municipal Contribution | E2: Date Grant terminates | F2: Date Municipal contribution terminates | G2: Nature and benefit from the grant received, include description of any contributions in kind
A3: Parastatals
A4: A - "Project 1"
A5: A - "Project 2"
A6: B - "Project 1"
A7: B - "Project 2"
A9: Foreign Governments/Development Aid Agencies
A10: A - "Project 1"
A11: A - "Project 2"
A12: B - "Project 1"
A13: B - "Project 2"
A15: Private Sector / Organisations
A16: A - "Project 1"
A17: A - "Project 2"
A18: B - "Project 1"
A19: B - "Project 2"
A21: Provide a comprehensive response to this schedule | G21: T 5.2.3

Sheet 5.3.2
A1: TREATMENT OF THE THREE LARGEST ASSETS ACQUIRED YEAR 0
A2: Asset 1
A3: Name
A4: Description
A5: Asset Type
A6: Key Staff Involved
A7: Staff Responsibilities
A8: Asset Value | B8: Year -3 | C8: Year -2 | D8: Year -1 | E8: Year 0
A10: Capital Implications
A11: Future Purpose of Asset
A12: Describe Key Issues
A13: Policies in Place to Manage Asset
A14: Asset 2
A15: Name
A16: Description
A17: Asset Type
A18: Key Staff Involved
A19: Staff Responsibilities
A20: Asset Value | B20: Year -3 | C20: Year -2 | D20: Year -1 | E20: Year 0
A22: Capital Implications
A23: Future Purpose of Asset
A24: Describe Key Issues
A25: Policies in Place to Manage Asset
A26: Asset 3
A27: Name
A28: Description
A29: Asset Type
A30: Key Staff Involved
A31: Staff Responsibilities
A32: Asset Value | B32: Year -3 | C32: Year -2 | D32: Year -1 | E32: Year 0
A34: Capital Implications
A35: Future Purpose of Asset
A36: Describe Key Issues
A37: Policies in Place to Manage Asset
E38: T 5.3.2

Sheet 5.3.4
A1: Repair and Maintenance Expenditure: Year 0
A2: R' 000
B3: Original Budget | C3: Adjustment Budget | D3: Actual | E3: Budget variance
A4: Repairs and Maintenance Expenditure | B4: 125 | C4: 129 | D4: 128 | E4: =1-D4/B4 -> -0.024
E5: T 5.3.4

Sheet 5.5.1
A21: Use table below to populate the info for the graph
A23: R million | B23: Original Budget | C23: Adjustment Budget | D23: Un-audited Full Year Total | E23: Original Budget variance | F23: Adjusted Budget Variance
A24: Capital Expenditure | B24: 138358621 | C24: 134809794 | D24: 132759926 | E24: =IF(B24=0,"",1-$D$24/B24) -> 0.04046509686 | F24: =IF(C24=0,"",1-D24/C24) -> 0.01520563113 | G24: =C25/$C$28 -> 0.1203036677
B25: 138358621 | C25: 134809794 | D25: 132759926 | E25: =IF(B25=0,"",1-D25/B25) -> 0.04046509686 | F25: =IF(C25=0,"",1-D25/C25) -> 0.01520563113
A26: Operating Expenditure | B26: 981969032 | C26: 985769458 | D26: 986594798 | E26: -0.004710704563 | F26: -0.0008372545866 | G26: =C27/$C$28 -> 0.8796963323
B27: 981969032 | C27: 985769458 | D27: 986594798 | E27: -0.004710704563 | F27: -0.0008372545866
A28: Total expenditure | B28: =B27+B25 -> 1120327653 | C28: =C27+C25 -> 1120579252 | D28: =D27+D25 -> 1119354724 | E28: 0.0008684325495 | F28: 0.001092763406
A29: Water and sanitation | B29: 69142610 | C29: 70150653 | D29: 69897654 | E29: -0.01092009688 | F29: 0.00360650955
A30: Electricity | B30: 47304900 | C30: 47654890 | D30: 47648794 | E30: -0.007269733157 | F30: 0.0001279197161
A31: Housing | B31: 4500000 | C31: 4654690 | D31: 4655980 | E31: -0.03466222222 | F31: -0.000277139831
A32: Roads, Pavements, Bridges and storm water | B32: 16111111 | C32: 14436798 | D32: 13645789 | E32: 0.1530199873 | F32: 0.0547911663
A33: Other | B33: 5800000 | C33: 5567453 | D33: 5567689 | E33: 0.04005362069 | F33: -4.238922179e-05
B34: 138358621 | C34: 134809794 | D34: 132759926 | E34: 0.04046509686 | F34: 0.01520563113
A35: External Loans | B35: 30000000 | C35: 31000000 | D35: 31000000 | E35: -0.03333333333 | F35: 0
A36: Internal contributions | B36: 42245670 | C36: 33829251 | D36: 33839245 | E36: 0.1989890325 | F36: -0.0002954248085
A37: Grants and subsidies | B37: 66112951 | C37: 75980543 | D37: 75983528 | E37: -0.1492986904 | F37: -3.928637362e-05
A38: Other | B38: 0 | C38: 0
B39: 138358621 | C39: 140809794 | D39: 140822773 | E39: -0.0178098913 | F39: -9.217398614e-05
A40: External Loans | B40: 35000000 | C40: 35000000 | D40: 35000000 | E40: 0 | F40: 0
A41: Grants and subsidies | B41: 162000000 | C41: 162000000 | D41: 162000000 | E41: 0 | F41: 0
A42: Investments Redeemed | B42: 30000000 | C42: 48000000 | D42: 47976543 | E42: -0.5992181 | F42: 0.0004886875
A43: Statutory Receipts (including VAT) | B43: 85000000 | C43: 87342563 | D43: 88445130 | E43: -0.04053094118 | F43: -0.01262347889
A44: Other Receipts | B44: 870000000 | C44: 856463267 | D44: 858345120 | E44: 0.01339641379 | F44: -0.002197237258
B45: 1182000000 | C45: 1188805830 | D45: 1191766793 | E45: -0.00826293824 | F45: -0.002490703633
A46: Salaries, wages and allowances | B46: 313400000 | C46: 310818524 | D46: 310800432 | E46: 0.008294728781 | F46: 5.820759898e-05
A47: Cash and creditor payments | B47: 550047659 | C47: 527229005 | D47: 531564879 | E47: 0.03360214283 | F47: -0.008223891248
A48: Capital payments | B48: 102349567 | C48: 142325967 | D48: 141342678 | E48: -0.3809797358 | F48: 0.006908711184
A49: Investments made | B49: 0 | C49: 54261000 | D49: 43000000 | F49: 0.2075339562
A50: External loans repaid | B50: 56000000 | C50: 64299073 | D50: 64200456 | E50: -0.1464367143 | F50: 0.001533723511
A51: Statutory Payments (including VAT) | B51: 93146796 | C51: 91656000 | D51: 91546298 | E51: 0.01718253412 | F51: 0.001196888365
A52: Other payments | B52: 0 | C52: 7871004 | D52: 793465 | E52: =IF(B52=0,"",1-D52/B52) ->  | F52: 0.8991913865
B53: 1114944022 | C53: 1198460573 | D53: 1183248208 | E53: -0.06126243529 | F53: 0.01269325445
B54: =B23 -> Original Budget | C54: =C23 -> Adjustment Budget | D54: =D23 -> Un-audited Full Year Total | E54: =E23 -> Original Budget variance | F54: =F23 -> Adjusted Budget Variance
A55: Property rates | B55: 163789453 | C55: 164116782 | D55: 164239578 | E55: -0.002748192828 | F55: -0.0007482232987
A56: Service charges | B56: 603836900 | C56: 604452756 | D56: 604453785 | E56: -0.00102160865 | F56: -1.702366297e-06
A57: Other own revenue | B57: 214342679 | C57: 215327659 | D57: 215432173 | E57: -0.005082954105 | F57: -0.0004853719234
B58: 981969032 | C58: 983897197 | D58: 984125536 | E58: -0.002196101842 | F58: -0.0002320760753
A59: Employee related costs | B59: 302500000 | C59: 300390487 | D59: 300567342 | E59: 0.006388952066 | F59: -0.0005887503355
A60: Provision for working capital | B60: 0 | C60: 0 | D60: 0
A61: Repairs and maintenance | B61: 51289054 | C61: 52451275 | D61: 52485347 | E61: -0.02332452847 | F61: -0.0006495933607
A62: Bulk purchases | B62: 290608422 | C62: 293268753 | D62: 293199456 | E62: -0.008915894392 | F62: 0.0002362917948
A63: Other expenditure | B63: 337571556 | C63: 339658943 | D63: 340342653 | E63: -0.008208917341 | F63: -0.002012930954
B64: 981969032 | C64: 985769458 | D64: 986594798 | E64: -0.004710704563 | F64: -0.0008372545866
A65: Service charges: Electricity | B65: 314325689 | C65: 322453738 | D65: 323563549 | E65: -0.0293894528 | F65: -0.003441768134
A66: Grants & subsidies: Electricity | B66: 7088489 | C66: 11134267 | D66: 12453965 | E66: -0.756928028 | F66: -0.1185258087
A67: Other revenue: Electricity | B67: 21846491 | C67: 22347891 | D67: 22398054.86 | E67: -0.02524725184 | F67: -0.002244679822
B68: 343260669 | C68: 355935896 | D68: 358415568.9 | E68: -0.04414982906 | F68: -0.006966627665
A69: Employee related costs: Electricity | B69: 13256748 | C69: 12956409 | D69: 12765432 | E69: 0.037061578 | F69: 0.01473996383
A70: Provision for working capital: Electricity | B70: 0 | C70: 0 | D70: 0
A71: Repairs and maintenance: Electricity | B71: 16543298 | C71: 19423438 | D71: 19352310 | E71: -0.1697975821 | F71: 0.003661967567
A72: Bulk purchases: Electricity | B72: 178976501 | C72: 184317863 | D72: 184298704 | E72: -0.02973688149 | F72: 0.0001039454326
A73: Other expenditure: Electricity | B73: 33546809 | C73: 49542968 | D73: 50875324 | E73: -0.5165473414 | F73: -0.02689293867
B74: 242323356 | C74: 266240678 | D74: 267291770 | E74: -0.1030375875 | F74: -0.003947901605
A75: Service charges: Water | B75: 137689643 | C75: 139085643 | D75: 140347210 | E75: -0.01930113945 | F75: -0.009070432956
A76: Grants & subsidies: Water | B76: 27453255 | C76: 25500250 | D76: 25500250 | E76: 0.07113928749 | F76: 0
A77: Other revenue: Water | B77: 11567489 | C77: 13875632 | D77: 13995321 | E77: -0.2098840984 | F77: -0.008625841331
B78: 176710387 | C78: 178461525 | D78: 179842781 | E78: -0.01772614532 | F78: -0.007739797136
A79: Employee related costs: Water | B79: 13452549 | C79: 14012349 | D79: 13998372 | E79: -0.04057394625 | F79: 0.0009974772966
A80: Provision for working capital: Water | B80: 0 | C80: 0 | D80: 0
A81: Repairs and maintenance: Water | B81: 8546289 | C81: 9357128 | D81: 9421863 | E81: -0.102450783 | F81: -0.00691825526
A82: Bulk purchases: Water | B82: 85765454 | C82: 88356120 | D82: 88547219 | E82: -0.03243456276 | F82: -0.002162826978
A83: Other expenditure: Water | B83: 48634526 | C83: 44746511 | D83: 44653219 | E83: 0.08186174159 | F83: 0.002084899982
B84: 156398818 | C84: 156472108 | D84: 156620673 | E84: -0.001418520951 | F84: -0.000949466342
F85: Txxx

Sheet 5.6.1
A1: Capital Expenditure - Funding Sources: Year -1 to Year 0
A2: R' 000
A3: Details | C3: Year -1 | D3: Year 0
C4: Actual | D4: Original Budget (OB) | E4: Adjustment Budget | F4: Actual | G4: Adjustment to OB Variance (%) | H4: Actual to OB Variance (%)
A5: Source of finance
B6: External loans | C6: 3542 | D6: 5500 | E6: 5520 | F6: 5511 | G6: =(E6-D6)/D6 -> 0.003636363636 | H6: =(F6-D6)/D6 -> 0.002
B7: Public contributions and donations | C7: 248 | D7: 300 | E7: 390 | F7: 421 | G7: =(E7-D7)/D7 -> 0.3 | H7: =(F7-D7)/D7 -> 0.4033333333
B8: Grants and subsidies | C8: 3451 | D8: 3700 | E8: 3700 | F8: 3856 | G8: =(E8-D8)/D8 -> 0 | H8: =(F8-D8)/D8 -> 0.04216216216
B9: Other | C9: 2451 | D9: 4500 | E9: 4600 | F9: 4565 | G9: =(E9-D9)/D9 -> 0.02222222222 | H9: =(F9-D9)/D9 -> 0.01444444444
A10: Total | C10: =SUM(C6:C9) -> 9692 | D10: 14000 | E10: 14210 | F10: 14353 | G10: 0.3258585859 | H10: 0.4619399399
A11: Percentage of finance
B12: External loans | C12: =C6/C$10 -> 0.3654560462 | D12: 0.3928571429 | E12: 0.3884588318 | F12: 0.3839615411 | G12: 0.01115933044 | H12: 0.004329567173
B13: Public contributions and donations | C13: 0.02558811391 | D13: 0.02142857143 | E13: 0.02744546094 | F13: 0.029331847 | G13: 0.9206447613 | H13: 0.8731293799
B14: Grants and subsidies | C14: 0.3560668593 | D14: 0.2642857143 | E14: 0.2603800141 | F14: 0.2686546367 | G14: 0 | H14: 0.09127195663
B15: Other | C15: 0.2528889806 | D15: 0.3214285714 | E15: 0.3237156932 | F15: 0.3180519752 | G15: 0.06819590825 | H15: 0.03126909625
A16: Capital expenditure
B17: Water and sanitation | C17: 1845 | D17: 4300 | E17: 4250 | F17: 4256 | G17: =(E17-D17)/D17 -> -0.01162790698 | H17: =(F17-D17)/D17 -> -0.01023255814
B18: Electricity | C18: 1562 | D18: 2400 | E18: 2480 | F18: 2453 | G18: =(E18-D18)/D18 -> 0.03333333333 | H18: =(F18-D18)/D18 -> 0.02208333333
B19: Housing | C19: 1243 | D19: 2700 | E19: 2800 | F19: 2685 | G19: =(E19-D19)/D19 -> 0.03703703704 | H19: =(F19-D19)/D19 -> -0.005555555556
B20: Roads and storm water | C20: 1352 | D20: 1500 | E20: 1400 | F20: 1486 | G20: =(E20-D20)/D20 -> -0.06666666667 | H20: =(F20-D20)/D20 -> -0.009333333333
B21: Other | C21: =C10-SUM(C17:C20) -> 3690 | D21: 3500 | E21: 3450 | F21: =F10-SUM(F17:F20) -> 3473 | G21: =(E21-D21)/D21 -> -0.01428571429 | H21: =(F21-D21)/D21 -> -0.007714285714
A22: Total | C22: =SUM(C17:C21) -> 9692 | D22: 14400 | E22: 14380 | F22: 14353 | G22: -0.02220991756 | H22: -0.01075239941
A23: Percentage of expenditure
B24: Water and sanitation | C24: =C17/C$22 -> 0.1903631861 | D24: 0.2986111111 | E24: 0.2955493741 | F24: 0.2965233749 | G24: 0.5235457064 | H24: 0.9516534636
B25: Electricity | C25: 0.1611638465 | D25: 0.1666666667 | E25: 0.1724617524 | F25: 0.1709050373 | G25: -1.500831025 | H25: -2.053805155
B26: Housing | C26: 0.1282501032 | D26: 0.1875 | E26: 0.1947148818 | F26: 0.1870689055 | G26: -1.667590028 | H26: 0.5166805421
B27: Roads and storm water | C27: 0.139496492 | D27: 0.1041666667 | E27: 0.09735744089 | F27: 0.1035323626 | G27: 3.00166205 | H27: 0.8680233107
B28: Other | C28: 0.3807263723 | D28: 0.2430555556 | E28: 0.2399165508 | F28: 0.2419703198 | G28: 0.6432132964 | H28: 0.7174478384
H29: T 5.6.1

Sheet 5.7.1
A1: Capital Expenditure of 5 largest projects*
A2: R' 000
A3: Name of Project | B3: Current: Year 0 | E3: Variance: Current Year 0
B4: Original Budget | C4: Adjustment Budget | D4: Actual Expenditure | E4: Original Variance (%) | F4: Adjustment variance (%)
A5: A - Name of Project | B5: 26000 | C5: 26500 | D5: 25700 | E5: =(B5-D5)/B5 -> 0.01153846154 | F5: =(B5-C5)/B5 -> -0.01923076923
A6: B - Name of Project | B6: 19500 | C6: 19750 | D6: 19900 | E6: =(B6-D6)/B6 -> -0.02051282051 | F6: =(B6-C6)/B6 -> -0.01282051282
A7: C - Name of Project | B7: 15700 | C7: 15700 | D7: 15500 | E7: =(B7-D7)/B7 -> 0.0127388535 | F7: =(B7-C7)/B7 -> 0
A8: D - Name of Project | B8: 12000 | C8: 11800 | D8: 11700 | E8: =(B8-D8)/B8 -> 0.025 | F8: =(B8-C8)/B8 -> 0.01666666667
A9: E - Name of Project | B9: 11500 | C9: 11000 | D9: 11250 | E9: =(B9-D9)/B9 -> 0.02173913043 | F9: =(B9-C9)/B9 -> 0.04347826087
A10: * Projects with the highest capital expenditure in Year 0
A11: Name of Project - A
A12: Objective of Project
A13: Delays
A14: Future Challenges
A15: Anticipated citizen benefits
A16: Name of Project - B
A17: Objective of Project
A18: Delays
A19: Future Challenges
A20: Anticipated citizen benefits
A21: Name of Project - C
A22: Objective of Project
A23: Delays
A24: Future Challenges
A25: Anticipated citizen benefits
A26: Name of Project - D
A27: Objective of Project
A28: Delays
A29: Future Challenges
A30: Anticipated citizen benefits
A31: Name of Project - E
A32: Objective of Project
A33: Delays
A34: Future Challenges
A35: Anticipated citizen benefits
A36: T 5.7.1

Sheet 5.8.2
A1: Service Backlogs as at 30 June Year 0
A2: Households (HHs)
B3: *Service level above minimun standard | D3: **Service level below minimun standard
B4: No. HHs | C4: % HHs | D4: No. HHs | E4: % HHs
A5: Water | C5: % | E5: %
A6: Sanitation | C6: % | E6: %
A7: Electricity | C7: % | E7: %
A8: Waste management | C8: % | E8: %
A9: Housing | C9: % | E9: %
A10: % HHs are the service above/below minimum starndard as a proportion of total HHs. 'Housing' refrs to * formal and ** informal settlements. | E10: T 5.8.2

Sheet 5.8.3
A1: Municipal Infrastructure Grant (MIG)* Expenditure Year 0 on Service backlogs
A2: R' 000
A3: Details | B3: Budget | C3: Adjustments Budget | D3: Actual | E3: Variance | G3: Major conditions applied by donor (continue below if necessary)
E4: Budget | F4: Adjust-ments Budget
A5: Infrastructure - Road transport | E5: % | F5: %
A6: Roads, Pavements & Bridges | E6: % | F6: %
A7: Storm water | E7: % | F7: %
A8: Infrastructure - Electricity | E8: % | F8: %
A9: Generation | E9: % | F9: %
A10: Transmission & Reticulation | E10: % | F10: %
A11: Street Lighting | E11: % | F11: %
A12: Infrastructure - Water | E12: % | F12: %
A13: Dams & Reservoirs | E13: % | F13: %
A14: Water purification | E14: % | F14: %
A15: Reticulation | E15: % | F15: %
A16: Infrastructure - Sanitation | E16: % | F16: %
A17: Reticulation | E17: % | F17: %
A18: Sewerage purification | E18: % | F18: %
A19: Infrastructure - Other | E19: % | F19: %
A20: Waste Management | E20: % | F20: %
A21: Transportation | E21: % | F21: %
A22: Gas | E22: % | F22: %
A23: Other Specify: | E23: % | F23: %
E24: % | F24: %
E25: % | F25: %
E26: % | F26: %
A27: Total | E27: % | F27: %
A28: * MIG is a government grant program designed to fund a reduction in service backlogs, mainly: Water; Sanitation; Roads; Electricity. Expenditure on new, upgraded and renewed infrastructure is set out at Appendix M; note also the calculation of the variation. Variances are calculated by dividing the difference between actual and original/adjustments budget by the actual. | G28: T 5.8.3

Sheet 5.9.1
A1: Cash Flow Outcomes
A2: R'000
A3: =desc -> Description | B3: Year -1 | C3: Current: Year 0
B4: =Head5 -> Audited Outcome | C4: =Head6 -> Original Budget | D4: =Head7 -> Adjusted Budget | E4: Actual
A5: CASH FLOW FROM OPERATING ACTIVITIES
A6: Receipts
A7: Ratepayers and other
A8: Government - operating
A9: Government - capital
A10: Interest
A11: Dividends
A12: Payments
A13: Suppliers and employees
A14: Finance charges
A15: Transfers and Grants
A16: NET CASH FROM/(USED) OPERATING ACTIVITIES | B16: =SUM(B7:B10)+SUM(B13:B15) -> 0 | C16: =SUM(C7:C10)+SUM(C13:C15) -> 0 | D16: =SUM(D7:D10)+SUM(D13:D15) -> 0 | E16: =SUM(E7:E10)+SUM(E13:E15) -> 0
A18: CASH FLOWS FROM INVESTING ACTIVITIES
A19: Receipts
A20: Proceeds on disposal of PPE
A21: Decrease (Increase) in non-current debtors
A22: Decrease (increase) other non-current receivables
A23: Decrease (increase) in non-current investments
A24: Payments
A25: Capital assets
A26: NET CASH FROM/(USED) INVESTING ACTIVITIES | B26: =SUM(B20:B23)+B25 -> 0 | C26: =SUM(C20:C23)+C25 -> 0 | D26: =SUM(D20:D23)+D25 -> 0 | E26: =SUM(E20:E23)+E25 -> 0
A28: CASH FLOWS FROM FINANCING ACTIVITIES
A29: Receipts
A30: Short term loans
A31: Borrowing long term/refinancing
A32: Increase (decrease) in consumer deposits
A33: Payments
A34: Repayment of borrowing
A35: NET CASH FROM/(USED) FINANCING ACTIVITIES | B35: =SUM(B30:B32)+B34 -> 0 | C35: =SUM(C30:C32)+C34 -> 0 | D35: =SUM(D30:D32)+D34 -> 0 | E35: =SUM(E30:E32)+E34 -> 0
A37: NET INCREASE/ (DECREASE) IN CASH HELD | B37: =B16+B26+B35 -> 0 | C37: =C16+C26+C35 -> 0 | D37: =D16+D26+D35 -> 0 | E37: =E16+E26+E35 -> 0
A38: Cash/cash equivalents at the year begin: | E38: =D38 -> 0
A39: Cash/cash equivalents at the year end: | C39: =C37+C38 -> 0 | D39: =D37+D38 -> 0 | E39: =E37+E38 -> 0
A40: Source: MBRR A7 | E40: T 5.9.1

Sheet 5.10.2
A1: Actual Borrowings: Year -2 to Year 0
A2: R' 000
A3: Instrument | B3: Year -2 | C3: Year -1 | D3: Year 0
A4: Municipality | B4: 300 | C4: 382 | D4: 355
A5: Long-Term Loans (annuity/reducing balance) | B5: 200 | C5: 250 | D5: 270
A6: Long-Term Loans (non-annuity)
A7: Local registered stock
A8: Instalment Credit
A9: Financial Leases
A10: PPP liabilities
A11: Finance Granted By Cap Equipment Supplier
A12: Marketable Bonds
A13: Non-Marketable Bonds
A14: Bankers Acceptances
A15: Financial derivatives
A16: Other Securities
A17: Municipality Total | B17: =SUM(B4:B16) -> 500 | C17: =SUM(C4:C16) -> 632 | D17: 625
A19: Municipal Entities
A20: =A5 -> Long-Term Loans (annuity/reducing balance)
A21: Long-Term Loans (non-annuity)
A22: Local registered stock
A23: Instalment Credit
A24: Financial Leases
A25: PPP liabilities
A26: Finance Granted By Cap Equipment Supplier
A27: Marketable Bonds
A28: Non-Marketable Bonds
A29: Bankers Acceptances
A30: Financial derivatives
A31: Other Securities
A32: Entities Total | B32: =SUM(B19:B31) -> 0 | C32: =SUM(C19:C31) -> 0 | D32: 0
D33: T 5.10.2

Sheet 5.10.4
A1: Municipal and Entity Investments
A2: R' 000
A3: Investment* type | B3: Year -2 | C3: Year -1 | D3: Year 0
B4: Actual | C4: Actual | D4: Actual
A5: Municipality
A6: Securities - National Government
A7: Listed Corporate Bonds
A8: Deposits - Bank
A9: Deposits - Public Investment Commissioners
A10: Deposits - Corporation for Public Deposits
A11: Bankers Acceptance Certificates
A12: Negotiable Certificates of Deposit - Banks
A13: Guaranteed Endowment Policies (sinking)
A14: Repurchase Agreements - Banks
A15: Municipal Bonds
A16: Other
A17: Municipality sub-total | B17: =SUM(B6:B16) -> 0 | C17: =SUM(C6:C16) -> 0 | D17: =SUM(D6:D16) -> 0
A19: Municipal Entities
A20: =A6 -> Securities - National Government
A21: =A7 -> Listed Corporate Bonds
A22: Deposits - Bank
A23: Deposits - Public Investment Commissioners
A24: Deposits - Corporation for Public Deposits
A25: Bankers Acceptance Certificates
A26: Negotiable Certificates of Deposit - Banks
A27: Guaranteed Endowment Policies (sinking)
A28: Repurchase Agreements - Banks
A29: Other
A30: Entities sub-total | B30: =SUM(B20:B29) -> 0 | C30: =SUM(C20:C29) -> 0 | D30: =SUM(D20:D29) -> 0
A32: Consolidated total: | B32: =B17+B30 -> 0 | C32: =C17+C30 -> 0 | D32: =D17+D30 -> 0
D33: T 5.10.4

Sheet 6.1.1
A1: Auditor-General Report on Financial Performance: Year -1
A2: Audit Report Status*:
A3: Non-Compliance Issues | B3: Remedial Action Taken
A8: Note:*The report status is supplied by the Auditor General and ranges from unqualified (at best); to unqualified with other matters specified; qualified; adverse; and disclaimed (at worse)
B9: T 6.1.1

Sheet 6.1.2
A1: Auditor-General Report on Service Delivery Performance: Year -1
A2: Audit Report Status:
A3: Non-Compliance Issues | B3: Remedial Action Taken
B8: T 6.1.2

Sheet 6.2.1
A1: Auditor-General Report on Financial Performance Year 0*
A2: Status of audit report:
A3: Non-Compliance Issues | B3: Remedial Action Taken
A8: Note:* The report's status is supplied by the Auditor General and ranges from unqualified (at best); to unqualified with other matters specified; qualified; adverse; and disclaimed (at worse). This table will be completed prior to the publication of the Annual report but following the receipt of the Auditor- General Report on Financial Performance Year 0.
B9: T 6.2.1

Sheet 6.2.2
A1: Auditor-General Report on Service Delivery Performance: Year 0*
A2: Status of audit report**:
A3: Non-Compliance Issues | B3: Remedial Action Taken
A8: * This table will be completed prior to the publication of the Annual report but following the receipt of the Auditor- General Report on Service Delivery Performance Year 0
A9: ** Inclusion of "Status" depends on nature of AG's remarks on Performance Data.
B10: T 6.2.2

Sheet Appendix A
A1: Councillors, Committees Allocated and Council Attendance
A2: Council Members | B2: Full Time / Part Time | C2: Committees Allocated | D2: *Ward and/ or Party Represented | E2: Percentage Council Meetings Attendance | F2: Percentage Apologies for non-attendance
B4: FT/PT | E4: % | F4: %
A12: Note: * Councillors appointed on a proportional basis do not have wards allocated to them | F12: T A

Sheet Appendix B
A1: Committees (other than Mayoral / Executive Committee) and Purposes of Committees
A2: Municipal Committees | B2: Purpose of Committee | D2: Administrative Members | E2: Percentage Attendance of Meetings | F2: Percentage Apologies for non-attendance
D6: Administrator Name
C16: T B

Sheet Appendix C
A1: Third Tier Structure
A2: Directorate | B2: Director/Manager (State title and name)
A26: Use as a spill-over schedule if top 3 tiers cannot be accomodated in chapter 2 (T2.2.2). | B26: T C

Sheet Appendix D
A1: Municipal / Entity Functions
A2: MUNICIPAL FUNCTIONS | B2: Function Applicable to Municipality (Yes / No)* | C2: Function Applicable to Entity (Yes / No)
A3: Constitution Schedule 4, Part B functions:
A4: Air pollution
A5: Building regulations
A6: Child care facilities
A7: Electricity and gas reticulation
A8: Firefighting services
A9: Local tourism
A10: Municipal airports
A11: Municipal planning
A12: Municipal health services
A13: Municipal public transport
A14: Municipal public works only in respect of the needs of municipalities in the discharge of their responsibilities to administer functions specifically assigned to them under this Constitution or any other law
A15: Pontoons, ferries, jetties, piers and harbours, excluding the regulation of international and national shipping and matters related thereto
A16: Stormwater management systems in built-up areas
A17: Trading regulations
A18: Water and sanitation services limited to potable water supply systems and domestic waste-water and sewage disposal systems
A19: Beaches and amusement facilities
A20: Billboards and the display of advertisements in public places
A21: Cemeteries, funeral parlours and crematoria
A22: Cleansing
A23: Control of public nuisances
A24: Control of undertakings that sell liquor to the public
A25: Facilities for the accommodation, care and burial of animals
A26: Fencing and fences
A27: Licensing of dogs
A28: Licensing and control of undertakings that sell food to the public
A29: Local amenities
A30: Local sport facilities
A31: Markets
A32: Municipal abattoirs
A33: Municipal parks and recreation
A34: Municipal roads
A35: Noise pollution
A36: Pounds
A37: Public places
A38: Refuse removal, refuse dumps and solid waste disposal
A39: Street trading
A40: Street lighting
A41: Traffic and parking
A42: * If municipality: indicate (yes or No); * If entity: Provide name of entity | C42: T D

Sheet Appendix E
A1: Functionality of Ward Committees
A2: Ward Name (Number) | B2: Name of Ward Councillor and elected Ward committee members | C2: Committee established (Yes / No) | D2: Number of monthly Committee meetings held during the year | E2: Number of monthly reports submitted to Speakers Office on time | F2: Number of quarterly public ward meetings held during year
F21: T E

Sheet Appendix F.1
A1: Ward Title: Ward Name (Number)
A2: Capital Projects: Seven Largest in Year 0 (Full List at Appendix O)
E3: R' 000
A4: No. | B4: Project Name and detail | C4: Start Date | D4: End Date | E4: Total Value
A12: T F.1

Sheet Appendix F.2
A1: Basic Service Provision
A2: Detail | B2: Water | C2: Sanitation | D2: Electricity | E2: Refuse | F2: Housing
A3: Households with minimum service delivery
A4: Households without minimum service delivery
A5: Total Households*
A6: Houses completed in year
A7: Shortfall in Housing units
A8: *Including informal settlements | F8: T F.2

Sheet Appendix F.3
A1: Top Four Service Delivery Priorities for Ward (Highest Priority First)
A2: No. | B2: Priority Name and Detail | C2: Progress During Year 0
A7: T F.3

Sheet Appendix G
A1: Municipal Audit Committee Recommendations
A2: Date of Committee | B2: Committee recommendations during Year 0 | C2: Recommendations adopted (enter Yes) If not adopted (provide explanation)
C33: T G

Sheet Appendix H.1-2
A1: Long Term Contracts (20 Largest Contracts Entered into during Year 0)
A2: R' 000
A3: Name of Service Provider (Entity or Municipal Department) | B3: Description of Services Rendered by the Service Provider | C3: Start Date of Contract | D3: Expiry date of Contract | E3: Project manager | F3: Contract Value
F24: T H.1
A27: Public Private Partnerships Entered into during Year 0
F28: R' 000
A29: Name and Description of Project | B29: Name of Partner(s) | C29: Initiation Date | D29: Expiry date | E29: Project manager | F29: Value 2008/09
F40: T H.2

Sheet Appendix I
A1: Municipal Entity/Service Provider Performance Schedule
A2: Name of Entity & Purpose | B2: (a) Service Indicators | C2: Year 0 | E2: Year 1 | H2: Year 2 | I2: Year 3
B3: (b) Service Targets | C3: Target | D3: Actual | E3: Target | G3: Actual | H3: Target
C4: *Previous Year | E4: *Previous Year | F4: *Current Year | H4: *Current Year | I4: *Current Year | J4: *Following Year
A5: (i) | B5: (ii) | C5: (iii) | D5: (iv) | E5: (v) | F5: (vi) | G5: (vii) | H5: (viii) | I5: (ix) | J5: (x)
A17: Note: This statement should include no more than the top four priority indicators. * 'Previous Year' refers to the targets that were set in the Year -1 Budget/IDP round; *'Current Year' refers to the targets set in the Year 0 Budget/IDP round. *'Following Year' refers to the targets set in the Year 1 Budget/IDP round. Note that all targets must be fundable within approved budget provision. In column (ii) set out the Service Indicator (In bold italics) then the Service Target underneath (not in bold - standard type face) to denote the difference. | J17: T I

Sheet Appendix J
A1: Disclosures of Financial Interests
A2: Period 1 July to 30 June of Year 0 (Current Year)
A3: Position | B3: Name | C3: Description of Financial interests* (Nil / Or details)
A4: (Executive) Mayor
A5: Member of MayCo / Exco
A12: Councillor
A19: Municipal Manager
A20: Chief Financial Officer
A21: Deputy MM and (Executive) Directors
A27: Other S57 Officials
A33: * Financial intersests to be disclosed even if they incurred for only part of the year. See MBRR SA34A T J
A52: Name | B52: Description of Interests
A53: Council
A59: Senior Management
A66: Other Officials
C74: =IFERROR(AVERAGE(C2:C73),"") -> 

Sheet Appendix K1
A1: Revenue Collection Performance by Vote
G2: R' 000
A3: =Vdesc -> Vote Description | B3: Year -1 | C3: Current: Year 0 | F3: Year 0 Variance
B4: Actual | C4: =Head6 -> Original Budget | D4: =Head7 -> Adjusted Budget | E4: Actual | F4: Original Budget | G4: Adjustments Budget
A5: Example 1 - Vote 1
A6: Example 2 - Vote 2
A7: Example 3 - Vote 3
A8: Example 4 - Vote 4
A9: Example 5 - Vote 5
A10: Example 6 - Vote 6
A11: Example 7 - Vote 7
A12: Example 8 - Vote 8
A13: Example 9 - Vote 9
A14: Example 10 - Vote 10
A15: Example 11 - Vote 11
A16: Example 12 - Vote 12
A17: Example 13 - Vote 13
A18: Example 14 - Vote 14
A19: Example 15 - Vote 15
A20: Total Revenue by Vote | B20: =SUM(B5:B19) -> 0 | C20: 0 | D20: 0 | E20: 0 | F20: 0 | G20: 0
A21: Variances are calculated by dividing the difference between actual and original/adjustments budget by the actual. This table is aligned to MBRR table A3 | G21: T K.1

Sheet Appendix K2
A1: Revenue Collection Performance by Source
A2: R '000
A3: =desc -> Description | B3: Year -1 | C3: Year 0 | F3: Year 0 Variance
B4: Actual | C4: Original Budget | D4: Adjustments Budget | E4: Actual | F4: Original Budget | G4: Adjustments Budget
A5: Property rates | B5: 26485424 | C5: 23572027.36 | D5: 28074549.44 | E5: 23042318.88 | F5: =(E5-C5)/E5 -> -0.02298850575 | G5: =(E5-D5)/E5 -> -0.2183908046
A6: Property rates - penalties & collection charges | B6: 8541256 | C6: 8285018.32 | D6: 9053731.36 | E6: 8455843.44 | F6: =(E6-C6)/E6 -> 0.0202020202 | G6: =(E6-D6)/E6 -> -0.07070707071
A7: Service Charges - electricity revenue | B7: 12354652 | C7: 10254361.16 | D7: 12478198.52 | E7: 13219477.64 | F7: 0.2242990654 | G7: 0.05607476636
A8: Service Charges - water revenue | B8: 14231546 | C8: 13235337.78 | D8: 13662284.16 | E8: 12096814.1 | F8: -0.09411764706 | G8: -0.1294117647
A9: Service Charges - sanitation revenue | B9: 6542352 | C9: 5495575.68 | D9: 5953540.32 | E9: 6346081.44 | F9: 0.1340206186 | G9: 0.0618556701
A10: Service Charges - refuse revenue | B10: 1864548 | C10: 1622156.76 | D10: 1864548 | E10: 1510283.88 | F10: -0.07407407407 | G10: -0.2345679012
A11: Service Charges - other | B11: 5642551 | C11: 5529699.98 | D11: 5924678.55 | E11: 5303997.94 | F11: -0.04255319149 | G11: -0.1170212766
A12: Rentals of facilities and equipment | B12: 5642551 | C12: 5529699.98 | D12: 5924678.55 | E12: 5303997.94 | F12: -0.04255319149 | G12: -0.1170212766
A13: Interest earned - external investments | B13: 5321531 | C13: 4470086.04 | D13: 5747253.48 | E13: 4629731.97 | F13: 0.03448275862 | G13: -0.2413793103
A14: Interest earned - outstanding debtors | B14: 8455214 | C14: 8455214 | D14: 8624318.28 | E14: 9554391.82 | F14: 0.1150442478 | G14: 0.09734513274
A15: Dividends received | B15: 1253652 | C15: 1002921.6 | D15: 1190969.4 | E15: 1353944.16 | F15: 0.2592592593 | G15: 0.1203703704
A16: Fines | B16: 2515644 | C16: 2062828.08 | D16: 2264079.6 | E16: 2339548.92 | F16: 0.1182795699 | G16: 0.03225806452
A17: Licences and permits | B17: 6845685 | C17: 6229573.35 | D17: 7256426.1 | E17: 6640314.45 | F17: 0.0618556701 | G17: -0.09278350515
A18: Agency services | B18: 12545845 | C18: 10413051.35 | D18: 11793094.3 | E18: 11542177.4 | F18: 0.09782608696 | G18: -0.02173913043
A19: Transfers recognised - operational | B19: 2354564 | C19: 2189744.52 | D19: 2425200.92 | E19: 2401655.28 | F19: 0.08823529412 | G19: -0.009803921569
A20: Other revenue | B20: 48542456 | C20: 40775663.04 | D20: 48542456 | E20: 46115333.2 | F20: 0.1157894737 | G20: -0.05263157895
A21: Gains on disposal of PPE | B21: 4564885 | C21: 3697556.85 | D21: 4336640.75 | E21: 4290991.9 | F21: 0.1382978723 | G21: -0.01063829787
A22: Enviromental Proctection | B22: 5648645 | C22: 4970807.6 | D22: 6157023.05 | E22: 4970807.6 | F22: 0 | G22: -0.2386363636
A23: Total Revenue (excluding capital transfers and contributions) | B23: =SUM(B5:B22) -> 179353001 | C23: =SUM(C5:C22) -> 157791323.4 | D23: =SUM(D5:D22) -> 181273670.8 | E23: =SUM(E5:E22) -> 169117712 | F23: 0.06697340201 | G23: -0.07187868544
A24: Variances are calculated by dividing the difference between actual and original/adjustments budget by the actual. This table is aligned to MBRR table A4. | G24: T K.2

Sheet Appendix L
A1: Conditional Grants: excluding MIG
A2: R' 000
A3: Details | B3: Budget | C3: Adjustments Budget | D3: Actual | E3: Variance | G3: Major conditions applied by donor (continue below if necessary)
E4: Budget | F4: Adjustments Budget
A5: Neighbourhood Development Partnership Grant
A8: Public Transport Infrastructure and Systems Grant
A12: Other Specify:
A16: Total
A17: * This includes Neighbourhood Development Partnership Grant, Public Transport Infrastructure and Systems Grant and any other grant excluding Municipal Infrastructure Grant (MIG) which is dealt with in the main report, see T 5.8.3. Variances are calculated by dividing the difference between actual and original/adjustments budget by the actual. Obtain a list of grants from national and provincial government. | G17: T L

Sheet Appendix Capital M.1-2
A1: Capital Expenditure - New Assets Programme*
A2: R '000
A3: Description | B3: Year -1 | C3: Year 0 | F3: Planned Capital expenditure
B4: Actual | C4: Original Budget | D4: Adjustment Budget | E4: Actual Expenditure | F4: FY + 1 | G4: FY + 2 | H4: FY + 3
A5: Capital expenditure by Asset Class
A6: Infrastructure - Total | B6: =B7+B10+B14+B18+B21 -> 0 | C6: 0 | E6: 0 | F6: 0 | G6: 0 | H6: 0
A7: Infrastructure: Road transport - Total | B7: =SUM(B8:B9) -> 0 | C7: 0 | E7: 0 | F7: 0 | G7: 0 | H7: 0
A8: Roads, Pavements & Bridges
A9: Storm water
A10: Infrastructure: Electricity - Total | B10: =SUM(B11:B13) -> 0 | C10: 0 | E10: 0 | F10: 0 | G10: 0 | H10: 0
A11: Generation
A12: Transmission & Reticulation
A13: Street Lighting
A14: Infrastructure: Water - Total | B14: =SUM(B15:B17) -> 0 | C14: 0 | E14: 0 | F14: 0 | G14: 0 | H14: 0
A15: Dams & Reservoirs
A16: Water purification
A17: Reticulation
A18: Infrastructure: Sanitation - Total | B18: =SUM(B19:B20) -> 0 | C18: 0 | E18: 0 | F18: 0 | G18: 0 | H18: 0
A19: Reticulation
A20: Sewerage purification
A21: Infrastructure: Other - Total | B21: =SUM(B22:B25) -> 0 | C21: 0 | E21: 0 | F21: 0 | G21: 0 | H21: 0
A22: Waste Management
A23: Transportation
A24: Gas
A25: Other
A27: Community - Total | B27: =SUM(B28:B41) -> 0 | C27: 0 | E27: 0 | F27: 0 | G27: 0 | H27: 0
A28: Parks & gardens
A29: Sportsfields & stadia
A30: Swimming pools
A31: Community halls
A32: Libraries
A33: Recreational facilities
A34: Fire, safety & emergency
A35: Security and policing
A36: Buses
A37: Clinics
A38: Museums & Art Galleries
A39: Cemeteries
A40: Social rental housing
A41: Other
A42: Table continued next page
A44: Table continued from previous page
A45: Capital Expenditure - New Assets Programme*
A46: R '000
A47: Description | B47: Year -1 | C47: Year 0 | F47: Planned Capital expenditure
B48: Actual | C48: Original Budget | D48: Adjustment Budget | E48: Actual Expenditure | F48: FY + 1 | G48: FY + 2 | H48: FY + 3
A49: Capital expenditure by Asset Class
A50: Heritage assets - Total | B50: =SUM(B51:B52) -> 0 | C50: =SUM(C51:C52) -> 0 | E50: =SUM(E51:E52) -> 0 | F50: =SUM(F51:F52) -> 0 | G50: =SUM(G51:G52) -> 0 | H50: =SUM(H51:H52) -> 0
A51: Buildings
A52: Other
A54: Investment properties - Total | B54: =SUM(B55:B56) -> 0 | C54: =SUM(C55:C56) -> 0 | E54: =SUM(E55:E56) -> 0 | F54: =SUM(F55:F56) -> 0 | G54: =SUM(G55:G56) -> 0 | H54: =SUM(H55:H56) -> 0
A55: Housing development
A56: Other
A58: Other assets | B58: =SUM(B59:B70) -> 0 | C58: 0 | E58: 0 | F58: 0 | G58: 0 | H58: 0
A59: General vehicles
A60: Specialised vehicles
A61: Plant & equipment
A62: Computers - hardware/equipment
A63: Furniture and other office equipment
A64: Abattoirs
A65: Markets
A66: Civic Land and Buildings
A67: Other Buildings
A68: Other Land
A69: Surplus Assets - (Investment or Inventory)
A70: Other
A72: Agricultural assets | B72: =SUM(B73:B74) -> 0 | C72: 0 | E72: 0 | F72: 0 | G72: 0 | H72: 0
A73: List sub-class
A76: Biological assets | B76: =SUM(B77:B78) -> 0 | C76: 0 | E76: 0 | F76: 0 | G76: 0 | H76: 0
A77: List sub-class
A80: Intangibles | B80: =SUM(B81:B82) -> 0 | C80: 0 | E80: 0 | F80: 0 | G80: 0 | H80: 0
A81: Computers - software & programming
A82: Other (list sub-class)
A84: Total Capital Expenditure on new assets | B84: =B6+B27+B50+B54+B58+B80+B72+B76 -> 0 | C84: =C6+C27+C50+C54+C58+C80+C72+C76 -> 0 | E84: =E6+E27+E50+E54+E58+E80+E72+E76 -> 0 | F84: =F6+F27+F50+F54+F58+F80+F72+F76 -> 0 | G84: 0 | H84: 0
A86: Specialised vehicles | B86: =SUM(B87:B90) -> 0 | C86: 0 | E86: 0 | F86: 0 | G86: 0 | H86: 0
A87: Refuse
A88: Fire
A89: Conservancy
A90: Ambulances
A91: * Note: Information for this table may be sourced from MBRR (2009: Table SA34a) | H91: T M.1
A95: Capital Expenditure - Upgrade/Renewal Programme*
A96: R '000
A97: Description | B97: Year -1 | C97: Year 0 | F97: Planned Capital expenditure
B98: Actual | C98: Original Budget | D98: Adjustment Budget | E98: Actual Expenditure | F98: FY + 1 | G98: FY + 2 | H98: FY + 3
A99: Capital expenditure by Asset Class
A100: Infrastructure - Total | B100: =B101+B104+B108+B112+B115 -> 0 | C100: 0 | E100: 0 | F100: 0 | G100: 0 | H100: 0
A101: Infrastructure: Road transport -Total | B101: =SUM(B102:B103) -> 0 | C101: 0 | E101: 0 | F101: 0 | G101: 0 | H101: 0
A102: Roads, Pavements & Bridges
A103: Storm water
A104: Infrastructure: Electricity - Total | B104: =SUM(B105:B107) -> 0 | C104: 0 | E104: 0 | F104: 0 | G104: 0 | H104: 0
A105: Generation
A106: Transmission & Reticulation
A107: Street Lighting
A108: Infrastructure: Water - Total | B108: =SUM(B109:B111) -> 0 | C108: 0 | E108: 0 | F108: 0 | G108: 0 | H108: 0
A109: Dams & Reservoirs
A110: Water purification
A111: Reticulation
A112: Infrastructure: Sanitation - Total | B112: =SUM(B113:B114) -> 0 | C112: 0 | E112: 0 | F112: 0 | G112: 0 | H112: 0
A113: Reticulation
A114: Sewerage purification
A115: Infrastructure: Other - Total | B115: =SUM(B116:B119) -> 0 | C115: 0 | E115: 0 | F115: 0 | G115: 0 | H115: 0
A116: Waste Management
A117: Transportation
A118: Gas
A119: Other
A121: Community | B121: =SUM(B122:B135) -> 0 | C121: 0 | E121: 0 | F121: 0 | G121: 0 | H121: 0
A122: Parks & gardens
A123: Sportsfields & stadia
A124: Swimming pools
A125: Community halls
A126: Libraries
A127: Recreational facilities
A128: Fire, safety & emergency
A129: Security and policing
A130: Buses
A131: Clinics
A132: Museums & Art Galleries
A133: Cemeteries
A134: Social rental housing
A135: Other
A137: Heritage assets | B137: =SUM(B138:B139) -> 0 | C137: 0 | E137: 0 | F137: 0 | G137: 0 | H137: 0
A138: Buildings
A139: Other
A140: Table continued next page
A141: Table continued from previous page
A142: Capital Expenditure - Upgrade/Renewal Programme*
A143: R '000
A144: Description | B144: Year -1 | C144: Year 0 | F144: Planned Capital expenditure
B145: Actual | C145: Original Budget | D145: Adjustment Budget | E145: Actual Expenditure | F145: FY + 1 | G145: FY + 2 | H145: FY + 3
A146: Capital expenditure by Asset Class
A147: Investment properties | B147: =SUM(B148:B149) -> 0 | C147: 0 | E147: 0 | F147: 0 | G147: 0 | H147: 0
A148: Housing development
A149: Other
A151: Other assets | B151: =SUM(B152:B163) -> 0 | C151: 0 | E151: 0 | F151: 0 | G151: 0 | H151: 0
A152: General vehicles
A153: Specialised vehicles
A154: Plant & equipment
A155: Computers - hardware/equipment
A156: Furniture and other office equipment
A157: Abattoirs
A158: Markets
A159: Civic Land and Buildings
A160: Other Buildings
A161: Other Land
A162: Surplus Assets - (Investment or Inventory)
A163: Other
A165: Agricultural assets | B165: =SUM(B166:B167) -> 0 | C165: 0 | E165: 0 | F165: 0 | G165: 0 | H165: 0
A166: List sub-class
A169: Biological assets | B169: =SUM(B170:B171) -> 0 | C169: 0 | E169: 0 | F169: 0 | G169: 0 | H169: 0
A170: List sub-class
A173: Intangibles | B173: =SUM(B174:B175) -> 0 | C173: 0 | E173: 0 | F173: 0 | G173: 0 | H173: 0
A174: Computers - software & programming
A175: Other (list sub-class)
A177: Total Capital Expenditure on renewal of existing assets | B177: =B100+B121+B137+B147+B151+B173+B165+B169 -> 0 | C177: =C100+C121+C137+C147+C151+C173+C165+C169 -> 0 | E177: =E100+E121+E137+E147+E151+E173+E165+E169 -> 0 | F177: =F100+F121+F137+F147+F151+F173+F165+F169 -> 0 | G177: =G100+G121+G137+G147+G151+G173+G165+G169 -> 0 | H177: =H100+H121+H137+H147+H151+H173+H165+H169 -> 0
A179: Specialised vehicles | B179: =SUM(B180:B183) -> 0 | C179: 0 | E179: 0 | F179: 0 | G179: 0 | H179: 0
A180: Refuse
A181: Fire
A182: Conservancy
A183: Ambulances
A184: * Note: Information for this table may be sourced from MBRR (2009: Table SA34b) | H184: T M.2

Sheet Appendix N
A1: Capital Programme by Project: Year 0
A2: R' 000
A3: Capital Project | B3: Original Budget | C3: Adjustment Budget | D3: Actual | E3: Variance (Act - Adj) % | F3: Variance (Act - OB) %
A5: Water
A6: "Project A" | B6: 82 | C6: 85 | D6: 92 | E6: =(D6-C6)/D6 -> 0.07608695652 | F6: =(D6-B6)/D6 -> 0.1086956522
A7: "Project B" | B7: 82 | C7: 85 | D7: 92 | E7: =(D7-C7)/D7 -> 0.07608695652 | F7: =(D7-B7)/D7 -> 0.1086956522
A8: "Project C" | B8: 85 | C8: 90 | D8: 95 | E8: 0.05263157895 | F8: 0.1052631579
A9: Sanitation/Sewerage
A10: "Project A" | B10: 82 | C10: 85 | D10: 92 | E10: 0.07608695652 | F10: 0.1086956522
A11: "Project B" | B11: 85 | C11: 90 | D11: 95 | E11: 0.05263157895 | F11: 0.1052631579
A12: Electricity
A13: "Project A" | B13: 82 | C13: 85 | D13: 92 | E13: 0.07608695652 | F13: 0.1086956522
A14: "Project B" | B14: 85 | C14: 90 | D14: 95 | E14: 0.05263157895 | F14: 0.1052631579
A15: Housing
A16: "Project A" | B16: 82 | C16: 85 | D16: 92 | E16: 0.07608695652 | F16: 0.1086956522
A17: "Project B" | B17: 85 | C17: 90 | D17: 95 | E17: 0.05263157895 | F17: 0.1052631579
A18: Refuse removal
A19: "Project A" | B19: 82 | C19: 85 | D19: 92 | E19: 0.07608695652 | F19: 0.1086956522
A20: "Project B" | B20: 85 | C20: 90 | D20: 95 | E20: 0.05263157895 | F20: 0.1052631579
A21: Stormwater
A22: "Project A" | B22: 82 | C22: 85 | D22: 92 | E22: 0.07608695652 | F22: 0.1086956522
A23: "Project B" | B23: 85 | C23: 90 | D23: 95 | E23: 0.05263157895 | F23: 0.1052631579
A24: Economic development
A25: "Project A" | B25: 82 | C25: 85 | D25: 92 | E25: 0.07608695652 | F25: 0.1086956522
A26: "Project B" | B26: 85 | C26: 90 | D26: 95 | E26: 0.05263157895 | F26: 0.1052631579
A27: Sports, Arts & Culture
A28: "Project A" | B28: 82 | C28: 85 | D28: 92 | E28: 0.07608695652 | F28: 0.1086956522
A29: "Project B" | B29: 85 | C29: 90 | D29: 95 | E29: 0.05263157895 | F29: 0.1052631579
A30: Environment
A31: "Project A" | B31: 82 | C31: 85 | D31: 92 | E31: 0.07608695652 | F31: 0.1086956522
A32: "Project B" | B32: 85 | C32: 90 | D32: 95 | E32: 0.05263157895 | F32: 0.1052631579
A33: Health
A34: "Project A" | B34: 82 | C34: 85 | D34: 92 | E34: 0.07608695652 | F34: 0.1086956522
A35: "Project B" | B35: 85 | C35: 90 | D35: 95 | E35: 0.05263157895 | F35: 0.1052631579
A36: Safety and Security
A37: "Project A" | B37: 82 | C37: 85 | D37: 92 | E37: 0.07608695652 | F37: 0.1086956522
A38: "Project B" | B38: 85 | C38: 90 | D38: 95 | E38: 0.05263157895 | F38: 0.1052631579
A39: ICT and Other
A40: "Project A" | B40: 82 | C40: 85 | D40: 92 | E40: 0.07608695652 | F40: 0.1086956522
A41: "Project B" | B41: 85 | C41: 90 | D41: 95 | E41: 0.05263157895 | F41: 0.1052631579
A42: T N

Sheet Appendix O
A1: Capital Programme by Project by Ward: Year 0
A2: R' 000
A3: Capital Project | B3: Ward(s) affected | C3: Works completed (Yes/No)
A4: Water
A5: "Project A"
A6: "Project B"
A8: Sanitation/Sewerage
A11: Electricity
A14: Housing
A17: Refuse removal
A20: Stormwater
A23: Economic development
A26: Sports, Arts & Culture
A29: Environment
A32: Health
A35: Safety and Security
A38: ICT and Other
A41: T O

Sheet Appendix P
A1: Service Backlogs: Schools and Clinics
A2: Establishments lacking basic services | B2: Water | C2: Sanitation | D2: Electricity | E2: Solid Waste Collection
A3: Schools (NAMES, LOCATIONS)
A12: Clinics (NAMES, LOCATIONS)
A20: Names and locations of schools and clinics lacking one or more services. Use 'x' to mark lack of service at appropriate level for the number of people attending the school/clinic, allowing for the proper functioning of the establishment concerned. | E20: T P

Sheet Appendix Q
A1: Service Backlogs Experienced by the Commmunity where another Sphere of Government is the Service Provider (where the municipality whether or not act on agency basis)
A2: Services and Locations | B2: Scale of backlogs | C2: Impact of backlogs
A3: Clinics:
A7: Housing:
A11: Licencing and Testing Centre:
A15: Reseviors
A19: Schools (Primary and High):
A23: Sports Fields:
C27: T Q

Sheet Appendix R
A1: Declaration of Loans and Grants made by the municipality: Year 0
A2: All Organisation or Person in receipt of Loans */Grants* provided by the municipality | B2: Nature of project | C2: Conditions attached to funding | D2: Value Year 0 R' 000 | E2: Total Amount committed over previous and future years
A19: * Loans/Grants - whether in cash or in kind | E19: T R

Sheet Appendix S
A1: National and Provincial Outcomes for Local Government
A2: Outcome/Output | B2: Progress to date | C2: Number or Percentage Achieved
A3: Output: Improving access to basic services
A7: Output: Implementation of the Community Work Programme
A11: Output: Deepen democracy through a refined Ward Committee model
A15: Output: Administrative and financial capability
A19: * Note: Some of the outputs detailed on this table may have been reported elsewhere in the Annual Report. Kindly ensure that this information consistent.
A20: T S

Sheet Volume II - AFS

Sheet A1
A1: Choose name from list - Table A1 Financial Summary
A2: R' 000
A3: =desc -> Description | B3: =head1b -> 2005/06 | C3: =head1A -> 2006/07 | D3: =Head1 -> 2007/08 | E3: =Head2 -> Current Year 2008/09 | I3: =Head3 -> 2009/10 Medium Term Revenue & Expenditure Framework
B4: =Head5 -> Audited Outcome | C4: =Head5 -> Audited Outcome | D4: =Head5 -> Audited Outcome | E4: =Head6 -> Original Budget | F4: =Head7 -> Adjusted Budget | G4: =Head8 -> Full Year Forecast | H4: =Head5b -> Pre-audit outcome | I4: =Head9 -> Budget Year 2009/10 | J4: =Head10 -> Budget Year +1 2010/11 | K4: =Head11 -> Budget Year +2 2011/12
A5: Financial Performance
A6: Property rates | B6: ='[1]A4-FinPerf RE'!C5+'[1]A4-FinPerf RE'!C6 ->  | C6: ='[1]A4-FinPerf RE'!D5+'[1]A4-FinPerf RE'!D6 ->  | D6: ='[1]A4-FinPerf RE'!E5+'[1]A4-FinPerf RE'!E6 ->  | E6: ='[1]A4-FinPerf RE'!F5+'[1]A4-FinPerf RE'!F6 ->  | F6: ='[1]A4-FinPerf RE'!G5+'[1]A4-FinPerf RE'!G6 ->  | G6: ='[1]A4-FinPerf RE'!H5+'[1]A4-FinPerf RE'!H6 ->  | H6: ='[1]A4-FinPerf RE'!I5+'[1]A4-FinPerf RE'!I6 ->  | I6: ='[1]A4-FinPerf RE'!J5+'[1]A4-FinPerf RE'!J6 ->  | J6: ='[1]A4-FinPerf RE'!K5+'[1]A4-FinPerf RE'!K6 ->  | K6: ='[1]A4-FinPerf RE'!L5+'[1]A4-FinPerf RE'!L6 -> 
A7: Service charges | B7: =SUM('[1]A4-FinPerf RE'!C7:C11) ->  | C7: =SUM('[1]A4-FinPerf RE'!D7:D11) ->  | D7: =SUM('[1]A4-FinPerf RE'!E7:E11) ->  | E7: =SUM('[1]A4-FinPerf RE'!F7:F11) ->  | F7: =SUM('[1]A4-FinPerf RE'!G7:G11) ->  | G7: =SUM('[1]A4-FinPerf RE'!H7:H11) ->  | H7: =SUM('[1]A4-FinPerf RE'!I7:I11) ->  | I7: =SUM('[1]A4-FinPerf RE'!J7:J11) ->  | J7: =SUM('[1]A4-FinPerf RE'!K7:K11) ->  | K7: =SUM('[1]A4-FinPerf RE'!L7:L11) -> 
A8: Investment revenue | B8: ='[1]A4-FinPerf RE'!C13 ->  | C8: ='[1]A4-FinPerf RE'!D13 ->  | D8: ='[1]A4-FinPerf RE'!E13 ->  | E8: ='[1]A4-FinPerf RE'!F13 ->  | F8: ='[1]A4-FinPerf RE'!G13 ->  | G8: ='[1]A4-FinPerf RE'!H13 ->  | H8: ='[1]A4-FinPerf RE'!I13 ->  | I8: ='[1]A4-FinPerf RE'!J13 ->  | J8: ='[1]A4-FinPerf RE'!K13 ->  | K8: ='[1]A4-FinPerf RE'!L13 -> 
A9: Transfers recognised - operational | B9: ='[1]A4-FinPerf RE'!C19 ->  | C9: ='[1]A4-FinPerf RE'!D19 ->  | D9: ='[1]A4-FinPerf RE'!E19 ->  | E9: ='[1]A4-FinPerf RE'!F19 ->  | F9: ='[1]A4-FinPerf RE'!G19 ->  | G9: ='[1]A4-FinPerf RE'!H19 ->  | H9: ='[1]A4-FinPerf RE'!I19 ->  | I9: ='[1]A4-FinPerf RE'!J19 ->  | J9: ='[1]A4-FinPerf RE'!K19 ->  | K9: ='[1]A4-FinPerf RE'!L19 -> 
A10: Other own revenue | B10: ='[1]A4-FinPerf RE'!C12+'[1]A4-FinPerf RE'!C14+'[1]A4-FinPerf RE'!C15+'[1]A4-FinPerf RE'!C16+'[1]A4-FinPerf RE'!C17+'[1]A4-FinPerf RE'!C18+'[1]A4-FinPerf RE'!C20+'[1]A4-FinPerf RE'!C21 ->  | C10: ='[1]A4-FinPerf RE'!D12+'[1]A4-FinPerf RE'!D14+'[1]A4-FinPerf RE'!D15+'[1]A4-FinPerf RE'!D16+'[1]A4-FinPerf RE'!D17+'[1]A4-FinPerf RE'!D18+'[1]A4-FinPerf RE'!D20+'[1]A4-FinPerf RE'!D21 ->  | D10: ='[1]A4-FinPerf RE'!E12+'[1]A4-FinPerf RE'!E14+'[1]A4-FinPerf RE'!E15+'[1]A4-FinPerf RE'!E16+'[1]A4-FinPerf RE'!E17+'[1]A4-FinPerf RE'!E18+'[1]A4-FinPerf RE'!E20+'[1]A4-FinPerf RE'!E21 ->  | E10: ='[1]A4-FinPerf RE'!F12+'[1]A4-FinPerf RE'!F14+'[1]A4-FinPerf RE'!F15+'[1]A4-FinPerf RE'!F16+'[1]A4-FinPerf RE'!F17+'[1]A4-FinPerf RE'!F18+'[1]A4-FinPerf RE'!F20+'[1]A4-FinPerf RE'!F21 ->  | F10: ='[1]A4-FinPerf RE'!G12+'[1]A4-FinPerf RE'!G14+'[1]A4-FinPerf RE'!G15+'[1]A4-FinPerf RE'!G16+'[1]A4-FinPerf RE'!G17+'[1]A4-FinPerf RE'!G18+'[1]A4-FinPerf RE'!G20+'[1]A4-FinPerf RE'!G21 ->  | G10: ='[1]A4-FinPerf RE'!H12+'[1]A4-FinPerf RE'!H14+'[1]A4-FinPerf RE'!H15+'[1]A4-FinPerf RE'!H16+'[1]A4-FinPerf RE'!H17+'[1]A4-FinPerf RE'!H18+'[1]A4-FinPerf RE'!H20+'[1]A4-FinPerf RE'!H21 ->  | H10: ='[1]A4-FinPerf RE'!I12+'[1]A4-FinPerf RE'!I14+'[1]A4-FinPerf RE'!I15+'[1]A4-FinPerf RE'!I16+'[1]A4-FinPerf RE'!I17+'[1]A4-FinPerf RE'!I18+'[1]A4-FinPerf RE'!I20+'[1]A4-FinPerf RE'!I21 ->  | I10: ='[1]A4-FinPerf RE'!J12+'[1]A4-FinPerf RE'!J14+'[1]A4-FinPerf RE'!J15+'[1]A4-FinPerf RE'!J16+'[1]A4-FinPerf RE'!J17+'[1]A4-FinPerf RE'!J18+'[1]A4-FinPerf RE'!J20+'[1]A4-FinPerf RE'!J21 ->  | J10: ='[1]A4-FinPerf RE'!K12+'[1]A4-FinPerf RE'!K14+'[1]A4-FinPerf RE'!K15+'[1]A4-FinPerf RE'!K16+'[1]A4-FinPerf RE'!K17+'[1]A4-FinPerf RE'!K18+'[1]A4-FinPerf RE'!K20+'[1]A4-FinPerf RE'!K21 ->  | K10: ='[1]A4-FinPerf RE'!L12+'[1]A4-FinPerf RE'!L14+'[1]A4-FinPerf RE'!L15+'[1]A4-FinPerf RE'!L16+'[1]A4-FinPerf RE'!L17+'[1]A4-FinPerf RE'!L18+'[1]A4-FinPerf RE'!L20+'[1]A4-FinPerf RE'!L21 -> 
A11: ='[1]A4-FinPerf RE'!A22 -> Total Revenue (excluding capital transfers and contributions) | B11: =SUM(B6:B10) -> 
A12: Employee costs | B12: ='[1]A4-FinPerf RE'!C25 -> 0 | C12: ='[1]A4-FinPerf RE'!D25 -> 0 | D12: ='[1]A4-FinPerf RE'!E25 -> 0 | E12: ='[1]A4-FinPerf RE'!F25 -> 0 | F12: ='[1]A4-FinPerf RE'!G25 -> 0 | G12: ='[1]A4-FinPerf RE'!H25 -> 0 | H12: ='[1]A4-FinPerf RE'!I25 -> 0 | I12: ='[1]A4-FinPerf RE'!J25 -> 0 | J12: ='[1]A4-FinPerf RE'!K25 -> 0 | K12: ='[1]A4-FinPerf RE'!L25 -> 0
A13: Remuneration of councillors | B13: ='[1]A4-FinPerf RE'!C26 ->  | C13: ='[1]A4-FinPerf RE'!D26 ->  | D13: ='[1]A4-FinPerf RE'!E26 ->  | E13: ='[1]A4-FinPerf RE'!F26 ->  | F13: ='[1]A4-FinPerf RE'!G26 ->  | G13: ='[1]A4-FinPerf RE'!H26 ->  | H13: ='[1]A4-FinPerf RE'!I26 ->  | I13: ='[1]A4-FinPerf RE'!J26 ->  | J13: ='[1]A4-FinPerf RE'!K26 ->  | K13: ='[1]A4-FinPerf RE'!L26 -> 
A14: Depreciation & asset impairment | B14: ='[1]A4-FinPerf RE'!C28 -> 0 | C14: ='[1]A4-FinPerf RE'!D28 -> 0 | D14: ='[1]A4-FinPerf RE'!E28 -> 0 | E14: ='[1]A4-FinPerf RE'!F28 -> 0 | F14: ='[1]A4-FinPerf RE'!G28 -> 0 | G14: ='[1]A4-FinPerf RE'!H28 -> 0 | H14: ='[1]A4-FinPerf RE'!I28 -> 0 | I14: ='[1]A4-FinPerf RE'!J28 -> 0 | J14: ='[1]A4-FinPerf RE'!K28 -> 0 | K14: ='[1]A4-FinPerf RE'!L28 -> 0
A15: Finance charges | B15: ='[1]A4-FinPerf RE'!C29 ->  | C15: ='[1]A4-FinPerf RE'!D29 ->  | D15: ='[1]A4-FinPerf RE'!E29 ->  | E15: ='[1]A4-FinPerf RE'!F29 ->  | F15: ='[1]A4-FinPerf RE'!G29 ->  | G15: ='[1]A4-FinPerf RE'!H29 ->  | H15: ='[1]A4-FinPerf RE'!I29 ->  | I15: ='[1]A4-FinPerf RE'!J29 ->  | J15: ='[1]A4-FinPerf RE'!K29 ->  | K15: ='[1]A4-FinPerf RE'!L29 -> 
A16: Materials and bulk purchases | B16: ='[1]A4-FinPerf RE'!C30+'[1]A4-FinPerf RE'!C31 ->  | C16: ='[1]A4-FinPerf RE'!D30+'[1]A4-FinPerf RE'!D31 ->  | D16: ='[1]A4-FinPerf RE'!E30+'[1]A4-FinPerf RE'!E31 ->  | E16: ='[1]A4-FinPerf RE'!F30+'[1]A4-FinPerf RE'!F31 ->  | F16: ='[1]A4-FinPerf RE'!G30+'[1]A4-FinPerf RE'!G31 ->  | G16: ='[1]A4-FinPerf RE'!H30+'[1]A4-FinPerf RE'!H31 ->  | H16: ='[1]A4-FinPerf RE'!I30+'[1]A4-FinPerf RE'!I31 ->  | I16: ='[1]A4-FinPerf RE'!J30+'[1]A4-FinPerf RE'!J31 ->  | J16: ='[1]A4-FinPerf RE'!K30+'[1]A4-FinPerf RE'!K31 ->  | K16: ='[1]A4-FinPerf RE'!L30+'[1]A4-FinPerf RE'!L31 -> 
A17: Transfers and grants | B17: ='[1]A4-FinPerf RE'!C33 ->  | C17: ='[1]A4-FinPerf RE'!D33 ->  | D17: ='[1]A4-FinPerf RE'!E33 ->  | E17: ='[1]A4-FinPerf RE'!F33 ->  | F17: ='[1]A4-FinPerf RE'!G33 ->  | G17: ='[1]A4-FinPerf RE'!H33 ->  | H17: ='[1]A4-FinPerf RE'!I33 ->  | I17: ='[1]A4-FinPerf RE'!J33 ->  | J17: ='[1]A4-FinPerf RE'!K33 ->  | K17: ='[1]A4-FinPerf RE'!L33 -> 
A18: Other expenditure | B18: ='[1]A4-FinPerf RE'!C27+'[1]A4-FinPerf RE'!C32+'[1]A4-FinPerf RE'!C34+'[1]A4-FinPerf RE'!C35 ->  | C18: ='[1]A4-FinPerf RE'!D27+'[1]A4-FinPerf RE'!D32+'[1]A4-FinPerf RE'!D34+'[1]A4-FinPerf RE'!D35 ->  | D18: ='[1]A4-FinPerf RE'!E27+'[1]A4-FinPerf RE'!E32+'[1]A4-FinPerf RE'!E34+'[1]A4-FinPerf RE'!E35 ->  | E18: ='[1]A4-FinPerf RE'!F27+'[1]A4-FinPerf RE'!F32+'[1]A4-FinPerf RE'!F34+'[1]A4-FinPerf RE'!F35 ->  | F18: ='[1]A4-FinPerf RE'!G27+'[1]A4-FinPerf RE'!G32+'[1]A4-FinPerf RE'!G34+'[1]A4-FinPerf RE'!G35 ->  | G18: ='[1]A4-FinPerf RE'!H27+'[1]A4-FinPerf RE'!H32+'[1]A4-FinPerf RE'!H34+'[1]A4-FinPerf RE'!H35 ->  | H18: ='[1]A4-FinPerf RE'!I27+'[1]A4-FinPerf RE'!I32+'[1]A4-FinPerf RE'!I34+'[1]A4-FinPerf RE'!I35 ->  | I18: ='[1]A4-FinPerf RE'!J27+'[1]A4-FinPerf RE'!J32+'[1]A4-FinPerf RE'!J34+'[1]A4-FinPerf RE'!J35 ->  | J18: ='[1]A4-FinPerf RE'!K27+'[1]A4-FinPerf RE'!K32+'[1]A4-FinPerf RE'!K34+'[1]A4-FinPerf RE'!K35 ->  | K18: ='[1]A4-FinPerf RE'!L27+'[1]A4-FinPerf RE'!L32+'[1]A4-FinPerf RE'!L34+'[1]A4-FinPerf RE'!L35 -> 
A19: ='[1]A4-FinPerf RE'!A36 -> Total Expenditure | B19: =SUM(B12:B18) ->  | C19: =SUM(C12:C18) -> 
A20: ='[1]A4-FinPerf RE'!A38 -> Surplus/(Deficit) | B20: =B11-B19 -> 
A21: ='[1]A4-FinPerf RE'!A39 -> Transfers recognised - capital | B21: ='[1]A4-FinPerf RE'!C39 ->  | C21: ='[1]A4-FinPerf RE'!D39 ->  | D21: ='[1]A4-FinPerf RE'!E39 ->  | E21: ='[1]A4-FinPerf RE'!F39 ->  | F21: ='[1]A4-FinPerf RE'!G39 ->  | G21: ='[1]A4-FinPerf RE'!H39 ->  | H21: ='[1]A4-FinPerf RE'!I39 ->  | I21: ='[1]A4-FinPerf RE'!J39 ->  | J21: ='[1]A4-FinPerf RE'!K39 ->  | K21: ='[1]A4-FinPerf RE'!L39 -> 
A22: Contributions recognised - capital & contributed assets | B22: ='[1]A4-FinPerf RE'!C40+'[1]A4-FinPerf RE'!C41 ->  | C22: ='[1]A4-FinPerf RE'!D40+'[1]A4-FinPerf RE'!D41 ->  | D22: ='[1]A4-FinPerf RE'!E40+'[1]A4-FinPerf RE'!E41 ->  | E22: ='[1]A4-FinPerf RE'!F40+'[1]A4-FinPerf RE'!F41 ->  | F22: ='[1]A4-FinPerf RE'!G40+'[1]A4-FinPerf RE'!G41 ->  | G22: ='[1]A4-FinPerf RE'!H40+'[1]A4-FinPerf RE'!H41 ->  | H22: ='[1]A4-FinPerf RE'!I40+'[1]A4-FinPerf RE'!I41 ->  | I22: ='[1]A4-FinPerf RE'!J40+'[1]A4-FinPerf RE'!J41 ->  | J22: ='[1]A4-FinPerf RE'!K40+'[1]A4-FinPerf RE'!K41 ->  | K22: ='[1]A4-FinPerf RE'!L40+'[1]A4-FinPerf RE'!L41 -> 
A23: ='[1]A4-FinPerf RE'!A42 -> Surplus/(Deficit) after capital transfers & contributions | B23: =B20+SUM(B21:B22) ->  | C23: =C20+SUM(C21:C22) -> 
A24: ='[1]A4-FinPerf RE'!A47 -> Share of surplus/ (deficit) of associate | B24: ='[1]A4-FinPerf RE'!C47 ->  | C24: ='[1]A4-FinPerf RE'!D47 ->  | D24: ='[1]A4-FinPerf RE'!E47 ->  | E24: ='[1]A4-FinPerf RE'!F47 ->  | F24: ='[1]A4-FinPerf RE'!G47 ->  | G24: ='[1]A4-FinPerf RE'!H47 ->  | H24: ='[1]A4-FinPerf RE'!I47 ->  | I24: ='[1]A4-FinPerf RE'!J47 ->  | J24: ='[1]A4-FinPerf RE'!K47 ->  | K24: ='[1]A4-FinPerf RE'!L47 -> 
A25: ='[1]A4-FinPerf RE'!A48 -> Surplus/(Deficit) for the year | B25: =B23+B24 ->  | C25: =C23+C24 -> 
A27: Capital expenditure & funds sources
A28: Capital expenditure | B28: ='[1]A5-Capex'!C63 -> 0 | C28: ='[1]A5-Capex'!D63 -> 0 | D28: ='[1]A5-Capex'!E63 -> 0 | E28: ='[1]A5-Capex'!F63 -> 0 | F28: ='[1]A5-Capex'!G63 -> 0 | G28: ='[1]A5-Capex'!H63 -> 0 | H28: ='[1]A5-Capex'!I63 -> 0 | I28: ='[1]A5-Capex'!J63 -> 0 | J28: ='[1]A5-Capex'!K63 -> 0 | K28: ='[1]A5-Capex'!L63 -> 0
A29: Transfers recognised - capital | B29: ='[1]A5-Capex'!C70 -> 0 | C29: ='[1]A5-Capex'!D70 -> 0 | D29: ='[1]A5-Capex'!E70 -> 0 | E29: ='[1]A5-Capex'!F70 -> 0 | F29: ='[1]A5-Capex'!G70 -> 0 | G29: ='[1]A5-Capex'!H70 -> 0 | H29: ='[1]A5-Capex'!I70 -> 0 | I29: ='[1]A5-Capex'!J70 -> 0 | J29: ='[1]A5-Capex'!K70 -> 0 | K29: ='[1]A5-Capex'!L70 -> 0
A30: ='[1]A5-Capex'!A71 -> Public contributions & donations | B30: ='[1]A5-Capex'!C71 ->  | C30: ='[1]A5-Capex'!D71 ->  | D30: ='[1]A5-Capex'!E71 ->  | E30: ='[1]A5-Capex'!F71 ->  | F30: ='[1]A5-Capex'!G71 ->  | G30: ='[1]A5-Capex'!H71 ->  | H30: ='[1]A5-Capex'!I71 ->  | I30: ='[1]A5-Capex'!J71 ->  | J30: ='[1]A5-Capex'!K71 ->  | K30: ='[1]A5-Capex'!L71 -> 
A31: ='[1]A5-Capex'!A72 -> Borrowing | B31: ='[1]A5-Capex'!C72 ->  | C31: ='[1]A5-Capex'!D72 ->  | D31: ='[1]A5-Capex'!E72 ->  | E31: ='[1]A5-Capex'!F72 ->  | F31: ='[1]A5-Capex'!G72 ->  | G31: ='[1]A5-Capex'!H72 ->  | H31: ='[1]A5-Capex'!I72 ->  | I31: ='[1]A5-Capex'!J72 ->  | J31: ='[1]A5-Capex'!K72 ->  | K31: ='[1]A5-Capex'!L72 -> 
A32: ='[1]A5-Capex'!A73 -> Internally generated funds | B32: ='[1]A5-Capex'!C73 ->  | C32: ='[1]A5-Capex'!D73 ->  | D32: ='[1]A5-Capex'!E73 ->  | E32: ='[1]A5-Capex'!F73 ->  | F32: ='[1]A5-Capex'!G73 ->  | G32: ='[1]A5-Capex'!H73 ->  | H32: ='[1]A5-Capex'!I73 ->  | I32: ='[1]A5-Capex'!J73 ->  | J32: ='[1]A5-Capex'!K73 ->  | K32: ='[1]A5-Capex'!L73 -> 
A33: Total sources of capital funds | B33: =SUM(B29:B32) -> 
A35: Financial position
A36: ='[1]A6-FinPos'!A12 -> Total current assets | B36: ='[1]A6-FinPos'!C12 -> 0 | C36: ='[1]A6-FinPos'!D12 -> 0 | D36: ='[1]A6-FinPos'!E12 -> 0 | E36: ='[1]A6-FinPos'!F12 -> 0 | F36: ='[1]A6-FinPos'!G12 -> 0 | G36: ='[1]A6-FinPos'!H12 -> 0 | H36: ='[1]A6-FinPos'!I12 -> 0 | I36: ='[1]A6-FinPos'!J12 -> 0 | J36: ='[1]A6-FinPos'!K12 -> 0 | K36: ='[1]A6-FinPos'!L12 -> 0
A37: ='[1]A6-FinPos'!A24 -> Total non current assets | B37: ='[1]A6-FinPos'!C24 -> 0 | C37: ='[1]A6-FinPos'!D24 -> 0 | D37: ='[1]A6-FinPos'!E24 -> 0 | E37: ='[1]A6-FinPos'!F24 -> 0 | F37: ='[1]A6-FinPos'!G24 -> 0 | G37: ='[1]A6-FinPos'!H24 -> 0 | H37: ='[1]A6-FinPos'!I24 -> 0 | I37: ='[1]A6-FinPos'!J24 -> 0 | J37: ='[1]A6-FinPos'!K24 -> 0 | K37: ='[1]A6-FinPos'!L24 -> 0
A38: ='[1]A6-FinPos'!A34 -> Total current liabilities | B38: ='[1]A6-FinPos'!C34 -> 0 | C38: ='[1]A6-FinPos'!D34 -> 0 | D38: ='[1]A6-FinPos'!E34 -> 0 | E38: ='[1]A6-FinPos'!F34 -> 0 | F38: ='[1]A6-FinPos'!G34 -> 0 | G38: ='[1]A6-FinPos'!H34 -> 0 | H38: ='[1]A6-FinPos'!I34 -> 0 | I38: ='[1]A6-FinPos'!J34 -> 0 | J38: ='[1]A6-FinPos'!K34 -> 0 | K38: ='[1]A6-FinPos'!L34 -> 0
A39: ='[1]A6-FinPos'!A39 -> Total non current liabilities | B39: ='[1]A6-FinPos'!C39 -> 0 | C39: ='[1]A6-FinPos'!D39 -> 0 | D39: ='[1]A6-FinPos'!E39 -> 0 | E39: ='[1]A6-FinPos'!F39 -> 0 | F39: ='[1]A6-FinPos'!G39 -> 0 | G39: ='[1]A6-FinPos'!H39 -> 0 | H39: ='[1]A6-FinPos'!I39 -> 0 | I39: ='[1]A6-FinPos'!J39 -> 0 | J39: ='[1]A6-FinPos'!K39 -> 0 | K39: ='[1]A6-FinPos'!L39 -> 0
A40: Community wealth/Equity | B40: ='[1]A6-FinPos'!C48 -> 0 | C40: ='[1]A6-FinPos'!D48 -> 0 | D40: ='[1]A6-FinPos'!E48 -> 0 | E40: ='[1]A6-FinPos'!F48 -> 0 | F40: ='[1]A6-FinPos'!G48 -> 0 | G40: ='[1]A6-FinPos'!H48 -> 0 | H40: ='[1]A6-FinPos'!I48 -> 0 | I40: ='[1]A6-FinPos'!J48 -> 0 | J40: ='[1]A6-FinPos'!K48 -> 0 | K40: ='[1]A6-FinPos'!L48 -> 0
A42: Cash flows
A43: Net cash from (used) operating | B43: ='[1]A7-CFlow'!C15 -> 0 | C43: ='[1]A7-CFlow'!D15 -> 0 | D43: ='[1]A7-CFlow'!E15 -> 0 | E43: ='[1]A7-CFlow'!F15 -> 0 | F43: ='[1]A7-CFlow'!G15 -> 0 | G43: ='[1]A7-CFlow'!H15 -> 0 | H43: ='[1]A7-CFlow'!I15 -> 0 | I43: ='[1]A7-CFlow'!J15 -> 0 | J43: ='[1]A7-CFlow'!K15 -> 0 | K43: ='[1]A7-CFlow'!L15 -> 0
A44: Net cash from (used) investing | B44: ='[1]A7-CFlow'!C25 -> 0 | C44: ='[1]A7-CFlow'!D25 -> 0 | D44: ='[1]A7-CFlow'!E25 -> 0 | E44: ='[1]A7-CFlow'!F25 -> 0 | F44: ='[1]A7-CFlow'!G25 -> 0 | G44: ='[1]A7-CFlow'!H25 -> 0 | H44: ='[1]A7-CFlow'!I25 -> 0 | I44: ='[1]A7-CFlow'!J25 -> 0 | J44: ='[1]A7-CFlow'!K25 -> 0 | K44: ='[1]A7-CFlow'!L25 -> 0
A45: Net cash from (used) financing | B45: ='[1]A7-CFlow'!C34 -> 0 | C45: ='[1]A7-CFlow'!D34 -> 0 | D45: ='[1]A7-CFlow'!E34 -> 0 | E45: ='[1]A7-CFlow'!F34 -> 0 | F45: ='[1]A7-CFlow'!G34 -> 0 | G45: ='[1]A7-CFlow'!H34 -> 0 | H45: ='[1]A7-CFlow'!I34 -> 0 | I45: ='[1]A7-CFlow'!J34 -> 0 | J45: ='[1]A7-CFlow'!K34 -> 0 | K45: ='[1]A7-CFlow'!L34 -> 0
A46: =LEFT('[1]A7-CFlow'!A38,37) -> Cash/cash equivalents at the year end | B46: ='[1]A7-CFlow'!C38 -> 0 | C46: ='[1]A7-CFlow'!D38 -> 0 | D46: ='[1]A7-CFlow'!E38 -> 0 | E46: ='[1]A7-CFlow'!F38 -> 0 | F46: ='[1]A7-CFlow'!G38 -> 0 | G46: ='[1]A7-CFlow'!H38 -> 0 | H46: ='[1]A7-CFlow'!I38 -> 0 | I46: ='[1]A7-CFlow'!J38 -> 0 | J46: ='[1]A7-CFlow'!K38 -> 0 | K46: ='[1]A7-CFlow'!L38 -> 0
A48: Cash backing/surplus reconciliation
A49: ='[1]A8-ResRecon'!A4 -> Cash and investments available | B49: ='[1]A8-ResRecon'!C8 -> 0 | C49: ='[1]A8-ResRecon'!D8 -> 0 | D49: ='[1]A8-ResRecon'!E8 -> 0 | E49: ='[1]A8-ResRecon'!F8 -> 0 | F49: ='[1]A8-ResRecon'!G8 -> 0 | G49: ='[1]A8-ResRecon'!H8 -> 0 | H49: ='[1]A8-ResRecon'!I8 -> 0 | I49: ='[1]A8-ResRecon'!J8 -> 0 | J49: ='[1]A8-ResRecon'!K8 -> 0 | K49: ='[1]A8-ResRecon'!L8 -> 0
A50: ='[1]A8-ResRecon'!A10 -> Application of cash and investments | B50: ='[1]A8-ResRecon'!C18 -> 0 | C50: ='[1]A8-ResRecon'!D18 -> 0 | D50: ='[1]A8-ResRecon'!E18 -> 0 | E50: ='[1]A8-ResRecon'!F18 -> 0 | F50: ='[1]A8-ResRecon'!G18 -> 0 | G50: ='[1]A8-ResRecon'!H18 -> 0 | H50: ='[1]A8-ResRecon'!I18 -> 0 | I50: ='[1]A8-ResRecon'!J18 -> 0 | J50: ='[1]A8-ResRecon'!K18 -> 0 | K50: ='[1]A8-ResRecon'!L18 -> 0
A51: Balance - surplus (shortfall) | B51: =B49-B50 -> 0 | C51: =C49-C50 -> 0 | D51: 0 | E51: 0 | F51: 0 | G51: 0 | H51: 0 | I51: 0 | J51: 0 | K51: 0
A53: Asset management
A54: Asset register summary (WDV) | B54: ='[1]A9-Asset'!C65 -> 0 | C54: ='[1]A9-Asset'!D65 -> 0 | D54: ='[1]A9-Asset'!E65 -> 0 | E54: ='[1]A9-Asset'!F65 -> 0 | F54: ='[1]A9-Asset'!G65 -> 0 | G54: ='[1]A9-Asset'!H65 -> 0 | H54: ='[1]A9-Asset'!I65 -> 0 | I54: ='[1]A9-Asset'!I65 -> 0 | J54: ='[1]A9-Asset'!J65 -> 0 | K54: ='[1]A9-Asset'!K65 -> 0
A55: ='[1]A9-Asset'!A68 -> Depreciation & asset impairment | B55: ='[1]A9-Asset'!C68 -> 0 | C55: ='[1]A9-Asset'!D68 -> 0 | D55: ='[1]A9-Asset'!E68 -> 0 | E55: ='[1]A9-Asset'!F68 -> 0 | F55: ='[1]A9-Asset'!G68 -> 0 | G55: ='[1]A9-Asset'!H68 -> 0 | H55: ='[1]A9-Asset'!I68 -> 0 | I55: ='[1]A9-Asset'!I68 -> 0 | J55: ='[1]A9-Asset'!J68 -> 0 | K55: ='[1]A9-Asset'!K68 -> 0
A56: Renewal of Existing Assets | B56: ='[1]A9-Asset'!C20 -> 0 | C56: ='[1]A9-Asset'!D20 -> 0 | D56: ='[1]A9-Asset'!E20 -> 0 | E56: ='[1]A9-Asset'!F20 -> 0 | F56: ='[1]A9-Asset'!G20 -> 0 | G56: ='[1]A9-Asset'!H20 -> 0 | H56: ='[1]A9-Asset'!I20 -> 0 | I56: ='[1]A9-Asset'!I20 -> 0 | J56: ='[1]A9-Asset'!J20 -> 0 | K56: ='[1]A9-Asset'!K20 -> 0
A57: Repairs and Maintenance | B57: ='[1]A9-Asset'!C69 -> 0 | C57: ='[1]A9-Asset'!D69 -> 0 | D57: ='[1]A9-Asset'!E69 -> 0 | E57: ='[1]A9-Asset'!F69 -> 0 | F57: ='[1]A9-Asset'!G69 -> 0 | G57: ='[1]A9-Asset'!H69 -> 0 | H57: ='[1]A9-Asset'!I69 -> 0 | I57: ='[1]A9-Asset'!I69 -> 0 | J57: ='[1]A9-Asset'!J69 -> 0 | K57: ='[1]A9-Asset'!K69 -> 0
A59: Free services
A60: Cost of Free Basic Services provided | B60: ='[1]A10-SerDel'!C59 -> 0 | C60: ='[1]A10-SerDel'!D59 -> 0 | D60: ='[1]A10-SerDel'!E59 -> 0 | E60: ='[1]A10-SerDel'!F59 -> 0 | F60: ='[1]A10-SerDel'!G59 -> 0 | G60: ='[1]A10-SerDel'!H59 -> 0 | H60: ='[1]A10-SerDel'!I59 -> 0 | I60: ='[1]A10-SerDel'!I59 -> 0 | J60: ='[1]A10-SerDel'!J59 -> 0 | K60: ='[1]A10-SerDel'!K59 -> 0
A61: Revenue cost of free services provided | B61: ='[1]A10-SerDel'!C78 -> 0 | C61: ='[1]A10-SerDel'!D78 -> 0 | D61: ='[1]A10-SerDel'!E78 -> 0 | E61: ='[1]A10-SerDel'!F78 -> 0 | F61: ='[1]A10-SerDel'!G78 -> 0 | G61: ='[1]A10-SerDel'!H78 -> 0 | H61: ='[1]A10-SerDel'!I78 -> 0 | I61: ='[1]A10-SerDel'!I78 -> 0 | J61: ='[1]A10-SerDel'!J78 -> 0 | K61: ='[1]A10-SerDel'!K78 -> 0
A62: Households below minimum service level
A63: ='[1]A10-SerDel'!A5 -> Water: | B63: ='[1]A10-SerDel'!C14 -> 0 | C63: ='[1]A10-SerDel'!D14 -> 0 | D63: ='[1]A10-SerDel'!E14 -> 0 | E63: ='[1]A10-SerDel'!F14 -> 0 | F63: ='[1]A10-SerDel'!G14 -> 0 | G63: ='[1]A10-SerDel'!H14 -> 0 | H63: ='[1]A10-SerDel'!I14 -> 0 | I63: ='[1]A10-SerDel'!I14 -> 0 | J63: ='[1]A10-SerDel'!J14 -> 0 | K63: ='[1]A10-SerDel'!K14 -> 0
A64: ='[1]A10-SerDel'!A16 -> Sanitation/sewerage: | B64: ='[1]A10-SerDel'!C26 -> 0 | C64: ='[1]A10-SerDel'!D26 -> 0 | D64: ='[1]A10-SerDel'!E26 -> 0 | E64: ='[1]A10-SerDel'!F26 -> 0 | F64: ='[1]A10-SerDel'!G26 -> 0 | G64: ='[1]A10-SerDel'!H26 -> 0 | H64: ='[1]A10-SerDel'!I26 -> 0 | I64: ='[1]A10-SerDel'!I26 -> 0 | J64: ='[1]A10-SerDel'!J26 -> 0 | K64: ='[1]A10-SerDel'!K26 -> 0
A65: ='[1]A10-SerDel'!A28 -> Energy: | B65: ='[1]A10-SerDel'!C35 -> 0 | C65: ='[1]A10-SerDel'!D35 -> 0 | D65: ='[1]A10-SerDel'!E35 -> 0 | E65: ='[1]A10-SerDel'!F35 -> 0 | F65: ='[1]A10-SerDel'!G35 -> 0 | G65: ='[1]A10-SerDel'!H35 -> 0 | H65: ='[1]A10-SerDel'!I35 -> 0 | I65: ='[1]A10-SerDel'!I35 -> 0 | J65: ='[1]A10-SerDel'!J35 -> 0 | K65: ='[1]A10-SerDel'!K35 -> 0
A66: ='[1]A10-SerDel'!A37 -> Refuse: | B66: ='[1]A10-SerDel'!C45 -> 0 | C66: ='[1]A10-SerDel'!D45 -> 0 | D66: ='[1]A10-SerDel'!E45 -> 0 | E66: ='[1]A10-SerDel'!F45 -> 0 | F66: ='[1]A10-SerDel'!G45 -> 0 | G66: ='[1]A10-SerDel'!H45 -> 0 | H66: ='[1]A10-SerDel'!I45 -> 0 | I66: ='[1]A10-SerDel'!I45 -> 0 | J66: ='[1]A10-SerDel'!J45 -> 0 | K66: ='[1]A10-SerDel'!K45 -> 0

Sheet A2
A1: Choose name from list - Table A2 Budgeted Financial Performance (revenue and expenditure by standard classification)
A2: Description | B2: Ref | C2: 2005/06 | D2: 2006/07 | E2: 2007/08 | F2: 2008/09 | I2: 2009/10 Medium Term Revenue & Expenditure Framework
A3: R thousand | C3: Audited Outcome | D3: Audited Outcome | E3: Audited Outcome | F3: Original Budget | G3: Adjusted Budget | H3: Full Year Forecast | I3: Budget Year 2009/10 | J3: Budget Year +1 2010/11 | K3: Budget Year +2 2011/12
A4: Revenue - Standard
A5: Governance and administration | C5: =SUM(C6:C8) -> 0 | D5: =SUM(D6:D8) -> 0 | E5: 0 | F5: 50746005 | G5: 49934650.95 | H5: 49416298.92 | I5: 0 | J5: 0 | K5: 0
A6: Executive and council | F6: 4568226 | G6: =RANDBETWEEN(M$6,M$7)*$F6/100 -> 4339814.7 | H6: 5025048.6 | M6: 80 | N6: 90
A7: Budget and treasury office | F7: 45312315 | G7: 44859191.85 | H7: 43499822.4 | M7: 100 | N7: 110
A8: Corporate services | F8: 865464 | G8: 735644.4 | H8: 891427.92
A9: Community and public safety | C9: =SUM(C10:C14) -> 0 | D9: =SUM(D10:D14) -> 0 | E9: 0 | F9: 15407469 | G9: 13460794.73 | H9: 15006391.06 | I9: 0 | J9: 0 | K9: 0
A10: Community and social services | F10: 4685323 | G10: =RANDBETWEEN(M$6,M$7)*$F10/100 -> 4357350.39 | H10: 4966442.38
A11: Sport and recreation | F11: 5646432 | G11: 4630074.24 | H11: 5251181.76
A12: Public safety | F12: 84562 | G12: 78642.66 | H12: 79488.28
A13: Housing | F13: 4865468 | G13: 4281611.84 | H13: 4573539.92
A14: Health | F14: 125684 | G14: 113115.6 | H14: 135738.72
A15: Economic and environmental services | C15: =SUM(C16:C18) -> 0 | D15: =SUM(D16:D18) -> 0 | E15: 0 | F15: 4954052 | G15: 4123741 | H15: 5004049.36 | I15: 0 | J15: 0 | K15: 0
A16: Planning and development | F16: 45684 | G16: =RANDBETWEEN(M$6,M$7)*$F16/100 -> 45684 | H16: 48425.04
A17: Road transport | F17: 4862684 | G17: 4036027.72 | H17: 4911310.84
A18: Environmental protection | F18: 45684 | G18: 42029.28 | H18: 44313.48
A19: Trading services | C19: =SUM(C20:C24) -> 0 | D19: =SUM(D20:D24) -> 0 | E19: 0 | F19: 83485237 | G19: 71734698.73 | H19: 87874978.75 | I19: 0 | J19: 0 | K19: 0
A20: Electricity | F20: 34652446 | G20: =RANDBETWEEN(M$6,M$7)*$F20/100 -> 28415005.72 | H20: 35692019.38
A21: Water | F21: 28456842 | G21: 25326589.38 | H21: 31017957.78
A22: Waste water management | F22: 8665542 | G22: 8145609.48 | H22: 9532096.2
A23: Waste management | F23: 6845265 | G23: 5955380.55 | H23: 6913717.65
A24: Other | B24: 1900-01-04 | F24: 4865142 | G24: 3892113.6 | H24: 4719187.74
A25: ="Total "&A4 -> Total Revenue - Standard | B25: 1900-01-02 | C25: =C5+C9+C15+C19 -> 0 | D25: 0 | E25: 0 | F25: 154592763 | G25: 139253885.4 | H25: 157301718.1 | I25: 0 | J25: 0 | K25: 0
A27: Expenditure - Standard
A28: =A5 -> Governance and administration | C28: =SUM(C29:C31) -> 0 | D28: =SUM(D29:D31) -> 0 | E28: 0 | F28: 16731333 | G28: 15100710.91 | H28: 16789002.57 | I28: 0 | J28: 0 | K28: 0
A29: =A6 -> Executive and council | F29: 4562245 | G29: =RANDBETWEEN(M$6,M$7)*$F29/100 -> 3969153.15 | H29: 4425377.65
A30: Budget and treasury office | F30: 5684524 | G30: 5684524 | H30: 5684524
A31: Corporate services | F31: 6484564 | G31: 5447033.76 | H31: 6679100.92
A32: Community and public safety | C32: =SUM(C33:C37) -> 0 | D32: =SUM(D33:D37) -> 0 | E32: 0 | F32: 50005183 | G32: 45829548.65 | H32: 51301360.62 | I32: 0 | J32: 0 | K32: 0
A33: Community and social services | F33: 18654229 | G33: =RANDBETWEEN(M$6,M$7)*$F33/100 -> 16975348.39 | H33: 18654229
A34: Sport and recreation | F34: 15468452 | G34: 15004398.44 | H34: 16860612.68
A35: Public safety | F35: 6454844 | G35: 5486617.4 | H35: 6583940.88
A36: Housing | F36: 4562236 | G36: 3741033.52 | H36: 4288501.84
A37: Health | F37: 4865422 | G37: 4622150.9 | H37: 4914076.22
A38: Economic and environmental services | C38: =SUM(C39:C41) -> 0 | D38: =SUM(D39:D41) -> 0 | E38: 0 | F38: 16864183 | G38: 14876625.14 | H38: 17185677.38 | I38: 0 | J38: 0 | K38: 0
A39: Planning and development | F39: 5456845 | G39: =RANDBETWEEN(M$6,M$7)*$F39/100 -> 4856592.05 | H39: 5729687.25
A40: Road transport | F40: 6542125 | G40: 5495385 | H40: 6542125
A41: Environmental protection | F41: 4865213 | G41: 4524648.09 | H41: 4913865.13
A42: Trading services | C42: =SUM(C43:C47) -> 0 | D42: =SUM(D43:D47) -> 0 | E42: 0 | F42: 67322038 | G42: 62168016.24 | H42: 66663340.04 | I42: 0 | J42: 0 | K42: 0
A43: Electricity | F43: 12544545 | G43: =RANDBETWEEN(M$6,M$7)*$F43/100 -> 11290090.5 | H43: 11415535.95
A44: Water | F44: 24545155 | G44: 24299703.45 | H44: 26263315.85
A45: Waste water management | F45: 5345654 | G45: 5292197.46 | H45: 5345654
A46: Waste management | F46: 12531231 | G46: 11278107.9 | H46: 11654044.83
A47: Other | B47: 1900-01-04 | F47: 12355453 | G47: 10007916.93 | H47: 11984789.41
A48: ="Total "&A27 -> Total Expenditure - Standard | B48: 1900-01-03 | C48: =C28+C32+C38+C42 -> 0 | D48: =D28+D32+D38+D42 -> 0 | E48: 0 | F48: 150922737 | G48: 137974900.9 | H48: 151939380.6 | I48: 0 | J48: 0 | K48: 0
A49: =result -> Surplus/(Deficit) for the year | C49: =C25-C48 -> 0 | D49: =D25-D48 -> 0 | E49: 0 | F49: 3670026 | G49: 1278984.47 | H49: 5362337.48 | I49: 0 | J49: 0 | K49: 0
A50: =head27a -> References
A51: 1. Government Finance Statistics Functions and Sub-functions are standardised to assist the compilation of national and international accounts for comparison purposes
A52: 2. Total Revenue by standard classification must reconcile to Total Operating Revenue shown in Budgeted Financial Performance (revenue and expenditure)
A53: 3. Total Expenditure by Standard Classification must reconcile to Total Operating Expenditure shown in Budgeted Financial Performance (revenue and expenditure)
A54: 4. All amounts must be classified under a standard classification (modified GFS). The GFS function 'Other' is only for Abbatoirs, Air Transport, Markets and Tourism - and if used must be supported by footnotes. Nothing else may be placed under 'Other'. Assign associate share to relevant classification
A57: check oprev balance
A58: check opexp balance

Sheet A4
A1: Choose name from list - Table A4 Budgeted Financial Performance (revenue and expenditure)
A2: Description | B2: Ref | C2: 2005/06 | D2: 2006/07 | E2: 2007/08 | F2: Current Year 2008/09 | J2: 2009/10 Medium Term Revenue & Expenditure Framework
C3: Audited Outcome | D3: Audited Outcome | E3: Audited Outcome | F3: Original Budget | G3: Adjusted Budget | H3: Full Year Forecast | I3: Pre-audit outcome | J3: Budget Year 2009/10 | K3: Budget Year +1 2010/11 | L3: Budget Year +2 2011/12
A4: Revenue By Source
A5: Property rates | B5: 1900-01-02 | F5: 26485424 | G5: =RANDBETWEEN(N$5,N$6)*$F5/100 -> 24896298.56 | H5: =RANDBETWEEN(O$5,O$6)*$F5/100 -> 29133966.4 | I5: =RANDBETWEEN(P$5,P$6)*$F5/100 -> 21188339.2 | N5: 80 | O5: 90 | P5: 80
A6: Property rates - penalties & collection charges | F6: 8541256 | G6: =RANDBETWEEN(N$5,N$6)*$F6/100 -> 8199605.76 | H6: =RANDBETWEEN(O$5,O$6)*$F6/100 -> 8968318.8 | I6: =RANDBETWEEN(P$5,P$6)*$F6/100 -> 7089242.48 | N6: 100 | O6: 110 | P6: 115
A7: Service charges - electricity revenue | B7: 1900-01-02 | F7: 12354652 | G7: 11119186.8 | H7: 12478198.52 | I7: 12354652
A8: Service charges - water revenue | B8: 1900-01-02 | F8: 14231546 | G8: 12808391.4 | H8: 15654700.6 | I8: 14516176.92
A9: Service charges - sanitation revenue | B9: 1900-01-02 | F9: 6542352 | G9: 6084387.36 | H9: 6084387.36 | I9: 7523704.8
A10: Service charges - refuse revenue | B10: 1900-01-02 | F10: 1864548 | G10: 1715384.16 | H10: 1939129.92 | I10: 2013711.84
A11: Service charges - other | F11: 5642551 | G11: 5642551 | H11: 5191146.92 | I11: 5586125.49
A12: Rental of facilities and equipment | F12: 5321531 | G12: 4523301.35 | H12: 5587607.55 | I12: 5800468.79
A13: Interest earned - external investments | F13: 8455214 | G13: 7694244.74 | H13: 8032453.3 | I13: 7863349.02
A14: Interest earned - outstanding debtors | F14: 1253652 | G14: 1253652 | H14: 1379017.2 | I14: 1241115.48
A15: Dividends received | F15: 2515644 | G15: 2213766.72 | H15: 2264079.6 | I15: 2289236.04
A16: Fines | F16: 6845685 | G16: 6298030.2 | H16: 6845685 | I16: 6024202.8
A17: Licences and permits | F17: 12545845 | G17: 12169469.65 | H17: 11667635.85 | I17: 13298595.7
A18: Agency services | F18: 2354564 | G18: 2142653.24 | H18: 2236835.8 | I18: 1977833.76
A19: Transfers recognised - operational | F19: 48542456 | G19: 38833964.8 | H19: 48057031.44 | I19: 54367550.72
A20: Other revenue | B20: 1900-01-02 | F20: 4564885 | G20: 3971449.95 | H20: 4427938.45 | I20: 4610533.85
A21: Gains on disposal of PPE | F21: 5648645 | G21: 4801348.25 | H21: 6100536.6 | I21: 6157023.05
A22: Total Revenue (excluding capital transfers and contributions) | C22: =SUM(C5:C21) -> 0 | D22: 0 | E22: 0 | F22: 173710450 | G22: 154367685.9 | H22: 176048669.3 | I22: 173901861.9 | J22: 0 | K22: 0 | L22: 0
A24: Expenditure By Type
A25: Employee related costs | B25: 1900-01-02 | F25: 28456845 | G25: =RANDBETWEEN(N$5,N$6)*$F25/100 -> 26464865.85 | H25: =RANDBETWEEN(O$5,O$6)*$F25/100 -> 30733392.6 | I25: =RANDBETWEEN(P$5,P$6)*$F25/100 -> 32440803.3
A26: Remuneration of councillors | F26: 4568454 | G26: 4157293.14 | H26: 4888245.78 | I26: 4933930.32
A27: Debt impairment | B27: 1900-01-03 | F27: 13268455 | G27: 10614764 | H27: 12206978.6 | I27: 11543555.85
A28: Depreciation & asset impairment | B28: 1900-01-02 | F28: 18456444 | G28: 16610799.6 | H28: 19010137.32 | I28: 17533621.8
A29: Finance charges | F29: 5464865 | G29: 5191621.75 | H29: 5082324.45 | I29: 5683459.6
A30: Bulk purchases | B30: 1900-01-02 | F30: 25456585 | G30: 24438321.6 | H30: 25456585 | I30: 20365268
A31: Other materials | B31: 1900-01-08 | F31: 4562222 | G31: 4470977.56 | H31: 4425355.34 | I31: 4881577.54
A32: Contracted services | F32: 25453855 | G32: 24944777.9 | H32: 26217470.65 | I32: 25962932.1
A33: Transfers and grants | F33: 2254525 | G33: 2254525 | H33: 2096708.25 | I33: 1938891.5
A34: Other expenditure | B34: 4, 5 | F34: 38453565 | G34: 34992744.15 | H34: 41529850.2 | I34: 38838100.65
A35: Loss on disposal of PPE | F35: 4568456 | G35: 4294348.64 | H35: 4751194.24 | I35: 4294348.64
A36: Total Expenditure | C36: =SUM(C25:C35) -> 0 | D36: =SUM(D25:D35) -> 0 | E36: 0 | F36: 170964271 | G36: 158435039.2 | H36: 176398242.4 | I36: 168416489.3 | J36: 0 | K36: 0 | L36: 0
A38: Surplus/(Deficit) | C38: =C22-C36 -> 0 | D38: 0 | E38: 0 | F38: 2746179 | G38: -4067353.25 | H38: -349573.12 | I38: 5485372.64 | J38: 0 | K38: 0 | L38: 0
A39: Transfers recognised - capital
A40: Contributions recognised - capital | B40: 1900-01-06
A41: Contributed assets
A42: Surplus/(Deficit) after capital transfers & contributions | C42: =SUM(C38:C41) -> 0 | D42: 0 | E42: 0 | F42: 2746179 | G42: -4067353.25 | H42: -349573.12 | I42: 5485372.64 | J42: 0 | K42: 0 | L42: 0
A43: Taxation
A44: Surplus/(Deficit) after taxation | C44: =C42-C43 -> 0 | D44: 0 | E44: 0 | F44: 2746179 | G44: -4067353.25 | H44: -349573.12 | I44: 5485372.64 | J44: 0 | K44: 0 | L44: 0
A45: Attributable to minorities
A46: Surplus/(Deficit) attributable to municipality | C46: =SUM(C44:C45) -> 0 | D46: 0 | E46: 0 | F46: 2746179 | G46: -4067353.25 | H46: -349573.12 | I46: 5485372.64 | J46: 0 | K46: 0 | L46: 0
A47: Share of surplus/ (deficit) of associate | B47: 1900-01-07
A48: =result -> Surplus/(Deficit) for the year | C48: =SUM(C46:C47) -> 0 | D48: 0 | E48: 0 | F48: 2746179 | G48: -4067353.25 | H48: -349573.12 | I48: 5485372.64 | J48: 0 | K48: 0 | L48: 0
A49: =head27a -> References
A50: 1. Classifications are revenue sources and expenditure type
A51: 2. Detail to be provided in Table SA1
A52: 3. Previously described as 'bad or doubtful debts' - amounts shown should reflect the change in the provision for debt impairment
A53: 4. Expenditure type components previously shown under repairs and maintenance should be allocated back to the originating expenditure group/item; e.g. employee costs
A54: 5. Repairs & maintenance detailed in Table A9 and Table SA34c
A55: 6. Contributions are funds provided by external organisations to assist with infrastructure development; e.g. developer contributions (detail to be provided in Table SA1)
A56: 7. Equity method
A57: 8. All materials not part of 'bulk' e.g. road making materials, pipe, cable etc.
A58: check balance
A60: Total revenue | C60: =C22+SUM(C39:C41) -> 0 | D60: 0 | E60: 0 | F60: 173710450 | G60: 154367685.9 | H60: 176048669.3 | I60: 173901861.9 | J60: 0 | K60: 0 | L60: 0

Sheet A6
A1: Choose name from list - Table A6 Budgeted Financial Position
A2: Description | B2: Ref | C2: 2005/06 | D2: 2006/07 | E2: 2007/08 | F2: Current Year 2008/09 | J2: 2009/10 Medium Term Revenue & Expenditure Framework
C3: Audited Outcome | D3: Audited Outcome | E3: Audited Outcome | F3: Original Budget | G3: Adjusted Budget | H3: Full Year Forecast | I3: Pre-audit outcome | J3: Budget Year 2009/10 | K3: Budget Year +1 2010/11 | L3: Budget Year +2 2011/12
A4: ASSETS
A5: Current assets
A6: Cash | F6: 4568456 | G6: =RANDBETWEEN(N$6,N$7)*$F6/100 -> 4111610.4 | H6: 4294348.64 | I6: 4111610.4 | N6: 80 | O6: 90 | P6: 80
A7: Call investment deposits | B7: 1900-01-01 | F7: 2564852 | G7: 2231421.24 | H7: 2308366.8 | I7: 2154475.68 | N7: 100 | O7: 110 | P7: 105
A8: Consumer debtors | B8: 1900-01-01 | F8: 56486455 | G8: 53097267.7 | H8: 53662132.25 | I8: 54791861.35
A9: Other debtors | F9: 35465555 | G9: 35465555 | H9: 34046932.8 | I9: 37238832.75
A10: Current portion of long-term receivables | F10: 8645254 | G10: 8212991.3 | H10: 8040086.22 | I10: 7175560.82
A11: Inventory | B11: 1900-01-02 | F11: 985645 | G11: 965932.1 | H11: 1034927.25 | I11: 995501.45
A12: Total current assets | C12: =SUM(C6:C11) -> 0 | D12: 0 | E12: 0 | F12: 108716217 | G12: 104084777.7 | H12: 103386794 | I12: 106467842.5 | J12: 0 | K12: 0 | L12: 0
A14: Non current assets
A15: Long-term receivables | F15: 2156455 | G15: =RANDBETWEEN(N$6,N$7)*$F15/100 -> 2048632.25 | H15: =RANDBETWEEN(O$6,O$7)*$F15/100 -> 2091761.35 | I15: =RANDBETWEEN(P$6,P$7)*$F15/100 -> 1854551.3
A16: Investments | F16: 25235452 | G16: 20440716.12 | H16: 24730742.96 | I16: 20440716.12
A17: Investment property | F17: 91454568 | G17: 85967293.92 | H17: 95112750.72 | I17: 85967293.92
A18: Investment in Associate | F18: 5888654 | G18: 5535334.76 | H18: 6006427.08 | I18: 5064242.44
A19: Property, plant and equipment | B19: 1900-01-03 | F19: 1235445 | G19: 1223090.55 | H19: 1235445 | I19: 1087191.6
A20: Agricultural | F20: 4568455 | G20: 4522770.45 | H20: 4979615.95 | I20: 3837502.2
A21: Biological | F21: 254455 | G21: 211197.65 | H21: 241732.25 | I21: 203564
A22: Intangible | F22: 856855 | G22: 822580.8 | H22: 891129.2 | I22: 779738.05
A23: Other non-current assets | F23: 9845457 | G23: 9648547.86 | H23: 9156275.01 | I23: 8959365.87
A24: Total non current assets | C24: =SUM(C15:C23) -> 0 | D24: =SUM(D15:D23) -> 0 | E24: =SUM(E15:E23) -> 0 | F24: 141495796 | G24: 130420164.4 | H24: 144445879.5 | I24: 128194165.5 | J24: 0 | K24: 0 | L24: 0
A25: TOTAL ASSETS | C25: =C12+C24 -> 0 | D25: =D12+D24 -> 0 | E25: =E12+E24 -> 0 | F25: =F12+F24 -> 250212013 | G25: 234504942.1 | H25: 247832673.5 | I25: 234662007.9 | J25: 0 | K25: 0 | L25: 0
A27: LIABILITIES
A28: Current liabilities
A29: Bank overdraft | B29: 1900-01-01 | F29: 16548555 | G29: =RANDBETWEEN(N$6,N$7)*$F29/100 -> 13735300.65 | H29: 15390156.15 | I29: 17210497.2
A30: Borrowing | B30: 1900-01-04 | F30: 68456845 | G30: 58872886.7 | H30: 74617961.05 | I30: 59557455.15
A31: Consumer deposits | F31: 13584554 | G31: 12633635.22 | H31: 14943009.4 | I31: 14263781.7
A32: Trade and other payables | B32: 1900-01-04 | F32: 45255555 | G32: 41635110.6 | H32: 46613221.65 | I32: 43897888.35
A33: Provisions | F33: 5421111 | G33: 4553733.24 | H33: 4933211.01 | I33: 4987422.12
A34: Total current liabilities | C34: =SUM(C29:C33) -> 0 | D34: 0 | E34: 0 | F34: 149266620 | G34: 131430666.4 | H34: 156497559.3 | I34: 139917044.5 | J34: 0 | K34: 0 | L34: 0
A36: Non current liabilities
A37: Borrowing | F37: 86555555 | G37: =RANDBETWEEN(N$6,N$7)*$F37/100 -> 79631110.6 | H37: 80496666.15 | I37: 84824443.9
A38: Provisions | F38: 24254588 | G38: 22556766.84 | H38: 26437500.92 | I38: 23526950.36
A39: Total non current liabilities | C39: =SUM(C37:C38) -> 0 | D39: =SUM(D37:D38) -> 0 | E39: =SUM(E37:E38) -> 0 | F39: =SUM(F37:F38) -> 110810143 | G39: 102187877.4 | H39: 106934167.1 | I39: 108351394.3 | J39: 0 | K39: =SUM(K37:K38) -> 0 | L39: 0
A40: TOTAL LIABILITIES | C40: =C34+C39 -> 0 | D40: =D34+D39 -> 0 | E40: =E34+E39 -> 0 | F40: =F34+F39 -> 260076763 | G40: 233618543.9 | H40: 263431726.3 | I40: 248268438.8 | J40: 0 | K40: =K34+K39 -> 0 | L40: 0
A42: NET ASSETS | B42: 1900-01-05 | C42: =C25-C40 -> 0 | D42: 0 | E42: 0 | F42: -9864750 | G42: 886398.25 | H42: -15599052.85 | I42: -13606430.83 | J42: 0 | K42: 0 | L42: 0
A44: COMMUNITY WEALTH/EQUITY
A45: Accumulated Surplus/(Deficit)
A46: Reserves | B46: 1900-01-04
A47: Minorities' interests
A48: TOTAL COMMUNITY WEALTH/EQUITY | B48: 1900-01-05 | C48: =SUM(C45:C47) -> 0 | D48: =SUM(D45:D47) -> 0 | E48: 0 | F48: 0 | G48: 0 | H48: 0 | I48: 0 | J48: 0 | K48: 0 | L48: 0
A49: =head27a -> References
A50: 1. Detail to be provided in Table SA3
A51: 2. Include completed low cost housing to be transferred to beneficiaries within 12 months
A52: 3. Include 'Construction-work-in-progress' (disclosed separately in annual financial statements)
A53: 4. Detail to be provided in Table SA3. Includes reserves to be funded by statute.
A54: 5. Net assets must balance with Total Community Wealth/Equity
A55: check balance | C55: =C42-C48 -> 0 | D55: 0 | E55: 0 | F55: -9864750 | G55: 886398.25 | H55: -15599052.85 | I55: -13606430.83 | J55: 0 | K55: 0 | L55: 0

Sheet A10
A1: Choose name from list - Table A10 Basic service delivery measurement
A2: Description | B2: Ref | C2: Year -3 | D2: Year -2 | E2: Year -1 | F2: Year 0 | I2: 2009/10 Medium Term Revenue & Expenditure Framework
C3: Audited Outcome | D3: Audited Outcome | E3: Audited Outcome | F3: Original Budget | G3: Adjusted Budget | H3: Full Year Forecast | I3: Budget Year 2009/10 | J3: Budget Year +1 2010/11 | K3: Budget Year +2 2011/12
A4: Household service targets (000) | B4: 1900-01-01
A5: Water:
A6: Piped water inside dwelling | C6: 856567 | D6: 545664 | E6: 654684 | H6: 845644
A7: Piped water inside yard (but not in dwelling) | C7: 646856 | D7: 865456 | E7: 456486 | H7: 486454
A8: Using public tap (at least min.service level) | B8: 1900-01-02 | C8: 486456 | D8: 486468 | E8: 464864 | H8: 546486
A9: Other water supply (at least min.service level) | B9: 1900-01-04
A10: Minimum Service Level and Above sub-total | C10: =SUM(C6:C9) -> 1989879 | D10: =SUM(D6:D9) -> 1897588 | E10: 1576034 | F10: 0 | G10: 0 | H10: 1878584 | I10: 0 | J10: 0 | K10: 0
A11: Using public tap (< min.service level) | B11: 1900-01-03
A12: Other water supply (< min.service level) | B12: =B9 -> 1900-01-04 | C12: 486456 | D12: 486456 | E12: 486456 | H12: 486456
A13: No water supply
A14: Below Minimum Service Level sub-total | C14: =SUM(C11:C13) -> 486456 | D14: 358684 | E14: 865485 | F14: =SUM(F11:F13) -> 0 | G14: 0 | H14: 486456 | I14: 0 | J14: 0 | K14: 0
A15: Total number of households | B15: 1900-01-05 | C15: =C10+C14 -> 2476335 | D15: =D10+D14 -> 2256272 | E15: 2441519 | F15: 0 | G15: 0 | H15: 2365040 | I15: 0 | J15: 0 | K15: 0
A16: Sanitation/sewerage:
A17: Flush toilet (connected to sewerage) | C17: 942223.7 | D17: 600230.4 | E17: 720152.4 | H17: 830208.4
A18: Flush toilet (with septic tank) | C18: 711541.6 | D18: 952001.6 | E18: 502134.6 | H18: 535099.4
A19: Chemical toilet | C19: 535101.6 | D19: 535114.8 | E19: 511350.4 | H19: 601134.6
A20: Pit toilet (ventilated) | C20: 123545 | D20: 135125 | E20: 102545 | H20: 100125
A21: Other toilet provisions (> min.service level) | C21: 12545 | D21: 13453 | E21: 14521 | H21: 11245
A22: =$A$10 -> Minimum Service Level and Above sub-total | C22: =SUM(C17:C21) -> 2324956.9 | D22: =SUM(D17:D21) -> 2235924.8 | E22: 1850703.4 | F22: 0 | G22: 0 | H22: 2077812.4 | I22: 0 | J22: 0 | K22: 0
A23: Bucket toilet | C23: 502133.5 | D23: 952110.5 | E23: 937909.5 | H23: 720329.5
A24: Other toilet provisions (< min.service level) | C24: 535101.6 | D24: 535101.6 | E24: 535101.6 | H24: 535101.6
A25: No toilet provisions | C25: 10245 | D25: 11254 | E25: 12451 | H25: 15458
A26: =$A$14 -> Below Minimum Service Level sub-total | C26: =SUM(C23:C25) -> 1047480.1 | D26: =SUM(D23:D25) -> 1498466.1 | E26: 1485462.1 | F26: 0 | G26: 0 | H26: 1270889.1 | I26: 0 | J26: 0 | K26: 0
A27: =$A$15 -> Total number of households | B27: =$B$15 -> 1900-01-05 | C27: =C22+C26 -> 3372437 | D27: =D22+D26 -> 3734390.9 | E27: 3336165.5 | F27: 0 | G27: 0 | H27: 3348701.5 | I27: 0 | J27: 0 | K27: 0
A28: Energy:
A29: Electricity (at least min.service level) | C29: 654845 | D29: 546845 | E29: 564825 | H29: 523455
A30: Electricity - prepaid (min.service level) | C30: 564864 | D30: 586886 | E30: 845686 | H30: 564865
A31: =$A$10 -> Minimum Service Level and Above sub-total | C31: =SUM(C29:C30) -> 1219709 | D31: =SUM(D29:D30) -> 1133731 | E31: 1410511 | F31: 0 | G31: 0 | H31: 1088320 | I31: 0 | J31: 0 | K31: 0
A32: Electricity (< min.service level) | C32: 112453 | D32: 123451 | E32: 123544 | H32: 123544
A33: Electricity - prepaid (< min. service level) | C33: 954684 | D33: 864568 | E33: 564865 | H33: 486568
A34: Other energy sources | C34: 23544 | D34: 25634 | E34: 28213 | H34: 54215
A35: =$A$14 -> Below Minimum Service Level sub-total | C35: =SUM(C32:C34) -> 1090681 | D35: =SUM(D32:D34) -> 1013653 | E35: 716622 | F35: 0 | G35: 0 | H35: 664327 | I35: 0 | J35: 0 | K35: 0
A36: =$A$15 -> Total number of households | B36: =$B$15 -> 1900-01-05 | C36: =C31+C35 -> 2310390 | D36: =D31+D35 -> 2147384 | E36: 2127133 | F36: 0 | G36: 0 | H36: 1752647 | I36: 0 | J36: 0 | K36: 0
A37: Refuse:
A38: Removed at least once a week | C38: 2895485 | D38: 2684568 | E38: 2845684 | H38: 2235452
A39: =$A$10 -> Minimum Service Level and Above sub-total | C39: =SUM(C38) -> 2895485 | D39: =SUM(D38) -> 2684568 | E39: 2845684 | F39: 0 | G39: 0 | H39: 2235452 | I39: 0 | J39: 0 | K39: 0
A40: Removed less frequently than once a week | C40: 654845 | D40: 546845 | E40: 564825 | H40: 523455
A41: Using communal refuse dump | C41: 865486 | D41: 845648 | E41: 486545 | H41: 864585
A42: Using own refuse dump | C42: 654845 | D42: 546845 | E42: 564825 | H42: 523455
A43: Other rubbish disposal | C43: 502133.5 | D43: 952110.5 | E43: 937909.5 | H43: 720329.5
A44: No rubbish disposal | C44: 112453 | D44: 123451 | E44: 123544 | H44: 123544
A45: =$A$14 -> Below Minimum Service Level sub-total | C45: =SUM(C40:C44) -> 2789762.5 | D45: 3014899.5 | E45: 2677648.5 | F45: 0 | G45: 0 | H45: 2755368.5 | I45: 0 | J45: 0 | K45: 0
A46: =$A$15 -> Total number of households | B46: =$B$15 -> 1900-01-05 | C46: =C39+C45 -> 5685247.5 | D46: =D39+D45 -> 5699467.5 | E46: 5523332.5 | F46: 0 | G46: 0 | H46: 4990820.5 | I46: 0 | J46: 0 | K46: 0
A48: Households receiving Free Basic Service | B48: 1900-01-07
A49: Water (6 kilolitres per household per month) | C49: 45685 | D49: 84645 | E49: 86456 | H49: 48655
A50: Sanitation (free minimum level service) | C50: 45648 | D50: 56744 | E50: 84645 | H50: 84655
A51: Electricity/other energy (50kwh per household per month) | C51: 48655 | D51: 84654 | E51: 45684 | H51: 48654
A52: Refuse (removed at least once a week) | C52: 48654 | D52: 84865 | E52: 53256 | H52: 48654
A54: Cost of Free Basic Services provided (R'000) | B54: 1900-01-08
A55: Water (6 kilolitres per household per month)
A56: Sanitation (free sanitation service)
A57: Electricity/other energy (50kwh per household per month)
A58: Refuse (removed once a week)
A59: Total cost of FBS provided (minimum social package) | C59: =SUM(C54:C58) -> 0 | D59: =SUM(D54:D58) -> 0 | E59: 0 | F59: 0 | G59: 0 | H59: 0 | I59: 0 | J59: 0 | K59: 0
A61: Highest level of free service provided
A62: Property rates (R'000 value threshold)
A63: Water (kilolitres per household per month)
A64: Sanitation (kilolitres per household per month)
A65: Sanitation (Rand per household per month)
A66: Electricity (kwh per household per month)
A67: Refuse (average litres per week)
A68: Revenue cost of free services provided (R'000) | B68: 1900-01-09
A69: Property rates (R15 000 threshold rebate)
A70: Property rates (other exemptions, reductions and rebates)
A71: Water
A72: Sanitation
A73: Electricity/other energy
A74: Refuse
A75: Municipal Housing - rental rebates
A76: Housing - top structure subsidies | B76: 1900-01-06
A77: Other
A78: Total revenue cost of free services provided (total social package) | C78: =SUM(C69:C77) -> 0 | D78: 0 | E78: 0 | F78: 0 | G78: 0 | H78: 0 | I78: 0 | J78: =SUM(J69:J77) -> 0 | K78: =SUM(K69:K77) -> 0
A79: =head27a -> References
A80: 1. Include services provided by another entity; e.g. Eskom
A81: 2. Stand distance <= 200m from dwelling
A82: 3. Stand distance > 200m from dwelling
A83: 4. Borehole, spring, rain-water tank etc.
A84: 5. Must agree to total number of households in municipal area
A85: 6. Include value of subsidy provided by municipality above provincial subsidy level
A86: 7. Show number of households receiving at least these levels of services completely free
A87: 8. Must reflect the cost to the municipality of providing the Free Basic Service
A88: 9. Reflect the cost to the municipality in terms of 'revenue foregone' of providing free services (note this will not equal 'Revenue Foregone' on SA1)

Sheet A10 - 2
A1: Water Service Delivery Levels | M1: Put full table as provided by MBRR in Guide
A2: Description | B2: Ref | C2: Year -3 | D2: Year -2 | E2: Year -1 | F2: Year 0 | I2: 2009/10 Medium Term Revenue & Expenditure Framework
C3: Outcome | D3: Outcome | E3: Outcome | F3: Original Budget | G3: Adjusted Budget | H3: Actual | I3: Budget Year 2009/10 | J3: Budget Year +1 2010/11 | K3: Budget Year +2 2011/12
A4: Household (000) | B4: 1
A5: Water: (above min level)
A6: Piped water inside dwelling | C6: 856567 | D6: 545664 | E6: 654684 | H6: 845644
A7: Piped water inside yard (but not in dwelling) | C7: 646856 | D7: 865456 | E7: 456486 | H7: 486454
A8: Using public tap (within 200m from dwelling ) | B8: 2 | C8: 486456 | D8: 486468 | E8: 464864 | H8: 546486
A9: Other water supply (within 200m) | B9: 4
A10: Minimum Service Level and Above sub-total | C10: =SUM(C6:C9) -> 1989879 | D10: =SUM(D6:D9) -> 1897588 | E10: 1576034 | F10: 0 | G10: 0 | H10: 1878584 | I10: 0 | J10: 0 | K10: 0
A11: Minimum Service Level and Above Percentage | C11: =C10/C18 -> 0.8035580808 | D11: 0.8410280321 | E11: 0.645513715 | H11: 0.7943138382
A12: Water: (below min level)
A13: Using public tap (more than 200m from dwelling) | B13: 3
A14: Other water supply (more than 200m from dwelling | B14: =B9 -> 4 | C14: 486456 | D14: 486456 | E14: 486456 | H14: 486456
A15: No water supply
A16: Below Minimum Service Level sub-total | C16: =SUM(C13:C15) -> 486456 | D16: 358684 | E16: 865485 | F16: =SUM(F13:F15) -> 0 | G16: 0 | H16: 486456 | I16: 0 | J16: 0 | K16: 0
A17: Below Minimum Service Level Percentage | C17: =C16/C18 -> 0.1964419192 | D17: 0.1589719679 | E17: 0.354486285 | H17: 0.2056861618
A18: Total number of households* | B18: 5 | C18: =C10+C16 -> 2476335 | D18: =D10+D16 -> 2256272 | E18: 2441519 | F18: 0 | G18: 0 | H18: 2365040 | I18: 0 | J18: 0 | K18: 0
A19: * - To include informal settlements
A21: Households - Water Service Delivery Levels below the minimum
A22: Description | B22: Ref | C22: Year -3 | D22: Year -2 | E22: Year -1 | F22: Year 0
A23: Household (000) | C23: Outcome | D23: Outcome | E23: Outcome | F23: Original Budget | G23: Adjusted Budget | H23: Actual
A24: Formal Settlements | B24: 1
A25: Total households | C25: 100000000 | D25: 100000000 | E25: 100000000 | F25: 100000000 | G25: 100000000 | H25: 100000000
A26: Households below minimum service level | C26: 25000000 | D26: 25000000 | E26: 25000000 | F26: 25000000 | G26: 25000000 | H26: 25000000
A27: Proportion of households below minimum service level | C27: =C26/C25 -> 0.25 | D27: 0.25 | E27: 0.25 | F27: 0.25 | G27: 0.25 | H27: 0.25
A28: Informal Settlements
A29: Total households | C29: 100000000 | D29: 100000000 | E29: 100000000 | F29: 100000000 | G29: 100000000 | H29: 100000000
A30: Households ts below minimum service level | C30: 25000000 | D30: 25000000 | E30: 25000000 | F30: 25000000 | G30: 25000000 | H30: 25000000
A31: Proportion of households ts below minimum service level | C31: =C30/C29 -> 0.25 | D31: 0.25 | E31: 0.25 | F31: 0.25 | G31: 0.25 | H31: 0.25
A34: Sanitation Service Delivery Levels
A35: Description | B35: Ref | C35: 2005/06 | D35: 2006/07 | E35: 2007/08 | F35: 2008/09
C36: Outcome | D36: Outcome | E36: Outcome | F36: Original Budget | G36: Adjusted Budget | H36: Actual
A37: Household (000) | B37: 1
A38: Sanitation/sewerage: (above minimum level)
A39: Flush toilet (connected to sewerage) | C39: 942223.7 | D39: 600230.4 | E39: 720152.4 | H39: 930208.4
A40: Flush toilet (with septic tank) | C40: 711541.6 | D40: 952001.6 | E40: 502134.6 | H40: 535099.4
A41: Chemical toilet | C41: 535101.6 | D41: 535114.8 | E41: 511350.4 | H41: 601134.6
A42: Pit toilet (ventilated) | C42: 123545 | D42: 135125 | E42: 102545 | H42: 100125
A43: Other toilet provisions (above min.service level) | C43: 12545 | D43: 13453 | E43: 14521 | H43: 11245
A44: =$A$10 -> Minimum Service Level and Above sub-total | C44: =SUM(C39:C43) -> 2324956.9 | D44: =SUM(D39:D43) -> 2235924.8 | E44: 1850703.4 | F44: 0 | G44: 0 | H44: 2177812.4 | I44: 0 | J44: 0 | K44: 0
A45: Minimum Service Level and Above Percentage | C45: =C44/C52 -> 0.6893996537 | D45: 0.5987388198 | E45: 0.5547396854 | H45: 0.6314876483
A46: Sanitation/sewerage: (below minimum level)
A47: Bucket toilet | C47: 502133.5 | D47: 952110.5 | E47: 937909.5 | H47: 720329.5
A48: Other toilet provisions (below min.service level) | C48: 535101.6 | D48: 535101.6 | E48: 535101.6 | H48: 535101.6
A49: No toilet provisions | C49: 10245 | D49: 11254 | E49: 12451 | H49: 15458
A50: =$A$16 -> Below Minimum Service Level sub-total | C50: =SUM(C47:C49) -> 1047480.1 | D50: =SUM(D47:D49) -> 1498466.1 | E50: 1485462.1 | F50: 0 | G50: 0 | H50: 1270889.1 | I50: 0 | J50: 0 | K50: 0
